Workbook

Sheet Prehlad

Sheet Rozvaha
B1: AKTIVA | C1: 2011 | D1: 2012 | E1: 2013 | F1: 2014 | G1: 2015 | H1: 2016 | I1: 2017
B2: AKTIVA CELKEM | C2: 94130 | D2: 75102 | E2: 76092 | F2: 75123 | G2: 765079 | H2: 97761
A3: A. | B3: Pohledávky za upsaný vlastní kapitál | C3: 0 | D3: 0 | E3: 0 | F3: 0 | G3: 0 | H3: 0
A4: B. | B4: Stálá aktiva | C4: 12015 | D4: 11528 | E4: 10492 | F4: 9581 | G4: 365080 | H4: 7223
A5: B. I. | B5: Dlouhodobý nehmotný majetek | C5: 42 | D5: 0 | E5: 0 | F5: 0 | G5: 18182 | H5: 0
A6: 1 | B6: Zřizovací výdaje | C6: 0 | D6: 0 | E6: 0 | F6: 0 | G6: 0 | H6: 0
A7: 2 | B7: Nehmotné výsledky výzkumu a vývoje | C7: 0 | D7: 0 | E7: 0 | F7: 0 | G7: 0 | H7: 0
A8: 3 | B8: Software | C8: 42 | D8: 0 | E8: 0 | F8: 0 | G8: 0 | H8: 0
A9: 4 | B9: Ocenitená práva | C9: 0 | D9: 0 | E9: 0 | F9: 0 | G9: 18182 | H9: 0
A10: 5 | B10: Goodwill | C10: 0 | D10: 0 | E10: 0 | F10: 0 | G10: 0 | H10: 0
A11: 6 | B11: Jiný dlouhodobý nehmotný majetek | C11: 0 | D11: 0 | E11: 0 | F11: 0 | G11: 0 | H11: 0
A12: 7 | B12: Nedokončený dlouhodobý nehmotný majetek | C12: 0 | D12: 0 | E12: 0 | F12: 0 | G12: 0 | H12: 0
A13: 8 | B13: Poskytnuté zálohy na dlouhodobý nehmotný majetek | C13: 0 | D13: 0 | E13: 0 | F13: 0 | G13: 0 | H13: 0
A14: B. II. | B14: Dlouhodobý hmotný majetek | C14: 11973 | D14: 11528 | E14: 10492 | F14: 9581 | G14: 73512 | H14: 7223
A15: 1 | B15: Pozemky | C15: 1602 | D15: 1602 | E15: 1602 | F15: 1602 | G15: 1602 | H15: 8142
A16: 2 | B16: Stavby | C16: 8120 | D16: 8363 | E16: 7857 | F16: 7353 | G16: 7045 | H16: 1602
A17: 3 | B17: Samostatné movité věci a soubory movitých věcí | C17: 2215 | D17: 1526 | E17: 997 | F17: 589 | G17: 17747 | H17: 6540
A18: 4 | B18: Pěstitelské celky trvalých porostů | C18: 0 | D18: 0 | E18: 0 | F18: 0 | G18: 0 | H18: 497
A19: 5 | B19: Základní stádo a tažná zvířata | C19: 0 | D19: 0 | E19: 0 | F19: 0 | G19: 0 | H19: 0
A20: 6 | B20: Jiný dlouhodobý hmotný majetek | C20: 0 | D20: 0 | E20: 0 | F20: 0 | G20: 25743 | H20: -1416
A21: 7 | B21: Nedokončený dlouhodobý hmotný majetek | C21: 36 | D21: 37 | E21: 36 | F21: 37 | G21: 0 | H21: 0
A22: 8 | B22: Poskytnuté zálohy na dlouhodobý hmotný majetek | C22: 0 | D22: 0 | E22: 0 | F22: 0 | G22: 0 | H22: -1416
A23: 9 | B23: Oceňovací rozdíl k nabytému majetku | C23: 0 | D23: 0 | E23: 0 | F23: 0 | G23: 21375 | H23: 0
A24: B. III. | B24: Dlouhodobý finanční majetek | C24: 0 | D24: 0 | E24: 0 | F24: 0 | G24: 273389 | H24: 0
A25: 1 | B25: Podíly v ovládaných a řízených osobách | C25: 0 | D25: 0 | E25: 0 | F25: 0 | G25: 273386 | H25: 0
A26: 2 | B26: Podíly v účetních jednotkách podstatným vlivem | C26: 0 | D26: 0 | E26: 0 | F26: 0 | G26: 0 | H26: 0
A27: 3 | B27: Ostatní dlouhodobé cenné papíry a podíly (vklady) | C27: 0 | D27: 0 | E27: 0 | F27: 0 | G27: 0 | H27: 0
A28: 4 | B28: Půjčky a úvěry - ovládající a řídící osoba, podstatný vliv | C28: 0 | D28: 0 | E28: 0 | F28: 0 | G28: 0 | H28: 0
A29: 5 | B29: Jiný dlouhodobý finanční majetek | C29: 0 | D29: 0 | E29: 0 | F29: 0 | G29: 0 | H29: 0
A30: 6 | B30: Pořizovaný dlouhodobý finanční majetek | C30: 0 | D30: 0 | E30: 0 | F30: 0 | G30: 0 | H30: 0
A31: 7 | B31: Poskytnuté zálohy na dlouhodobý finanční majetek | C31: 0 | D31: 0 | E31: 0 | F31: 0 | G31: 0 | H31: 0
A32: C. | B32: Oběžná aktiva | C32: 81712 | D32: 63148 | E32: 64989 | F32: 64941 | G32: 397011 | H32: 90333
A33: C. I. | B33: Zásoby | C33: 10922 | D33: 7713 | E33: 19801 | F33: 13707 | G33: 283610 | H33: 13870
A34: 1 | B34: Materiál | C34: 3489 | D34: 2950 | E34: 2272 | F34: 2172 | G34: 86719 | H34: 3638
A35: 2 | B35: Nedokončená výroba a polotovary | C35: 5919 | D35: 3119 | E35: 16148 | F35: 10194 | G35: 106461 | H35: 9642
A36: 3 | B36: Výrobky | C36: 24 | D36: 11 | E36: 7 | F36: 6 | G36: 81249 | H36: 590
A37: 4 | B37: Zvířata | C37: 0 | D37: 0 | E37: 0 | F37: 0 | G37: 0 | H37: 87
A38: 5 | B38: Zboží | C38: 1490 | D38: 1466 | E38: 1374 | F38: 1335 | G38: 9181 | H38: 503
A39: 6 | B39: Poskytnuté zálohy na zásoby | C39: 0 | D39: 167 | E39: 0 | F39: 0 | G39: 0 | H39: 0
A40: C. II. | B40: Dlouhodobé pohledávky | C40: 5 | D40: 62 | E40: 85 | F40: 62 | G40: 59 | H40: 54
A41: 1 | B41: Pohledávky z obchodních vztahů (z obchodního styku) | C41: 0 | D41: 0 | E41: 0 | F41: 0 | G41: 0 | H41: 0
A42: 2 | B42: Pohledávky - ovládající a řídící osoba | C42: 0 | D42: 0 | E42: 0 | F42: 0 | G42: 0 | H42: 0
A43: 3 | B43: Pohledávky - podstatný vliv | C43: 0 | D43: 0 | E43: 0 | F43: 0 | G43: 0 | H43: 0
A44: 4 | B44: Pohledávky za společníky, členy družstva a za účastníky sdružení | C44: 0 | D44: 0 | E44: 0 | F44: 0 | G44: 0 | H44: 0
A45: 5 | B45: Dlouhodobé poskytnuté zálohy | C45: 5 | D45: 62 | E45: 85 | F45: 62 | G45: 59 | H45: 54
A46: 6 | B46: Dohadné účty aktivní | C46: 0 | D46: 0 | E46: 0 | F46: 0 | G46: 0 | H46: 0
A47: 7 | B47: Jiné pohledávky | C47: 0 | D47: 0 | E47: 0 | F47: 0 | G47: 0 | H47: 0
A48: 8 | B48: Odložená daňová pohledávka | C48: 0 | D48: 0 | E48: 0 | F48: 0 | G48: 0 | H48: 0
A49: C. III. | B49: Krátkodobé pohledávky | C49: 44175 | D49: 36074 | E49: 41116 | F49: 42459 | G49: 107282 | H49: 68780
A50: 1 | B50: Pohledávky z obchodních vztahů (z obchodního styku) | C50: 38502 | D50: 35459 | E50: 37868 | F50: 39569 | G50: 36168 | H50: 68306
A51: 2 | B51: Pohledávky - ovládající a řídící osoba | C51: 0 | D51: 0 | E51: 0 | F51: 0 | G51: 0 | H51: 0
A52: 3 | B52: Pohledávky - podstatný vliv | C52: 0 | D52: 0 | E52: 0 | F52: 0 | G52: 0 | H52: 0
B53: Pohledávky -ostatní | C53: 0 | D53: 0 | E53: 0 | F53: 0 | G53: 0 | H53: 474
A54: 4 | B54: Pohledávky za společníky, členy družstva a za účastníky sdružení | C54: 0 | D54: 0 | E54: 0 | F54: 0 | G54: 0 | H54: 0
A55: 5 | B55: Sociální zabezpečení (a zdravotní pojištění) | C55: 0 | D55: 0 | E55: 0 | F55: 0 | G55: 0 | H55: 0
A56: 6 | B56: Stát - daňové pohledávky | C56: 1789 | D56: 0 | E56: 2217 | F56: 396 | G56: 70814 | H56: 0
A57: 7 | B57: Krátkodobé poskytnuté zálohy | C57: 3813 | D57: 578 | E57: 749 | F57: 844 | G57: 150 | H57: 438
A58: 8 | B58: Dohadné účty aktivní | C58: 0 | D58: 0 | E58: 0 | F58: 355 | G58: 115 | H58: 0
A59: 9 | B59: Jiné pohledávky | C59: 71 | D59: 37 | E59: 282 | F59: 1295 | G59: 35 | H59: 36
A60: C. IV. | B60: Finanční majetek | C60: 26610 | D60: 19299 | E60: 3987 | F60: 8713 | G60: 6060 | H60: 7629
A61: 1 | B61: Peníze | C61: 506 | D61: 543 | E61: 439 | F61: 318 | G61: 404 | H61: 367
A62: 2 | B62: Účty v bankách | C62: 26104 | D62: 18756 | E62: 3548 | F62: 9395 | G62: 5656 | H62: 7262
A63: 3 | B63: Krátkodobé cenné papíry a podíly (Krátkodobý finanční majetek) | C63: 0 | D63: 0 | E63: 0 | F63: 0 | G63: 0 | H63: 0
A64: 4 | B64: Pořizovaný krátkodobý finanční majetek (Nedokončený krátk. fin. majetek) | C64: 0 | D64: 0 | E64: 0 | F64: 0 | G64: 0 | H64: 0
A65: D. I. | B65: Časové rozlišení | C65: 403 | D65: 426 | E65: 611 | F65: 601 | G65: 2988 | H65: 205
A66: 1 | B66: Náklady příštích období | C66: 400 | D66: 424 | E66: 586 | F66: 528 | G66: 2925 | H66: 199
A67: 2 | B67: Komplexní náklady příštích období | C67: 0 | D67: 0 | E67: 0 | F67: 0 | G67: 0 | H67: 0
A68: 3 | B68: Příjmy příštích období | C68: 3 | D68: 2 | E68: 25 | F68: 73 | G68: 63 | H68: 6
B70: PASIVA | C70: 2011 | D70: 2012 | E70: 2013 | F70: 2014 | G70: 2015 | H70: 2016
B71: PASIVA CELKEM | C71: 94130 | D71: 75102 | E71: 76092 | F71: 75123 | G71: 765079 | H71: 97761
A72: A. | B72: Vlastní kapitál | C72: 63170 | D72: 51804 | E72: 45688 | F72: 45789 | G72: 425522 | H72: 65356
A73: A. I. | B73: Základní kapitál | C73: 4014 | D73: 4014 | E73: 4014 | F73: 4014 | G73: 410118 | H73: 10000
A74: 1 | B74: Základní kapitál | C74: 4014 | D74: 4014 | E74: 4014 | F74: 4014 | G74: 410118 | H74: 10000
A75: 2 | B75: Vlastní akcie a vlastní obchodní podíly (-) | C75: 0 | D75: 0 | E75: 0 | F75: 0 | G75: 0 | H75: 0
A76: 3 | B76: Změny základního kapitálu | C76: 0 | D76: 0 | E76: 0 | F76: 0 | G76: 0 | H76: 0
A77: A. II. | B77: Kapitálové fondy | C77: -1880 | D77: -290 | E77: 0 | F77: 0 | G77: -23643 | H77: 0
A78: 1 | B78: Emisní ážio | C78: 0 | D78: 0 | E78: 0 | F78: 0 | G78: 133471 | H78: 0
A79: 2 | B79: Ostatní kapitálové fondy | C79: 0 | D79: 0 | E79: 0 | F79: 0 | G79: 0 | H79: 0
A80: 3 | B80: Oceňovací rozdíly z přecenění majetku (a závazků) | C80: -1880 | D80: -290 | E80: 0 | F80: 0 | G80: -157114 | H80: 0
A81: 4 | B81: Oceňovací rozdíly z přecenění při přeměnách | C81: 0 | D81: 0 | E81: 0 | F81: 0 | G81: 0 | H81: 0
A82: A. III. | B82: Rezervní fondy, nedělitelný fond a ost. fondy ze zisku (Fondy ze zisku) | C82: 662 | D82: 638 | E82: 615 | F82: 0 | G82: 0 | H82: 0
A83: 1 | B83: Zákonný rezervní fond/ Nedělitelný fond | C83: 425 | D83: 425 | E83: 425 | F83: 0 | G83: 0 | H83: 0
A84: 2 | B84: Statutární ostatní fondy | C84: 237 | D84: 213 | E84: 190 | F84: 0 | G84: 0 | H84: 0
A85: A. IV. | B85: Výsledek hospodaření minulých let | C85: 47211 | D85: 28374 | E85: 37442 | F85: 36673 | G85: 30725 | H85: 42010
A86: 1 | B86: Nerozdělený zisk minulých let | C86: 47211 | D86: 28374 | E86: 37442 | F86: 36673 | G86: 30790 | H86: 42075
A87: 2 | B87: Neuhrazená ztráta minulých let | C87: 0 | D87: 0 | E87: 0 | F87: 0 | G87: 0 | H87: 0
A88: 3 | B88: Jiný výsledok hospodáření min. let | C88: 0 | D88: 0 | E88: 0 | F88: 0 | G88: -65 | H88: -65
A89: A. V. | B89: Výsledek hospodaření běžného účetního období | C89: 13163 | D89: 19068 | E89: 3617 | F89: 5102 | G89: 8322 | H89: 13346
A90: B. | B90: Cizí zdroje | C90: 17301 | D90: 20140 | E90: 22643 | F90: 21575 | G90: 337986 | H90: 25879
A91: B. I. | B91: Rezervy | C91: 0 | D91: 0 | E91: 0 | F91: 0 | G91: 0 | H91: 25879
A92: 1 | B92: Rezervy podle zvláštních právních předpisů | C92: 0 | D92: 0 | E92: 0 | F92: 0 | G92: 0 | H92: 0
A93: 2 | B93: Rezerva na důchody a podobné závazky | C93: 0 | D93: 0 | E93: 0 | F93: 0 | G93: 0 | H93: 0
A94: 3 | B94: Rezerva na daň z příjmu | C94: 0 | D94: 0 | E94: 0 | F94: 0 | G94: 0 | H94: 0
A95: 4 | B95: Ostatní rezervy | C95: 0 | D95: 0 | E95: 0 | F95: 0 | G95: 0 | H95: 0
A96: B. II. | B96: Dlouhodobé závazky | C96: 463 | D96: 470 | E96: 473 | F96: 472 | G96: 3220 | H96: 411
A97: 1 | B97: Závazky z obchodních vztahů | C97: 0 | D97: 0 | E97: 0 | F97: 0 | G97: 0 | H97: 0
A98: 2 | B98: Závazky - ovládající a řídící osoba | C98: 0 | D98: 0 | E98: 0 | F98: 0 | G98: 0 | H98: 0
A99: 3 | B99: Závazky - podstatný vliv | C99: 0 | D99: 0 | E99: 0 | F99: 0 | G99: 0 | H99: 0
A100: 4 | B100: Závazky ke společníkům, členům družstva a k účastníkům sdružení | C100: 0 | D100: 0 | E100: 0 | F100: 0 | G100: 0 | H100: 0
A101: 5 | B101: Dlouhodobé přijaté zálohy | C101: 0 | D101: 0 | E101: 0 | F101: 0 | G101: 0 | H101: 0
A102: 6 | B102: Vydané dluhopisy | C102: 0 | D102: 0 | E102: 0 | F102: 0 | G102: 0 | H102: 0
A103: 7 | B103: Dlouhodobé směnky k úhradě | C103: 0 | D103: 0 | E103: 0 | F103: 0 | G103: 0 | H103: 0
A104: 8 | B104: Dohadné účty pasivní | C104: 0 | D104: 0 | E104: 0 | F104: 0 | G104: 0 | H104: 0
A105: 9 | B105: Jiné (dlouhodobé) závazky | C105: 0 | D105: 0 | E105: 0 | F105: 0 | G105: 0 | H105: 0
A106: 10 | B106: Odložený daňový závazek | C106: 463 | D106: 470 | E106: 473 | F106: 472 | G106: 3220 | H106: 0
A107: B. III. | B107: Krátkodobé závazky | C107: 16838 | D107: 19670 | E107: 22170 | F107: 21103 | G107: 334766 | H107: 25468
A108: 1 | B108: Závazky z obchodních vztahů | C108: 4945 | D108: 9808 | E108: 8027 | F108: 9528 | G108: 328741 | H108: 9429
A109: 2 | B109: Závazky - ovládající a řídící osoba /uverovým inštitúciám | C109: 0 | D109: 0 | E109: 0 | F109: 0 | G109: 0 | H109: 5000
A110: 3 | B110: Závazky - podstatný vliv | C110: 0 | D110: 0 | E110: 0 | F110: 0 | G110: 0 | H110: 0
A111: 4 | B111: Závazky ke společníkům, členům družstva a k účastníkům sdružení | C111: 0 | D111: 0 | E111: 0 | F111: 0 | G111: 0 | H111: 0
A112: 5 | B112: Závazky k zaměstnancům | C112: 3196 | D112: 3260 | E112: 3122 | F112: 3443 | G112: 2986 | H112: 3070
A113: 6 | B113: Závazky ze sociálního a zdravotního zabezpečení | C113: 1884 | D113: 1720 | E113: 1742 | F113: 1942 | G113: 1726 | H113: 1706
A114: 7 | B114: Stát - daňové závazky a dotace | C114: 2872 | D114: 3600 | E114: 2987 | F114: 5148 | G114: 957 | H114: 5550
A115: 8 | B115: Krátkodobé přijaté zálohy /závazky ostatní | C115: 800 | D115: 0 | E115: 5279 | F115: 0 | G115: 0 | H115: 11039
A116: 9 | B116: Vydané dlouhopisy | C116: 0 | D116: 0 | E116: 0 | F116: 0 | G116: 0 | H116: 0
A117: 10 | B117: Dohadné účty pasivní | C117: 1095 | D117: 802 | E117: 818 | F117: 848 | G117: 172 | H117: 529
A118: 11 | B118: Jiné závazky | C118: 2046 | D118: 480 | E118: 195 | F118: 194 | G118: 184 | H118: 184
A119: B. IV. | B119: Bankovní úvěry a výpomoci | C119: 0 | D119: 0 | E119: 0 | F119: 0 | G119: 0 | H119: 0
A120: 1 | B120: Bankovní úvěry dlouhodobé | C120: 0 | D120: 0 | E120: 0 | F120: 0 | G120: 0 | H120: 0
A121: 2 | B121: Krátkodobé bankovní úvěry (Běžné bakovní úvěry) | C121: 0 | D121: 0 | E121: 0 | F121: 0 | G121: 0 | H121: 0
A122: 3 | B122: Krátkodobé finanční výpomoci | C122: 0 | D122: 0 | E122: 0 | F122: 0 | G122: 0 | H122: 0
A123: C. I. | B123: Časové rozlišení | C123: 13659 | D123: 3158 | E123: 7761 | F123: 7759 | G123: 1571 | H123: 6526
A124: 1 | B124: Výdaje příštích období | C124: 500 | D124: 501 | E124: 102 | F124: 17 | G124: 11 | H124: 83
A125: 2 | B125: Výnosy příštích období | C125: 13159 | D125: 2657 | E125: 7659 | F125: 7742 | G125: 1560 | H125: 6443

Sheet Vykaz ziskov a strat
B1: POLOŽKA | C1: 2011 | D1: 2012 | E1: 2013 | F1: 2014 | G1: 2015 | H1: 2016
A2: I. | B2: Tržby za prodej zboží | C2: 9323 | D2: 12599 | E2: 9030 | F2: 6215 | G2: 7982 | H2: 351278
A3: A. | B3: Náklady vynaložené na prodané zboží | C3: 7222 | D3: 9596 | E3: 7078 | F3: 4557 | G3: 6323 | H3: 93009
A4: + | B4: Obchodní marže | C4: 2101 | D4: 3003 | E4: 1952 | F4: 1658 | G4: 1659 | H4: 314414
A5: II. | B5: Výkony | C5: 161164 | D5: 161131 | E5: 133220 | F5: 129936 | G5: 135676 | H5: 68040
A6: 1 | B6: Tržby za prodej vlastních výrobků a služeb | C6: 159416 | D6: 163900 | E6: 120269 | F6: 135890 | G6: 133280 | H6: 162810
A7: 2 | B7: Změna stavu vnitropodnikových zásob vlastní výroby | C7: 1748 | D7: -2812 | E7: 12951 | F7: -5958 | G7: 2203 | H7: 83564
A8: 3 | B8: Aktivace | C8: 0 | D8: 43 | E8: 0 | F8: 4 | G8: 193 | H8: -52089
A9: B. | B9: Výkonová spotřeba | C9: 78168 | D9: 72322 | E9: 63058 | F9: 58573 | G9: 57103 | H9: -5566
A10: 1 | B10: Spotřeba materiálu energie | C10: 33830 | D10: 34810 | E10: 29384 | F10: 29216 | G10: 26896 | H10: 175932
A11: 2 | B11: Služby | C11: 44338 | D11: 37512 | E11: 33574 | F11: 29357 | G11: 30207 | H11: 126489
A12: + | B12: Přidaná hodnota | C12: 85097 | D12: 91812 | E12: 72114 | F12: 73021 | G12: 80232 | H12: 49443
A13: C. | B13: Osobní náklady | C13: 65041 | D13: 65536 | E13: 63231 | F13: 65814 | G13: 66512 | H13: 42651
A14: 1 | B14: Mzdové náklady | C14: 47226 | D14: 47514 | E14: 45685 | F14: 47483 | G14: 48042 | H14: 6792
A15: 2 | B15: Odměny členům orgánů společnosti a družstva | C15: 0 | D15: 0 | E15: 0 | F15: 0 | G15: 0 | H15: 8385
A16: 3 | B16: Náklady na sociální zabezpečení a zdravotní pojištění | C16: 15933 | D16: 15945 | E16: 15327 | F16: 15982 | G16: 16017 | H16: 8385
A17: 4 | B17: Sociální náklady | C17: 1882 | D17: 2077 | E17: 2219 | F17: 2349 | G17: 2453 | H17: 0
A18: D. | B18: Daně a poplatky | C18: 157 | D18: 92 | E18: 123 | F18: 131 | G18: 164 | H18: 0
A19: E. | B19: Odpisy dlouhodobého nehmotného a hmotného majetku | C19: 2318 | D19: 1918 | E19: 1369 | F19: 1036 | G19: 893 | H19: 0
A20: III. | B20: Tržby z prodeje dlouhodobého majetku a materiálu | C20: 41 | D20: 123 | E20: 17 | F20: 198 | G20: 90 | H20: 1942
A21: 1 | B21: Tržby z prodeje dlouhodobého majetku | C21: 41 | D21: 113 | E21: 11 | F21: 155 | G21: 88 | H21: 1138
A22: 2 | B22: Tržby z prodeje materiálu | C22: 0 | D22: 10 | E22: 6 | F22: 43 | G22: 2 | H22: 392
A23: F. | B23: Zůstatková cena prodaného dlouhodobého majetku a materiálu | C23: 57 | D23: 13 | E23: 0 | F23: 0 | G23: 0 | H23: 412
A24: 1 | B24: Zůstatková cena prodaného dlouhodobého majetku | C24: 57 | D24: 13 | E24: 0 | F24: 0 | G24: 0 | H24: 2093
A25: 2 | B25: Prodaný materiál | C25: 0 | D25: 0 | E25: 0 | F25: 0 | G25: 0 | H25: 1
A26: G. | B26: Změna stavu rezerv a opravných položek v provozní oblasti a komplexních nákladů příštích období | C26: 314 | D26: -168 | E26: -40 | F26: -32 | G26: -185 | H26: 32
A27: IV. | B27: Ostatní provozní výnosy | C27: 507 | D27: 604 | E27: 555 | F27: 3275 | G27: 1020 | H27: 294
A28: H. | B28: Ostatní provozní náklady | C28: 1393 | D28: 1740 | E28: 1290 | F28: 3174 | G28: 1318 | H28: 0
A29: V. | B29: Převod provozních výnosů | C29: 0 | D29: 0 | E29: 0 | F29: 0 | G29: 0 | H29: 1766
A30: I. | B30: Převod provozních nákladů | C30: 0 | D30: 0 | E30: 0 | F30: 0 | G30: 0 | H30: 3069
A31: * | B31: Provozní výsledek hospodaření (EBIT) | C31: 16365 | D31: 23408 | E31: 6713 | F31: 6371 | G31: 12640 | H31: 13932
A32: VI. | B32: Tržby z prodeje CP a podílů | C32: 0 | D32: 0 | E32: 0 | F32: 0 | G32: 0 | H32: 13932
A33: J. | B33: Prodané cenné papíry a podíly | C33: 0 | D33: 0 | E33: 0 | F33: 0 | G33: 0 | H33: 0
A34: VII. | B34: Výnosy z dlouhodobého finančního majetku | C34: 0 | D34: 0 | E34: 0 | F34: 0 | G34: 0 | H34: 400
A35: 1 | B35: Výnosy z podílů v ovládaných a řízených osobách a v účetních jednotkách pod podstatným vlivem | C35: 0 | D35: 0 | E35: 0 | F35: 0 | G35: 0 | H35: 0
A36: 2 | B36: Výnosy z ostatních dlouhodobých cenných papírů a podílů | C36: 0 | D36: 0 | E36: 0 | F36: 0 | G36: 0 | H36: 0
A37: 3 | B37: Výnosy z ostatního dlouhodobého finančního majetku | C37: 0 | D37: 0 | E37: 0 | F37: 0 | G37: 0 | H37: 0
A38: VIII. | B38: Výnosy z krátkodobého finančního majetku | C38: 0 | D38: 0 | E38: 0 | F38: 0 | G38: 0 | H38: 0
A39: K. | B39: Náklady z finančního majetku | C39: 0 | D39: 0 | E39: 0 | F39: 0 | G39: 0 | H39: 0
A40: IX. | B40: Výnosy z přečenění cenných papírů a derivátů | C40: 0 | D40: 0 | E40: 0 | F40: 0 | G40: 0 | H40: 0
A41: L. | B41: Náklady z přecenění cenných papírů a derivátů | C41: 0 | D41: 0 | E41: 0 | F41: 0 | G41: 4 | H41: 0
A42: M. | B42: Změna stav rezerv a opravných položek ve finanční oblasti | C42: 0 | D42: 0 | E42: 0 | F42: 0 | G42: 0 | H42: 0
A43: X. | B43: Výnosové úroky | C43: 16 | D43: 29 | E43: 2 | F43: 0 | G43: 0 | H43: 380
A44: N. | B44: Nákladové úroky | C44: 12 | D44: 0 | E44: 2 | F44: 0 | G44: 39 | H44: 4
A45: XI. | B45: Ostatní finanční výnosy | C45: 1084 | D45: 555 | E45: 438 | F45: 76 | G45: 87 | H45: 376
A46: O. | B46: Ostatní finanční náklady | C46: 1151 | D46: 456 | E46: 2130 | F46: 130 | G46: 161 | H46: 644
A47: XII. | B47: Převod finančních výnosů | C47: 0 | D47: 0 | E47: 0 | F47: 0 | G47: 0 | H47: 391
A48: P. | B48: Převod finančních nákladů | C48: 0 | D48: 0 | E48: 0 | F48: 0 | G48: 0 | H48: 13405
A49: * | B49: Finanční výsledek hospodaření | C49: -63 | D49: 128 | E49: -1692 | F49: -54 | G49: -117 | H49: 16465
A50: Q. | B50: Daň z příjmu za běžnou činnost | C50: 3139 | D50: 4468 | E50: 1404 | F50: 1215 | G50: 4201 | H50: 850
A51: 1 | B51: Splatná | C51: 3128 | D51: 4461 | E51: 1401 | F51: 1215 | G51: 1450 | H51: 850
A52: 2 | B52: Odložená | C52: 11 | D52: 7 | E52: 3 | F52: -1 | G52: 2751 | H52: 0
A53: ** | B53: Výsledek hospodaření za běžnou činnost | C53: 13163 | D53: 19068 | E53: 3617 | F53: 5102 | G53: 8322 | H53: 15615
A54: XIII. | B54: Mimořádné výnosy | C54: 0 | D54: 0 | E54: 0 | F54: 0 | G54: 0 | H54: 0
A55: R. | B55: Mimořádné náklady | C55: 0 | D55: 0 | E55: 0 | F55: 0 | G55: 0 | H55: 0
A56: S. | B56: Daň z příjmu z mimořádné činnosti | C56: 0 | D56: 0 | E56: 0 | F56: 0 | G56: 0 | H56: 0
A57: 1 | B57: Splatná | C57: 0 | D57: 0 | E57: 0 | F57: 0 | G57: 0 | H57: 0
A58: 2 | B58: Odložená | C58: 0 | D58: 0 | E58: 0 | F58: 0 | G58: 0 | H58: 0
A59: * | B59: Mimořádný výsledek hospodaření | C59: 0 | D59: 0 | E59: 0 | F59: 0 | G59: 0 | H59: 0
A60: T. | B60: Převod podílu na výsledku hospodaření společníkům (+/-) | C60: 0 | D60: 0 | E60: 0 | F60: 0 | G60: 0 | H60: 0
A61: *** | B61: Výsledek hospodaření za účetní období (EAT) | C61: 13163 | D61: 19068 | E61: 3617 | F61: 5102 | G61: 8322 | H61: 460805
A62: **** | B62: Výsledek hospodaření před zdaněním (+/-) | C62: 16302 | D62: 23536 | E62: 5021 | F62: 6317 | G62: 12523 | H62: 615388

Sheet Horizontálna analýza VZZ (hidden)
B1: Horizontálna analýza VZZ | C1: Absolútna zmena
C2: 2012 - 2013 | D2: 2013 - 2014 | E2: 2014 - 2015 | F2: 2015 - 2016 | G2: 2012 - 2013 | H2: 2013 - 2014 | I2: 2014 - 2015 | J2: 2015 - 2016
A3: I. | B3: Tržby za prodej zboží | C3: 0.3513890379 | D3: -0.2832764505 | E3: -0.3117386489 | F3: 0.284312148 | G3: 3276 | H3: -3569 | I3: -2815 | J3: 1767
A4: A. | B4: Náklady vynaložené na prodané zboží | C4: 0.3287178067 | D4: -0.2624010004 | E4: -0.3561740605 | F4: 0.3875356594 | G4: 2374 | H4: -2518 | I4: -2521 | J4: 1766
A5: + | B5: Obchodní marže | C5: 0.4293193717 | D5: -0.34998335 | E5: -0.1506147541 | F5: 0.0006031363088 | G5: 902 | H5: -1051 | I5: -294 | J5: 1
A6: II. | B6: Výkony | C6: -0.0002047603683 | D6: -0.173219306 | E6: -0.02465095331 | F6: 0.04417559414 | G6: -33 | H6: -27911 | I6: -3284 | J6: 5740
A7: 1 | B7: Tržby za prodej vlastních výrobků a služeb | C7: 0.02812766598 | D7: -0.2662050031 | E7: 0.1298838437 | F7: -0.01920671131 | G7: 4484 | H7: -43631 | I7: 15621 | J7: -2610
A8: 2 | B8: Změna stavu vnitropodnikových zásob vlastní výroby | C8: -2.608695652 | D8: -5.605618777 | E8: -1.460041696 | F8: -1.369754951 | G8: -4560 | H8: 15763 | I8: -18909 | J8: 8161
A9: 3 | B9: Aktivace | C9: x | D9: x | E9: x | F9: 47.25 | G9: 43 | H9: -43 | I9: 4 | J9: 189
A10: B. | B10: Výkonová spotřeba | C10: -0.07478763688 | D10: -0.1280938027 | E10: -0.07112499604 | F10: -0.02509688764 | G10: -5846 | H10: -9264 | I10: -4485 | J10: -1470
A11: 1 | B11: Spotřeba materiálu energie | C11: 0.02896837127 | D11: -0.1558747486 | E11: -0.005717397223 | F11: -0.07940854326 | G11: 980 | H11: -5426 | I11: -168 | J11: -2320
A12: 2 | B12: Služby | C12: -0.1539537192 | D12: -0.1049797398 | E12: -0.1256031453 | F12: 0.02895391218 | G12: -6826 | H12: -3938 | I12: -4217 | J12: 850
A13: + | B13: Přidaná hodnota | C13: 0.07890994982 | D13: -0.214547118 | E13: 0.01257730815 | F13: 0.09875241369 | G13: 6715 | H13: -19698 | I13: 907 | J13: 7211
A14: C. | B14: Osobní náklady | C14: 0.007610584093 | D14: -0.03517150879 | E14: 0.04085021588 | F14: 0.01060564622 | G14: 495 | H14: -2305 | I14: 2583 | J14: 698
A15: 1 | B15: Mzdové náklady | C15: 0.006098335663 | D15: -0.03849391758 | E15: 0.03935646273 | F15: 0.01177263442 | G15: 288 | H15: -1829 | I15: 1798 | J15: 559
A16: 2 | B16: Odměny členům orgánů společnosti a družstva | C16: 0 | D16: 0 | E16: 0 | F16: 0 | G16: 0 | H16: 0 | I16: 0 | J16: 0
A17: 3 | B17: Náklady na sociální zabezpečení a zdravotní pojištění | C17: 0.0007531538317 | D17: -0.03875823142 | E17: 0.04273504274 | F17: 0.002189963709 | G17: 12 | H17: -618 | I17: 655 | J17: 35
A18: 4 | B18: Sociální náklady | C18: 0.1036131775 | D18: 0.06836783823 | E18: 0.05858494817 | F18: 0.04427415922 | G18: 195 | H18: 142 | I18: 130 | J18: 104
A19: D. | B19: Daně a poplatky | C19: -0.4140127389 | D19: 0.3369565217 | E19: 0.06504065041 | F19: 0.2519083969 | G19: -65 | H19: 31 | I19: 8 | J19: 33
A20: E. | B20: Odpisy dlouhodobého nehmotného a hmotného majetku | C20: -0.1725625539 | D20: -0.2862356621 | E20: -0.2432432432 | F20: -0.138030888 | G20: -400 | H20: -549 | I20: -333 | J20: -143
A21: III. | B21: Tržby z prodeje dlouhodobého majetku a materiálu | C21: 2 | D21: -0.8617886179 | E21: 10.64705882 | F21: -0.5454545455 | G21: 82 | H21: -106 | I21: 181 | J21: -108
A22: 1 | B22: Tržby z prodeje dlouhodobého majetku | C22: 1.756097561 | D22: -0.9026548673 | E22: 13.09090909 | F22: -0.4322580645 | G22: 72 | H22: -102 | I22: 144 | J22: -67
A23: 2 | B23: Tržby z prodeje materiálu | C23: x | D23: -0.4 | E23: 6.166666667 | F23: -0.9534883721 | G23: 10 | H23: -4 | I23: 37 | J23: -41
A24: F. | B24: Zůstatková cena prodaného dlouhodobého majetku a materiálu | C24: -0.7719298246 | D24: x | E24: 0 | F24: 0 | G24: -44 | H24: -13 | I24: 0 | J24: 0
A25: 1 | B25: Zůstatková cena prodaného dlouhodobého majetku | C25: -0.7719298246 | D25: x | E25: 0 | F25: 0 | G25: -44 | H25: -13 | I25: 0 | J25: 0
A26: 2 | B26: Prodaný materiál | C26: 0 | D26: 0 | E26: 0 | F26: 0 | G26: 0 | H26: 0 | I26: 0 | J26: 0
A27: G. | B27: Změna stavu rezerv a opravných položek v provozní oblasti a komplexních nákladů příštích období | C27: -1.535031847 | D27: -0.7619047619 | E27: -0.2 | F27: 4.78125 | G27: -482 | H27: 128 | I27: 8 | J27: -153
A28: IV. | B28: Ostatní provozní výnosy | C28: 0.191321499 | D28: -0.08112582781 | E28: 4.900900901 | F28: -0.6885496183 | G28: 97 | H28: -49 | I28: 2720 | J28: -2255
A29: H. | B29: Ostatní provozní náklady | C29: 0.2491026561 | D29: -0.2586206897 | E29: 1.460465116 | F29: -0.5847511027 | G29: 347 | H29: -450 | I29: 1884 | J29: -1856
A30: V. | B30: Převod provozních výnosů | C30: 0 | D30: 0 | E30: 0 | F30: 0 | G30: 0 | H30: 0 | I30: 0 | J30: 0
A31: I. | B31: Převod provozních nákladů | C31: 0 | D31: 0 | E31: 0 | F31: 0 | G31: 0 | H31: 0 | I31: 0 | J31: 0
A32: * | B32: Provozní výsledek hospodaření (EBIT) | C32: 0.4303696914 | D32: -0.7132177033 | E32: -0.05094592582 | F32: 0.9839899545 | G32: 7043 | H32: -16695 | I32: -342 | J32: 6269
A33: VI. | B33: Tržby z prodeje CP a podílů | C33: 0 | D33: 0 | E33: 0 | F33: 0 | G33: 0 | H33: 0 | I33: 0 | J33: 0
A34: J. | B34: Prodané cenné papíry a podíly | C34: 0 | D34: 0 | E34: 0 | F34: 0 | G34: 0 | H34: 0 | I34: 0 | J34: 0
A35: VII. | B35: Výnosy z dlouhodobého finančního majetku | C35: 0 | D35: 0 | E35: 0 | F35: 0 | G35: 0 | H35: 0 | I35: 0 | J35: 0
A36: 1 | B36: Výnosy z podílů v ovládaných a řízených osobách a v účetních jednotkách pod podstatným vlivem | C36: 0 | D36: 0 | E36: 0 | F36: 0 | G36: 0 | H36: 0 | I36: 0 | J36: 0
A37: 2 | B37: Výnosy z ostatních dlouhodobých cenných papírů a podílů | C37: 0 | D37: 0 | E37: 0 | F37: 0 | G37: 0 | H37: 0 | I37: 0 | J37: 0
A38: 3 | B38: Výnosy z ostatního dlouhodobého finančního majetku | C38: 0 | D38: 0 | E38: 0 | F38: 0 | G38: 0 | H38: 0 | I38: 0 | J38: 0
A39: VIII. | B39: Výnosy z krátkodobého finančního majetku | C39: 0 | D39: 0 | E39: 0 | F39: 0 | G39: 0 | H39: 0 | I39: 0 | J39: 0
A40: K. | B40: Náklady z finančního majetku | C40: 0 | D40: 0 | E40: 0 | F40: 0 | G40: 0 | H40: 0 | I40: 0 | J40: 0
A41: IX. | B41: Výnosy z přečenění cenných papírů a derivátů | C41: 0 | D41: 0 | E41: 0 | F41: 0 | G41: 0 | H41: 0 | I41: 0 | J41: 0
A42: L. | B42: Náklady z přecenění cenných papírů a derivátů | C42: 0 | D42: 0 | E42: 0 | F42: x | G42: 0 | H42: 0 | I42: 0 | J42: 4
A43: M. | B43: Změna stav rezerv a opravných položek ve finanční oblasti | C43: 0 | D43: 0 | E43: 0 | F43: 0 | G43: 0 | H43: 0 | I43: 0 | J43: 0
A44: X. | B44: Výnosové úroky | C44: 0.8125 | D44: -0.9310344828 | E44: x | F44: 0 | G44: 13 | H44: -27 | I44: -2 | J44: 0
A45: N. | B45: Nákladové úroky | C45: x | D45: x | E45: x | F45: x | G45: -12 | H45: 2 | I45: -2 | J45: 39
A46: XI. | B46: Ostatní finanční výnosy | C46: -0.4880073801 | D46: -0.2108108108 | E46: -0.8264840183 | F46: 0.1447368421 | G46: -529 | H46: -117 | I46: -362 | J46: 11
A47: O. | B47: Ostatní finanční náklady | C47: -0.6038227628 | D47: 3.671052632 | E47: -0.9389671362 | F47: 0.2384615385 | G47: -695 | H47: 1674 | I47: -2000 | J47: 31
A48: XII. | B48: Převod finančních výnosů | C48: 0 | D48: 0 | E48: 0 | F48: 0 | G48: 0 | H48: 0 | I48: 0 | J48: 0
A49: P. | B49: Převod finančních nákladů | C49: 0 | D49: 0 | E49: 0 | F49: 0 | G49: 0 | H49: 0 | I49: 0 | J49: 0
A50: * | B50: Finanční výsledek hospodaření | C50: -3.031746032 | D50: -14.21875 | E50: -0.9680851064 | F50: 1.166666667 | G50: 191 | H50: -1820 | I50: 1638 | J50: -63
A51: Q. | B51: Daň z příjmu za běžnou činnost | C51: 0.4233832431 | D51: -0.6857654432 | E51: -0.1346153846 | F51: 2.457613169 | G51: 1329 | H51: -3064 | I51: -189 | J51: 2986
A52: 1 | B52: Splatná | C52: 0.4261508951 | D52: -0.6859448554 | E52: -0.1327623126 | F52: 0.1934156379 | G52: 1333 | H52: -3060 | I52: -186 | J52: 235
A53: 2 | B53: Odložená | C53: -0.3636363636 | D53: -0.5714285714 | E53: -1.333333333 | F53: -2752 | G53: -4 | H53: -4 | I53: -4 | J53: 2752
A54: ** | B54: Výsledek hospodaření za běžnou činnost | C54: 0.4486059409 | D54: -0.8103104678 | E54: 0.4105612386 | F54: 0.631125049 | G54: 5905 | H54: -15451 | I54: 1485 | J54: 3220
A55: XIII. | B55: Mimořádné výnosy | C55: 0 | D55: 0 | E55: 0 | F55: 0 | G55: 0 | H55: 0 | I55: 0 | J55: 0
A56: R. | B56: Mimořádné náklady | C56: 0 | D56: 0 | E56: 0 | F56: 0 | G56: 0 | H56: 0 | I56: 0 | J56: 0
A57: S. | B57: Daň z příjmu z mimořádné činnosti | C57: 0 | D57: 0 | E57: 0 | F57: 0 | G57: 0 | H57: 0 | I57: 0 | J57: 0
A58: 1 | B58: Splatná | C58: 0 | D58: 0 | E58: 0 | F58: 0 | G58: 0 | H58: 0 | I58: 0 | J58: 0
A59: 2 | B59: Odložená | C59: 0 | D59: 0 | E59: 0 | F59: 0 | G59: 0 | H59: 0 | I59: 0 | J59: 0
A60: * | B60: Mimořádný výsledek hospodaření | C60: 0 | D60: 0 | E60: 0 | F60: 0 | G60: 0 | H60: 0 | I60: 0 | J60: 0
A61: T. | B61: Převod podílu na výsledku hospodaření společníkům (+/-) | C61: 0 | D61: 0 | E61: 0 | F61: 0 | G61: 0 | H61: 0 | I61: 0 | J61: 0
A62: *** | B62: Výsledek hospodaření za účetní období (EAT) | C62: 0.4486059409 | D62: -0.8103104678 | E62: 0.4105612386 | F62: 0.631125049 | G62: 5905 | H62: -15451 | I62: 1485 | J62: 3220
A63: **** | B63: Výsledek hospodaření před zdaněním (+/-) | C63: 0.4437492332 | D63: -0.7866672332 | E63: 0.2581159132 | F63: 0.9824283679 | G63: 7234 | H63: -18515 | I63: 1296 | J63: 6206

Sheet Cash flow (hidden)
A1: POLOŽKA | C1: 2012 | D1: 2013 | E1: 2014 | F1: 2015 | G1: 2016
A2: Stav peněžních prostředků (PP) a ekvivalentů na začátku účetního období | C2: 16153 | D2: 18330 | E2: 14964
A3: Čistý peněžní tok z provozní činnosti | C3: 83929 | D3: 86806 | E3: 89350
A4: Čistý peněžní tok vztahující se k investiční činnosti | C4: -42575 | D4: -66214 | E4: -70527
A5: Čistý peněžní tok vztahující se k finanční činnosti | C5: -39177 | D5: -23960 | E5: -15850
A6: Čisté zvýšení (snížení) peněžních prostředků | C6: 2177 | D6: -3367 | E6: =E3+E4+E5 -> 2973
A7: Stav peněžních prostředků a ekvivalentů na konci období | C7: 18330 | D7: 14964 | E7: =E2+E6 -> 17937

Sheet Horizontalna analýza (hidden)
B1: AKTIVA | C1: Absolútna zmena | H1: Percentuálna zmena
C2: 2011-2012 | D2: 2012-2013 | E2: 2013-2014 | F2: 2014-2015 | G2: 2015-2016 | H2: 2011-2012 | I2: 2012-2013 | J2: 2013-2014 | K2: 2014-2015 | L2: 2015-2016
B3: AKTIVA CELKEM | C3: =[1]Rozvaha!D2-[1]Rozvaha!C2 -> -19028 | D3: =[1]Rozvaha!E2-[1]Rozvaha!D2 -> 990 | E3: =[1]Rozvaha!F2-[1]Rozvaha!E2 -> -969 | F3: =[1]Rozvaha!G2-[1]Rozvaha!F2 -> 689956 | G3: =[1]Rozvaha!H2-[1]Rozvaha!G2 -> -667318 | H3: =(([1]Rozvaha!D2-[1]Rozvaha!C2)/[1]Rozvaha!C2)*100 -> -20.21459683 | I3: =(([1]Rozvaha!E2-[1]Rozvaha!D2)/[1]Rozvaha!D2)*100 -> 1.318207238 | J3: =(([1]Rozvaha!F2-[1]Rozvaha!E2)/[1]Rozvaha!E2)*100 -> -1.273458445 | K3: =(([1]Rozvaha!G2-[1]Rozvaha!F2)/[1]Rozvaha!F2)*100 -> 918.4350998 | L3: =(([1]Rozvaha!H2-[1]Rozvaha!G2)/[1]Rozvaha!G2)*100 -> -87.22210386
A4: A. | B4: Pohledávky za upsaný vlastní kapitál | C4: =[1]Rozvaha!D3-[1]Rozvaha!C3 -> 0 | D4: =[1]Rozvaha!E3-[1]Rozvaha!D3 -> 0 | E4: =[1]Rozvaha!F3-[1]Rozvaha!E3 -> 0 | F4: =[1]Rozvaha!G3-[1]Rozvaha!F3 -> 0 | G4: =[1]Rozvaha!H3-[1]Rozvaha!G3 -> 0 | H4: =(([1]Rozvaha!D3-[1]Rozvaha!C3)/[1]Rozvaha!C3)*100 ->  | I4: =(([1]Rozvaha!E3-[1]Rozvaha!D3)/[1]Rozvaha!D3)*100 ->  | J4: =(([1]Rozvaha!F3-[1]Rozvaha!E3)/[1]Rozvaha!E3)*100 ->  | K4: =(([1]Rozvaha!G3-[1]Rozvaha!F3)/[1]Rozvaha!F3)*100 ->  | L4: =(([1]Rozvaha!H3-[1]Rozvaha!G3)/[1]Rozvaha!G3)*100 -> 
A5: B. | B5: Stálá aktiva | C5: =[1]Rozvaha!D4-[1]Rozvaha!C4 -> -487 | D5: =[1]Rozvaha!E4-[1]Rozvaha!D4 -> -1036 | E5: =[1]Rozvaha!F4-[1]Rozvaha!E4 -> -911 | F5: =[1]Rozvaha!G4-[1]Rozvaha!F4 -> 355499 | G5: =[1]Rozvaha!H4-[1]Rozvaha!G4 -> -357857 | H5: =(([1]Rozvaha!D4-[1]Rozvaha!C4)/[1]Rozvaha!C4)*100 -> -4.05326675 | I5: =(([1]Rozvaha!E4-[1]Rozvaha!D4)/[1]Rozvaha!D4)*100 -> -8.986814712 | J5: =(([1]Rozvaha!F4-[1]Rozvaha!E4)/[1]Rozvaha!E4)*100 -> -8.682805947 | K5: =(([1]Rozvaha!G4-[1]Rozvaha!F4)/[1]Rozvaha!F4)*100 -> 3710.458199 | L5: =(([1]Rozvaha!H4-[1]Rozvaha!G4)/[1]Rozvaha!G4)*100 -> -98.02152953
A6: B. I. | B6: Dlouhodobý nehmotný majetek | C6: =[1]Rozvaha!D5-[1]Rozvaha!C5 -> -42 | D6: =[1]Rozvaha!E5-[1]Rozvaha!D5 -> 0 | E6: =[1]Rozvaha!F5-[1]Rozvaha!E5 -> 0 | F6: =[1]Rozvaha!G5-[1]Rozvaha!F5 -> 18182 | G6: =[1]Rozvaha!H5-[1]Rozvaha!G5 -> -18182 | H6: =(([1]Rozvaha!D5-[1]Rozvaha!C5)/[1]Rozvaha!C5)*100 -> -100 | I6: =(([1]Rozvaha!E5-[1]Rozvaha!D5)/[1]Rozvaha!D5)*100 ->  | J6: =(([1]Rozvaha!F5-[1]Rozvaha!E5)/[1]Rozvaha!E5)*100 ->  | K6: =(([1]Rozvaha!G5-[1]Rozvaha!F5)/[1]Rozvaha!F5)*100 ->  | L6: =(([1]Rozvaha!H5-[1]Rozvaha!G5)/[1]Rozvaha!G5)*100 -> -100
A7: 1 | B7: Zřizovací výdaje | C7: =[1]Rozvaha!D6-[1]Rozvaha!C6 -> 0 | D7: =[1]Rozvaha!E6-[1]Rozvaha!D6 -> 0 | E7: =[1]Rozvaha!F6-[1]Rozvaha!E6 -> 0 | F7: =[1]Rozvaha!G6-[1]Rozvaha!F6 -> 0 | G7: =[1]Rozvaha!H6-[1]Rozvaha!G6 -> 0 | H7: =(([1]Rozvaha!D6-[1]Rozvaha!C6)/[1]Rozvaha!C6)*100 ->  | I7: =(([1]Rozvaha!E6-[1]Rozvaha!D6)/[1]Rozvaha!D6)*100 ->  | J7: =(([1]Rozvaha!F6-[1]Rozvaha!E6)/[1]Rozvaha!E6)*100 ->  | K7: =(([1]Rozvaha!G6-[1]Rozvaha!F6)/[1]Rozvaha!F6)*100 ->  | L7: =(([1]Rozvaha!H6-[1]Rozvaha!G6)/[1]Rozvaha!G6)*100 -> 
A8: 2 | B8: Nehmotné výsledky výzkumu a vývoje | C8: =[1]Rozvaha!D7-[1]Rozvaha!C7 -> 0 | D8: =[1]Rozvaha!E7-[1]Rozvaha!D7 -> 0 | E8: =[1]Rozvaha!F7-[1]Rozvaha!E7 -> 0 | F8: =[1]Rozvaha!G7-[1]Rozvaha!F7 -> 0 | G8: =[1]Rozvaha!H7-[1]Rozvaha!G7 -> 0 | H8: =(([1]Rozvaha!D7-[1]Rozvaha!C7)/[1]Rozvaha!C7)*100 ->  | I8: =(([1]Rozvaha!E7-[1]Rozvaha!D7)/[1]Rozvaha!D7)*100 ->  | J8: =(([1]Rozvaha!F7-[1]Rozvaha!E7)/[1]Rozvaha!E7)*100 ->  | K8: =(([1]Rozvaha!G7-[1]Rozvaha!F7)/[1]Rozvaha!F7)*100 ->  | L8: =(([1]Rozvaha!H7-[1]Rozvaha!G7)/[1]Rozvaha!G7)*100 -> 
A9: 3 | B9: Software | C9: =[1]Rozvaha!D8-[1]Rozvaha!C8 -> -42 | D9: =[1]Rozvaha!E8-[1]Rozvaha!D8 -> 0 | E9: =[1]Rozvaha!F8-[1]Rozvaha!E8 -> 0 | F9: =[1]Rozvaha!G8-[1]Rozvaha!F8 -> 0 | G9: =[1]Rozvaha!H8-[1]Rozvaha!G8 -> 0 | H9: =(([1]Rozvaha!D8-[1]Rozvaha!C8)/[1]Rozvaha!C8)*100 -> -100 | I9: =(([1]Rozvaha!E8-[1]Rozvaha!D8)/[1]Rozvaha!D8)*100 ->  | J9: =(([1]Rozvaha!F8-[1]Rozvaha!E8)/[1]Rozvaha!E8)*100 ->  | K9: =(([1]Rozvaha!G8-[1]Rozvaha!F8)/[1]Rozvaha!F8)*100 ->  | L9: =(([1]Rozvaha!H8-[1]Rozvaha!G8)/[1]Rozvaha!G8)*100 -> 
A10: 4 | B10: Ocenitená práva | C10: =[1]Rozvaha!D9-[1]Rozvaha!C9 -> 0 | D10: =[1]Rozvaha!E9-[1]Rozvaha!D9 -> 0 | E10: =[1]Rozvaha!F9-[1]Rozvaha!E9 -> 0 | F10: =[1]Rozvaha!G9-[1]Rozvaha!F9 -> 18182 | G10: =[1]Rozvaha!H9-[1]Rozvaha!G9 -> -18182 | H10: =(([1]Rozvaha!D9-[1]Rozvaha!C9)/[1]Rozvaha!C9)*100 ->  | I10: =(([1]Rozvaha!E9-[1]Rozvaha!D9)/[1]Rozvaha!D9)*100 ->  | J10: =(([1]Rozvaha!F9-[1]Rozvaha!E9)/[1]Rozvaha!E9)*100 ->  | K10: =(([1]Rozvaha!G9-[1]Rozvaha!F9)/[1]Rozvaha!F9)*100 ->  | L10: =(([1]Rozvaha!H9-[1]Rozvaha!G9)/[1]Rozvaha!G9)*100 -> -100
A11: 5 | B11: Goodwill | C11: =[1]Rozvaha!D10-[1]Rozvaha!C10 -> 0 | D11: =[1]Rozvaha!E10-[1]Rozvaha!D10 -> 0 | E11: =[1]Rozvaha!F10-[1]Rozvaha!E10 -> 0 | F11: =[1]Rozvaha!G10-[1]Rozvaha!F10 -> 0 | G11: =[1]Rozvaha!H10-[1]Rozvaha!G10 -> 0 | H11: =(([1]Rozvaha!D10-[1]Rozvaha!C10)/[1]Rozvaha!C10)*100 ->  | I11: =(([1]Rozvaha!E10-[1]Rozvaha!D10)/[1]Rozvaha!D10)*100 ->  | J11: =(([1]Rozvaha!F10-[1]Rozvaha!E10)/[1]Rozvaha!E10)*100 ->  | K11: =(([1]Rozvaha!G10-[1]Rozvaha!F10)/[1]Rozvaha!F10)*100 ->  | L11: =(([1]Rozvaha!H10-[1]Rozvaha!G10)/[1]Rozvaha!G10)*100 -> 
A12: 6 | B12: Jiný dlouhodobý nehmotný majetek | C12: =[1]Rozvaha!D11-[1]Rozvaha!C11 -> 0 | D12: =[1]Rozvaha!E11-[1]Rozvaha!D11 -> 0 | E12: =[1]Rozvaha!F11-[1]Rozvaha!E11 -> 0 | F12: =[1]Rozvaha!G11-[1]Rozvaha!F11 -> 0 | G12: =[1]Rozvaha!H11-[1]Rozvaha!G11 -> 0 | H12: =(([1]Rozvaha!D11-[1]Rozvaha!C11)/[1]Rozvaha!C11)*100 ->  | I12: =(([1]Rozvaha!E11-[1]Rozvaha!D11)/[1]Rozvaha!D11)*100 ->  | J12: =(([1]Rozvaha!F11-[1]Rozvaha!E11)/[1]Rozvaha!E11)*100 ->  | K12: =(([1]Rozvaha!G11-[1]Rozvaha!F11)/[1]Rozvaha!F11)*100 ->  | L12: =(([1]Rozvaha!H11-[1]Rozvaha!G11)/[1]Rozvaha!G11)*100 -> 
A13: 7 | B13: Nedokončený dlouhodobý nehmotný majetek | C13: =[1]Rozvaha!D12-[1]Rozvaha!C12 -> 0 | D13: =[1]Rozvaha!E12-[1]Rozvaha!D12 -> 0 | E13: =[1]Rozvaha!F12-[1]Rozvaha!E12 -> 0 | F13: =[1]Rozvaha!G12-[1]Rozvaha!F12 -> 0 | G13: =[1]Rozvaha!H12-[1]Rozvaha!G12 -> 0 | H13: =(([1]Rozvaha!D12-[1]Rozvaha!C12)/[1]Rozvaha!C12)*100 ->  | I13: =(([1]Rozvaha!E12-[1]Rozvaha!D12)/[1]Rozvaha!D12)*100 ->  | J13: =(([1]Rozvaha!F12-[1]Rozvaha!E12)/[1]Rozvaha!E12)*100 ->  | K13: =(([1]Rozvaha!G12-[1]Rozvaha!F12)/[1]Rozvaha!F12)*100 ->  | L13: =(([1]Rozvaha!H12-[1]Rozvaha!G12)/[1]Rozvaha!G12)*100 -> 
A14: 8 | B14: Poskytnuté zálohy na dlouhodobý nehmotný majetek | C14: =[1]Rozvaha!D13-[1]Rozvaha!C13 -> 0 | D14: =[1]Rozvaha!E13-[1]Rozvaha!D13 -> 0 | E14: =[1]Rozvaha!F13-[1]Rozvaha!E13 -> 0 | F14: =[1]Rozvaha!G13-[1]Rozvaha!F13 -> 0 | G14: =[1]Rozvaha!H13-[1]Rozvaha!G13 -> 0 | H14: =(([1]Rozvaha!D13-[1]Rozvaha!C13)/[1]Rozvaha!C13)*100 ->  | I14: =(([1]Rozvaha!E13-[1]Rozvaha!D13)/[1]Rozvaha!D13)*100 ->  | J14: =(([1]Rozvaha!F13-[1]Rozvaha!E13)/[1]Rozvaha!E13)*100 ->  | K14: =(([1]Rozvaha!G13-[1]Rozvaha!F13)/[1]Rozvaha!F13)*100 ->  | L14: =(([1]Rozvaha!H13-[1]Rozvaha!G13)/[1]Rozvaha!G13)*100 -> 
A15: B. II. | B15: Dlouhodobý hmotný majetek | C15: =[1]Rozvaha!D14-[1]Rozvaha!C14 -> -445 | D15: =[1]Rozvaha!E14-[1]Rozvaha!D14 -> -1036 | E15: =[1]Rozvaha!F14-[1]Rozvaha!E14 -> -911 | F15: =[1]Rozvaha!G14-[1]Rozvaha!F14 -> 63931 | G15: =[1]Rozvaha!H14-[1]Rozvaha!G14 -> -66289 | H15: =(([1]Rozvaha!D14-[1]Rozvaha!C14)/[1]Rozvaha!C14)*100 -> -3.716695899 | I15: =(([1]Rozvaha!E14-[1]Rozvaha!D14)/[1]Rozvaha!D14)*100 -> -8.986814712 | J15: =(([1]Rozvaha!F14-[1]Rozvaha!E14)/[1]Rozvaha!E14)*100 -> -8.682805947 | K15: =(([1]Rozvaha!G14-[1]Rozvaha!F14)/[1]Rozvaha!F14)*100 -> 667.2685523 | L15: =(([1]Rozvaha!H14-[1]Rozvaha!G14)/[1]Rozvaha!G14)*100 -> -90.1743933
A16: 1 | B16: Pozemky | C16: =[1]Rozvaha!D15-[1]Rozvaha!C15 -> 0 | D16: =[1]Rozvaha!E15-[1]Rozvaha!D15 -> 0 | E16: =[1]Rozvaha!F15-[1]Rozvaha!E15 -> 0 | F16: =[1]Rozvaha!G15-[1]Rozvaha!F15 -> 0 | G16: =[1]Rozvaha!H15-[1]Rozvaha!G15 -> 6540 | H16: =(([1]Rozvaha!D15-[1]Rozvaha!C15)/[1]Rozvaha!C15)*100 -> 0 | I16: =(([1]Rozvaha!E15-[1]Rozvaha!D15)/[1]Rozvaha!D15)*100 -> 0 | J16: =(([1]Rozvaha!F15-[1]Rozvaha!E15)/[1]Rozvaha!E15)*100 -> 0 | K16: =(([1]Rozvaha!G15-[1]Rozvaha!F15)/[1]Rozvaha!F15)*100 -> 0 | L16: =(([1]Rozvaha!H15-[1]Rozvaha!G15)/[1]Rozvaha!G15)*100 -> 408.2397004
A17: 2 | B17: Stavby | C17: =[1]Rozvaha!D16-[1]Rozvaha!C16 -> 243 | D17: =[1]Rozvaha!E16-[1]Rozvaha!D16 -> -506 | E17: =[1]Rozvaha!F16-[1]Rozvaha!E16 -> -504 | F17: =[1]Rozvaha!G16-[1]Rozvaha!F16 -> -308 | G17: =[1]Rozvaha!H16-[1]Rozvaha!G16 -> -5443 | H17: =(([1]Rozvaha!D16-[1]Rozvaha!C16)/[1]Rozvaha!C16)*100 -> 2.992610837 | I17: =(([1]Rozvaha!E16-[1]Rozvaha!D16)/[1]Rozvaha!D16)*100 -> -6.050460361 | J17: =(([1]Rozvaha!F16-[1]Rozvaha!E16)/[1]Rozvaha!E16)*100 -> -6.414662085 | K17: =(([1]Rozvaha!G16-[1]Rozvaha!F16)/[1]Rozvaha!F16)*100 -> -4.18876649 | L17: =(([1]Rozvaha!H16-[1]Rozvaha!G16)/[1]Rozvaha!G16)*100 -> -77.26046842
A18: 3 | B18: Samostatné movité věci a soubory movitých věcí | C18: =[1]Rozvaha!D17-[1]Rozvaha!C17 -> -689 | D18: =[1]Rozvaha!E17-[1]Rozvaha!D17 -> -529 | E18: =[1]Rozvaha!F17-[1]Rozvaha!E17 -> -408 | F18: =[1]Rozvaha!G17-[1]Rozvaha!F17 -> 17158 | G18: =[1]Rozvaha!H17-[1]Rozvaha!G17 -> -11207 | H18: =(([1]Rozvaha!D17-[1]Rozvaha!C17)/[1]Rozvaha!C17)*100 -> -31.10609481 | I18: =(([1]Rozvaha!E17-[1]Rozvaha!D17)/[1]Rozvaha!D17)*100 -> -34.66579292 | J18: =(([1]Rozvaha!F17-[1]Rozvaha!E17)/[1]Rozvaha!E17)*100 -> -40.9227683 | K18: =(([1]Rozvaha!G17-[1]Rozvaha!F17)/[1]Rozvaha!F17)*100 -> 2913.073005 | L18: =(([1]Rozvaha!H17-[1]Rozvaha!G17)/[1]Rozvaha!G17)*100 -> -63.14870119
A19: 4 | B19: Pěstitelské celky trvalých porostů | C19: =[1]Rozvaha!D18-[1]Rozvaha!C18 -> 0 | D19: =[1]Rozvaha!E18-[1]Rozvaha!D18 -> 0 | E19: =[1]Rozvaha!F18-[1]Rozvaha!E18 -> 0 | F19: =[1]Rozvaha!G18-[1]Rozvaha!F18 -> 0 | G19: =[1]Rozvaha!H18-[1]Rozvaha!G18 -> 497 | H19: =(([1]Rozvaha!D18-[1]Rozvaha!C18)/[1]Rozvaha!C18)*100 ->  | I19: =(([1]Rozvaha!E18-[1]Rozvaha!D18)/[1]Rozvaha!D18)*100 ->  | J19: =(([1]Rozvaha!F18-[1]Rozvaha!E18)/[1]Rozvaha!E18)*100 ->  | K19: =(([1]Rozvaha!G18-[1]Rozvaha!F18)/[1]Rozvaha!F18)*100 ->  | L19: =(([1]Rozvaha!H18-[1]Rozvaha!G18)/[1]Rozvaha!G18)*100 -> 
A20: 5 | B20: Základní stádo a tažná zvířata | C20: =[1]Rozvaha!D19-[1]Rozvaha!C19 -> 0 | D20: =[1]Rozvaha!E19-[1]Rozvaha!D19 -> 0 | E20: =[1]Rozvaha!F19-[1]Rozvaha!E19 -> 0 | F20: =[1]Rozvaha!G19-[1]Rozvaha!F19 -> 0 | G20: =[1]Rozvaha!H19-[1]Rozvaha!G19 -> 0 | H20: =(([1]Rozvaha!D19-[1]Rozvaha!C19)/[1]Rozvaha!C19)*100 ->  | I20: =(([1]Rozvaha!E19-[1]Rozvaha!D19)/[1]Rozvaha!D19)*100 ->  | J20: =(([1]Rozvaha!F19-[1]Rozvaha!E19)/[1]Rozvaha!E19)*100 ->  | K20: =(([1]Rozvaha!G19-[1]Rozvaha!F19)/[1]Rozvaha!F19)*100 ->  | L20: =(([1]Rozvaha!H19-[1]Rozvaha!G19)/[1]Rozvaha!G19)*100 -> 
A21: 6 | B21: Jiný dlouhodobý hmotný majetek | C21: =[1]Rozvaha!D20-[1]Rozvaha!C20 -> 0 | D21: =[1]Rozvaha!E20-[1]Rozvaha!D20 -> 0 | E21: =[1]Rozvaha!F20-[1]Rozvaha!E20 -> 0 | F21: =[1]Rozvaha!G20-[1]Rozvaha!F20 -> 25743 | G21: =[1]Rozvaha!H20-[1]Rozvaha!G20 -> -27159 | H21: =(([1]Rozvaha!D20-[1]Rozvaha!C20)/[1]Rozvaha!C20)*100 ->  | I21: =(([1]Rozvaha!E20-[1]Rozvaha!D20)/[1]Rozvaha!D20)*100 ->  | J21: =(([1]Rozvaha!F20-[1]Rozvaha!E20)/[1]Rozvaha!E20)*100 ->  | K21: =(([1]Rozvaha!G20-[1]Rozvaha!F20)/[1]Rozvaha!F20)*100 ->  | L21: =(([1]Rozvaha!H20-[1]Rozvaha!G20)/[1]Rozvaha!G20)*100 -> -105.5005244
A22: 7 | B22: Nedokončený dlouhodobý hmotný majetek | C22: =[1]Rozvaha!D21-[1]Rozvaha!C21 -> 1 | D22: =[1]Rozvaha!E21-[1]Rozvaha!D21 -> -1 | E22: =[1]Rozvaha!F21-[1]Rozvaha!E21 -> 1 | F22: =[1]Rozvaha!G21-[1]Rozvaha!F21 -> -37 | G22: =[1]Rozvaha!H21-[1]Rozvaha!G21 -> 0 | H22: =(([1]Rozvaha!D21-[1]Rozvaha!C21)/[1]Rozvaha!C21)*100 -> 2.777777778 | I22: =(([1]Rozvaha!E21-[1]Rozvaha!D21)/[1]Rozvaha!D21)*100 -> -2.702702703 | J22: =(([1]Rozvaha!F21-[1]Rozvaha!E21)/[1]Rozvaha!E21)*100 -> 2.777777778 | K22: =(([1]Rozvaha!G21-[1]Rozvaha!F21)/[1]Rozvaha!F21)*100 -> -100 | L22: =(([1]Rozvaha!H21-[1]Rozvaha!G21)/[1]Rozvaha!G21)*100 -> 
A23: 8 | B23: Poskytnuté zálohy na dlouhodobý hmotný majetek | C23: =[1]Rozvaha!D22-[1]Rozvaha!C22 -> 0 | D23: =[1]Rozvaha!E22-[1]Rozvaha!D22 -> 0 | E23: =[1]Rozvaha!F22-[1]Rozvaha!E22 -> 0 | F23: =[1]Rozvaha!G22-[1]Rozvaha!F22 -> 0 | G23: =[1]Rozvaha!H22-[1]Rozvaha!G22 -> -1416 | H23: =(([1]Rozvaha!D22-[1]Rozvaha!C22)/[1]Rozvaha!C22)*100 ->  | I23: =(([1]Rozvaha!E22-[1]Rozvaha!D22)/[1]Rozvaha!D22)*100 ->  | J23: =(([1]Rozvaha!F22-[1]Rozvaha!E22)/[1]Rozvaha!E22)*100 ->  | K23: =(([1]Rozvaha!G22-[1]Rozvaha!F22)/[1]Rozvaha!F22)*100 ->  | L23: =(([1]Rozvaha!H22-[1]Rozvaha!G22)/[1]Rozvaha!G22)*100 -> 
A24: 9 | B24: Oceňovací rozdíl k nabytému majetku | C24: =[1]Rozvaha!D23-[1]Rozvaha!C23 -> 0 | D24: =[1]Rozvaha!E23-[1]Rozvaha!D23 -> 0 | E24: =[1]Rozvaha!F23-[1]Rozvaha!E23 -> 0 | F24: =[1]Rozvaha!G23-[1]Rozvaha!F23 -> 21375 | G24: =[1]Rozvaha!H23-[1]Rozvaha!G23 -> -21375 | H24: =(([1]Rozvaha!D23-[1]Rozvaha!C23)/[1]Rozvaha!C23)*100 ->  | I24: =(([1]Rozvaha!E23-[1]Rozvaha!D23)/[1]Rozvaha!D23)*100 ->  | J24: =(([1]Rozvaha!F23-[1]Rozvaha!E23)/[1]Rozvaha!E23)*100 ->  | K24: =(([1]Rozvaha!G23-[1]Rozvaha!F23)/[1]Rozvaha!F23)*100 ->  | L24: =(([1]Rozvaha!H23-[1]Rozvaha!G23)/[1]Rozvaha!G23)*100 -> -100
A25: B. III. | B25: Dlouhodobý finanční majetek | C25: =[1]Rozvaha!D24-[1]Rozvaha!C24 -> 0 | D25: =[1]Rozvaha!E24-[1]Rozvaha!D24 -> 0 | E25: =[1]Rozvaha!F24-[1]Rozvaha!E24 -> 0 | F25: =[1]Rozvaha!G24-[1]Rozvaha!F24 -> 273389 | G25: =[1]Rozvaha!H24-[1]Rozvaha!G24 -> -273389 | H25: =(([1]Rozvaha!D24-[1]Rozvaha!C24)/[1]Rozvaha!C24)*100 ->  | I25: =(([1]Rozvaha!E24-[1]Rozvaha!D24)/[1]Rozvaha!D24)*100 ->  | J25: =(([1]Rozvaha!F24-[1]Rozvaha!E24)/[1]Rozvaha!E24)*100 ->  | K25: =(([1]Rozvaha!G24-[1]Rozvaha!F24)/[1]Rozvaha!F24)*100 ->  | L25: =(([1]Rozvaha!H24-[1]Rozvaha!G24)/[1]Rozvaha!G24)*100 -> -100
A26: 1 | B26: Podíly v ovládaných a řízených osobách | C26: =[1]Rozvaha!D25-[1]Rozvaha!C25 -> 0 | D26: =[1]Rozvaha!E25-[1]Rozvaha!D25 -> 0 | E26: =[1]Rozvaha!F25-[1]Rozvaha!E25 -> 0 | F26: =[1]Rozvaha!G25-[1]Rozvaha!F25 -> 273386 | G26: =[1]Rozvaha!H25-[1]Rozvaha!G25 -> -273386 | H26: =(([1]Rozvaha!D25-[1]Rozvaha!C25)/[1]Rozvaha!C25)*100 ->  | I26: =(([1]Rozvaha!E25-[1]Rozvaha!D25)/[1]Rozvaha!D25)*100 ->  | J26: =(([1]Rozvaha!F25-[1]Rozvaha!E25)/[1]Rozvaha!E25)*100 ->  | K26: =(([1]Rozvaha!G25-[1]Rozvaha!F25)/[1]Rozvaha!F25)*100 ->  | L26: =(([1]Rozvaha!H25-[1]Rozvaha!G25)/[1]Rozvaha!G25)*100 -> -100
A27: 2 | B27: Podíly v účetních jednotkách podstatným vlivem | C27: =[1]Rozvaha!D26-[1]Rozvaha!C26 -> 0 | D27: =[1]Rozvaha!E26-[1]Rozvaha!D26 -> 0 | E27: =[1]Rozvaha!F26-[1]Rozvaha!E26 -> 0 | F27: =[1]Rozvaha!G26-[1]Rozvaha!F26 -> 0 | G27: =[1]Rozvaha!H26-[1]Rozvaha!G26 -> 0 | H27: =(([1]Rozvaha!D26-[1]Rozvaha!C26)/[1]Rozvaha!C26)*100 ->  | I27: =(([1]Rozvaha!E26-[1]Rozvaha!D26)/[1]Rozvaha!D26)*100 ->  | J27: =(([1]Rozvaha!F26-[1]Rozvaha!E26)/[1]Rozvaha!E26)*100 ->  | K27: =(([1]Rozvaha!G26-[1]Rozvaha!F26)/[1]Rozvaha!F26)*100 ->  | L27: =(([1]Rozvaha!H26-[1]Rozvaha!G26)/[1]Rozvaha!G26)*100 -> 
A28: 3 | B28: Ostatní dlouhodobé cenné papíry a podíly (vklady) | C28: =[1]Rozvaha!D27-[1]Rozvaha!C27 -> 0 | D28: =[1]Rozvaha!E27-[1]Rozvaha!D27 -> 0 | E28: =[1]Rozvaha!F27-[1]Rozvaha!E27 -> 0 | F28: =[1]Rozvaha!G27-[1]Rozvaha!F27 -> 0 | G28: =[1]Rozvaha!H27-[1]Rozvaha!G27 -> 0 | H28: =(([1]Rozvaha!D27-[1]Rozvaha!C27)/[1]Rozvaha!C27)*100 ->  | I28: =(([1]Rozvaha!E27-[1]Rozvaha!D27)/[1]Rozvaha!D27)*100 ->  | J28: =(([1]Rozvaha!F27-[1]Rozvaha!E27)/[1]Rozvaha!E27)*100 ->  | K28: =(([1]Rozvaha!G27-[1]Rozvaha!F27)/[1]Rozvaha!F27)*100 ->  | L28: =(([1]Rozvaha!H27-[1]Rozvaha!G27)/[1]Rozvaha!G27)*100 -> 
A29: 4 | B29: Půjčky a úvěry - ovládající a řídící osoba, podstatný vliv | C29: =[1]Rozvaha!D28-[1]Rozvaha!C28 -> 0 | D29: =[1]Rozvaha!E28-[1]Rozvaha!D28 -> 0 | E29: =[1]Rozvaha!F28-[1]Rozvaha!E28 -> 0 | F29: =[1]Rozvaha!G28-[1]Rozvaha!F28 -> 0 | G29: =[1]Rozvaha!H28-[1]Rozvaha!G28 -> 0 | H29: =(([1]Rozvaha!D28-[1]Rozvaha!C28)/[1]Rozvaha!C28)*100 ->  | I29: =(([1]Rozvaha!E28-[1]Rozvaha!D28)/[1]Rozvaha!D28)*100 ->  | J29: =(([1]Rozvaha!F28-[1]Rozvaha!E28)/[1]Rozvaha!E28)*100 ->  | K29: =(([1]Rozvaha!G28-[1]Rozvaha!F28)/[1]Rozvaha!F28)*100 ->  | L29: =(([1]Rozvaha!H28-[1]Rozvaha!G28)/[1]Rozvaha!G28)*100 -> 
A30: 5 | B30: Jiný dlouhodobý finanční majetek | C30: =[1]Rozvaha!D29-[1]Rozvaha!C29 -> 0 | D30: =[1]Rozvaha!E29-[1]Rozvaha!D29 -> 0 | E30: =[1]Rozvaha!F29-[1]Rozvaha!E29 -> 0 | F30: =[1]Rozvaha!G29-[1]Rozvaha!F29 -> 0 | G30: =[1]Rozvaha!H29-[1]Rozvaha!G29 -> 0 | H30: =(([1]Rozvaha!D29-[1]Rozvaha!C29)/[1]Rozvaha!C29)*100 ->  | I30: =(([1]Rozvaha!E29-[1]Rozvaha!D29)/[1]Rozvaha!D29)*100 ->  | J30: =(([1]Rozvaha!F29-[1]Rozvaha!E29)/[1]Rozvaha!E29)*100 ->  | K30: =(([1]Rozvaha!G29-[1]Rozvaha!F29)/[1]Rozvaha!F29)*100 ->  | L30: =(([1]Rozvaha!H29-[1]Rozvaha!G29)/[1]Rozvaha!G29)*100 -> 
A31: 6 | B31: Pořizovaný dlouhodobý finanční majetek | C31: =[1]Rozvaha!D30-[1]Rozvaha!C30 -> 0 | D31: =[1]Rozvaha!E30-[1]Rozvaha!D30 -> 0 | E31: =[1]Rozvaha!F30-[1]Rozvaha!E30 -> 0 | F31: =[1]Rozvaha!G30-[1]Rozvaha!F30 -> 0 | G31: =[1]Rozvaha!H30-[1]Rozvaha!G30 -> 0 | H31: =(([1]Rozvaha!D30-[1]Rozvaha!C30)/[1]Rozvaha!C30)*100 ->  | I31: =(([1]Rozvaha!E30-[1]Rozvaha!D30)/[1]Rozvaha!D30)*100 ->  | J31: =(([1]Rozvaha!F30-[1]Rozvaha!E30)/[1]Rozvaha!E30)*100 ->  | K31: =(([1]Rozvaha!G30-[1]Rozvaha!F30)/[1]Rozvaha!F30)*100 ->  | L31: =(([1]Rozvaha!H30-[1]Rozvaha!G30)/[1]Rozvaha!G30)*100 -> 
C32: =[1]Rozvaha!D31-[1]Rozvaha!C31 -> 0 | D32: =[1]Rozvaha!E31-[1]Rozvaha!D31 -> 0 | E32: =[1]Rozvaha!F31-[1]Rozvaha!E31 -> 0 | F32: =[1]Rozvaha!G31-[1]Rozvaha!F31 -> 0 | G32: =[1]Rozvaha!H31-[1]Rozvaha!G31 -> 0 | H32: =(([1]Rozvaha!D31-[1]Rozvaha!C31)/[1]Rozvaha!C31)*100 ->  | I32: =(([1]Rozvaha!E31-[1]Rozvaha!D31)/[1]Rozvaha!D31)*100 ->  | J32: =(([1]Rozvaha!F31-[1]Rozvaha!E31)/[1]Rozvaha!E31)*100 ->  | K32: =(([1]Rozvaha!G31-[1]Rozvaha!F31)/[1]Rozvaha!F31)*100 ->  | L32: =(([1]Rozvaha!H31-[1]Rozvaha!G31)/[1]Rozvaha!G31)*100 -> 
C33: =[1]Rozvaha!D32-[1]Rozvaha!C32 -> 0 | D33: =[1]Rozvaha!E32-[1]Rozvaha!D32 -> 0 | E33: =[1]Rozvaha!F32-[1]Rozvaha!E32 -> 0 | F33: =[1]Rozvaha!G32-[1]Rozvaha!F32 -> 0 | G33: =[1]Rozvaha!H32-[1]Rozvaha!G32 -> 0 | H33: =(([1]Rozvaha!D32-[1]Rozvaha!C32)/[1]Rozvaha!C32)*100 ->  | I33: =(([1]Rozvaha!E32-[1]Rozvaha!D32)/[1]Rozvaha!D32)*100 ->  | J33: =(([1]Rozvaha!F32-[1]Rozvaha!E32)/[1]Rozvaha!E32)*100 ->  | K33: =(([1]Rozvaha!G32-[1]Rozvaha!F32)/[1]Rozvaha!F32)*100 ->  | L33: =(([1]Rozvaha!H32-[1]Rozvaha!G32)/[1]Rozvaha!G32)*100 -> 
C34: =[1]Rozvaha!D33-[1]Rozvaha!C33 -> 0 | D34: =[1]Rozvaha!E33-[1]Rozvaha!D33 -> 0 | E34: =[1]Rozvaha!F33-[1]Rozvaha!E33 -> 0 | F34: =[1]Rozvaha!G33-[1]Rozvaha!F33 -> 0 | G34: =[1]Rozvaha!H33-[1]Rozvaha!G33 -> 0 | H34: =(([1]Rozvaha!D33-[1]Rozvaha!C33)/[1]Rozvaha!C33)*100 ->  | I34: =(([1]Rozvaha!E33-[1]Rozvaha!D33)/[1]Rozvaha!D33)*100 ->  | J34: =(([1]Rozvaha!F33-[1]Rozvaha!E33)/[1]Rozvaha!E33)*100 ->  | K34: =(([1]Rozvaha!G33-[1]Rozvaha!F33)/[1]Rozvaha!F33)*100 ->  | L34: =(([1]Rozvaha!H33-[1]Rozvaha!G33)/[1]Rozvaha!G33)*100 -> 
A35: 1 | B35: Materiál | C35: =[1]Rozvaha!D34-[1]Rozvaha!C34 -> -539 | D35: =[1]Rozvaha!E34-[1]Rozvaha!D34 -> -678 | E35: =[1]Rozvaha!F34-[1]Rozvaha!E34 -> -100 | F35: =[1]Rozvaha!G34-[1]Rozvaha!F34 -> 84547 | G35: =[1]Rozvaha!H34-[1]Rozvaha!G34 -> -83081 | H35: =(([1]Rozvaha!D34-[1]Rozvaha!C34)/[1]Rozvaha!C34)*100 -> -15.44855259 | I35: =(([1]Rozvaha!E34-[1]Rozvaha!D34)/[1]Rozvaha!D34)*100 -> -22.98305085 | J35: =(([1]Rozvaha!F34-[1]Rozvaha!E34)/[1]Rozvaha!E34)*100 -> -4.401408451 | K35: =(([1]Rozvaha!G34-[1]Rozvaha!F34)/[1]Rozvaha!F34)*100 -> 3892.587477 | L35: =(([1]Rozvaha!H34-[1]Rozvaha!G34)/[1]Rozvaha!G34)*100 -> -95.80484092
A36: 2 | B36: Nedokončená výroba a polotovary | C36: =[1]Rozvaha!D35-[1]Rozvaha!C35 -> -2800 | D36: =[1]Rozvaha!E35-[1]Rozvaha!D35 -> 13029 | E36: =[1]Rozvaha!F35-[1]Rozvaha!E35 -> -5954 | F36: =[1]Rozvaha!G35-[1]Rozvaha!F35 -> 96267 | G36: =[1]Rozvaha!H35-[1]Rozvaha!G35 -> -96819 | H36: =(([1]Rozvaha!D35-[1]Rozvaha!C35)/[1]Rozvaha!C35)*100 -> -47.30528806 | I36: =(([1]Rozvaha!E35-[1]Rozvaha!D35)/[1]Rozvaha!D35)*100 -> 417.7300417 | J36: =(([1]Rozvaha!F35-[1]Rozvaha!E35)/[1]Rozvaha!E35)*100 -> -36.87143919 | K36: =(([1]Rozvaha!G35-[1]Rozvaha!F35)/[1]Rozvaha!F35)*100 -> 944.3496174 | L36: =(([1]Rozvaha!H35-[1]Rozvaha!G35)/[1]Rozvaha!G35)*100 -> -90.94316228
A37: 3 | B37: Výrobky | C37: =[1]Rozvaha!D36-[1]Rozvaha!C36 -> -13 | D37: =[1]Rozvaha!E36-[1]Rozvaha!D36 -> -4 | E37: =[1]Rozvaha!F36-[1]Rozvaha!E36 -> -1 | F37: =[1]Rozvaha!G36-[1]Rozvaha!F36 -> 81243 | G37: =[1]Rozvaha!H36-[1]Rozvaha!G36 -> -80659 | H37: =(([1]Rozvaha!D36-[1]Rozvaha!C36)/[1]Rozvaha!C36)*100 -> -54.16666667 | I37: =(([1]Rozvaha!E36-[1]Rozvaha!D36)/[1]Rozvaha!D36)*100 -> -36.36363636 | J37: =(([1]Rozvaha!F36-[1]Rozvaha!E36)/[1]Rozvaha!E36)*100 -> -14.28571429 | K37: =(([1]Rozvaha!G36-[1]Rozvaha!F36)/[1]Rozvaha!F36)*100 -> 1354050 | L37: =(([1]Rozvaha!H36-[1]Rozvaha!G36)/[1]Rozvaha!G36)*100 -> -99.27383722
A38: 4 | B38: Zvířata | C38: =[1]Rozvaha!D37-[1]Rozvaha!C37 -> 0 | D38: =[1]Rozvaha!E37-[1]Rozvaha!D37 -> 0 | E38: =[1]Rozvaha!F37-[1]Rozvaha!E37 -> 0 | F38: =[1]Rozvaha!G37-[1]Rozvaha!F37 -> 0 | G38: =[1]Rozvaha!H37-[1]Rozvaha!G37 -> 87 | H38: =(([1]Rozvaha!D37-[1]Rozvaha!C37)/[1]Rozvaha!C37)*100 ->  | I38: =(([1]Rozvaha!E37-[1]Rozvaha!D37)/[1]Rozvaha!D37)*100 ->  | J38: =(([1]Rozvaha!F37-[1]Rozvaha!E37)/[1]Rozvaha!E37)*100 ->  | K38: =(([1]Rozvaha!G37-[1]Rozvaha!F37)/[1]Rozvaha!F37)*100 ->  | L38: =(([1]Rozvaha!H37-[1]Rozvaha!G37)/[1]Rozvaha!G37)*100 -> 
A39: 5 | B39: Zboží | C39: =[1]Rozvaha!D38-[1]Rozvaha!C38 -> -24 | D39: =[1]Rozvaha!E38-[1]Rozvaha!D38 -> -92 | E39: =[1]Rozvaha!F38-[1]Rozvaha!E38 -> -39 | F39: =[1]Rozvaha!G38-[1]Rozvaha!F38 -> 7846 | G39: =[1]Rozvaha!H38-[1]Rozvaha!G38 -> -8678 | H39: =(([1]Rozvaha!D38-[1]Rozvaha!C38)/[1]Rozvaha!C38)*100 -> -1.610738255 | I39: =(([1]Rozvaha!E38-[1]Rozvaha!D38)/[1]Rozvaha!D38)*100 -> -6.275579809 | J39: =(([1]Rozvaha!F38-[1]Rozvaha!E38)/[1]Rozvaha!E38)*100 -> -2.838427948 | K39: =(([1]Rozvaha!G38-[1]Rozvaha!F38)/[1]Rozvaha!F38)*100 -> 587.7153558 | L39: =(([1]Rozvaha!H38-[1]Rozvaha!G38)/[1]Rozvaha!G38)*100 -> -94.52129398
A40: 6 | B40: Poskytnuté zálohy na zásoby | C40: =[1]Rozvaha!D39-[1]Rozvaha!C39 -> 167 | D40: =[1]Rozvaha!E39-[1]Rozvaha!D39 -> -167 | E40: =[1]Rozvaha!F39-[1]Rozvaha!E39 -> 0 | F40: =[1]Rozvaha!G39-[1]Rozvaha!F39 -> 0 | G40: =[1]Rozvaha!H39-[1]Rozvaha!G39 -> 0 | H40: =(([1]Rozvaha!D39-[1]Rozvaha!C39)/[1]Rozvaha!C39)*100 ->  | I40: =(([1]Rozvaha!E39-[1]Rozvaha!D39)/[1]Rozvaha!D39)*100 -> -100 | J40: =(([1]Rozvaha!F39-[1]Rozvaha!E39)/[1]Rozvaha!E39)*100 ->  | K40: =(([1]Rozvaha!G39-[1]Rozvaha!F39)/[1]Rozvaha!F39)*100 ->  | L40: =(([1]Rozvaha!H39-[1]Rozvaha!G39)/[1]Rozvaha!G39)*100 -> 
A41: C. II. | B41: Dlouhodobé pohledávky | C41: =[1]Rozvaha!D40-[1]Rozvaha!C40 -> 57 | D41: =[1]Rozvaha!E40-[1]Rozvaha!D40 -> 23 | E41: =[1]Rozvaha!F40-[1]Rozvaha!E40 -> -23 | F41: =[1]Rozvaha!G40-[1]Rozvaha!F40 -> -3 | G41: =[1]Rozvaha!H40-[1]Rozvaha!G40 -> -5 | H41: =(([1]Rozvaha!D40-[1]Rozvaha!C40)/[1]Rozvaha!C40)*100 -> 1140 | I41: =(([1]Rozvaha!E40-[1]Rozvaha!D40)/[1]Rozvaha!D40)*100 -> 37.09677419 | J41: =(([1]Rozvaha!F40-[1]Rozvaha!E40)/[1]Rozvaha!E40)*100 -> -27.05882353 | K41: =(([1]Rozvaha!G40-[1]Rozvaha!F40)/[1]Rozvaha!F40)*100 -> -4.838709677 | L41: =(([1]Rozvaha!H40-[1]Rozvaha!G40)/[1]Rozvaha!G40)*100 -> -8.474576271
A42: 1 | B42: Pohledávky z obchodních vztahů (z obchodního styku) | C42: =[1]Rozvaha!D41-[1]Rozvaha!C41 -> 0 | D42: =[1]Rozvaha!E41-[1]Rozvaha!D41 -> 0 | E42: =[1]Rozvaha!F41-[1]Rozvaha!E41 -> 0 | F42: =[1]Rozvaha!G41-[1]Rozvaha!F41 -> 0 | G42: =[1]Rozvaha!H41-[1]Rozvaha!G41 -> 0 | H42: =(([1]Rozvaha!D41-[1]Rozvaha!C41)/[1]Rozvaha!C41)*100 ->  | I42: =(([1]Rozvaha!E41-[1]Rozvaha!D41)/[1]Rozvaha!D41)*100 ->  | J42: =(([1]Rozvaha!F41-[1]Rozvaha!E41)/[1]Rozvaha!E41)*100 ->  | K42: =(([1]Rozvaha!G41-[1]Rozvaha!F41)/[1]Rozvaha!F41)*100 ->  | L42: =(([1]Rozvaha!H41-[1]Rozvaha!G41)/[1]Rozvaha!G41)*100 -> 
A43: 2 | B43: Pohledávky - ovládající a řídící osoba | C43: =[1]Rozvaha!D42-[1]Rozvaha!C42 -> 0 | D43: =[1]Rozvaha!E42-[1]Rozvaha!D42 -> 0 | E43: =[1]Rozvaha!F42-[1]Rozvaha!E42 -> 0 | F43: =[1]Rozvaha!G42-[1]Rozvaha!F42 -> 0 | G43: =[1]Rozvaha!H42-[1]Rozvaha!G42 -> 0 | H43: =(([1]Rozvaha!D42-[1]Rozvaha!C42)/[1]Rozvaha!C42)*100 ->  | I43: =(([1]Rozvaha!E42-[1]Rozvaha!D42)/[1]Rozvaha!D42)*100 ->  | J43: =(([1]Rozvaha!F42-[1]Rozvaha!E42)/[1]Rozvaha!E42)*100 ->  | K43: =(([1]Rozvaha!G42-[1]Rozvaha!F42)/[1]Rozvaha!F42)*100 ->  | L43: =(([1]Rozvaha!H42-[1]Rozvaha!G42)/[1]Rozvaha!G42)*100 -> 
A44: 3 | B44: Pohledávky - podstatný vliv | C44: =[1]Rozvaha!D43-[1]Rozvaha!C43 -> 0 | D44: =[1]Rozvaha!E43-[1]Rozvaha!D43 -> 0 | E44: =[1]Rozvaha!F43-[1]Rozvaha!E43 -> 0 | F44: =[1]Rozvaha!G43-[1]Rozvaha!F43 -> 0 | G44: =[1]Rozvaha!H43-[1]Rozvaha!G43 -> 0 | H44: =(([1]Rozvaha!D43-[1]Rozvaha!C43)/[1]Rozvaha!C43)*100 ->  | I44: =(([1]Rozvaha!E43-[1]Rozvaha!D43)/[1]Rozvaha!D43)*100 ->  | J44: =(([1]Rozvaha!F43-[1]Rozvaha!E43)/[1]Rozvaha!E43)*100 ->  | K44: =(([1]Rozvaha!G43-[1]Rozvaha!F43)/[1]Rozvaha!F43)*100 ->  | L44: =(([1]Rozvaha!H43-[1]Rozvaha!G43)/[1]Rozvaha!G43)*100 -> 
A45: 4 | B45: Pohledávky za společníky, členy družstva a za účastníky sdružení | C45: =[1]Rozvaha!D44-[1]Rozvaha!C44 -> 0 | D45: =[1]Rozvaha!E44-[1]Rozvaha!D44 -> 0 | E45: =[1]Rozvaha!F44-[1]Rozvaha!E44 -> 0 | F45: =[1]Rozvaha!G44-[1]Rozvaha!F44 -> 0 | G45: =[1]Rozvaha!H44-[1]Rozvaha!G44 -> 0 | H45: =(([1]Rozvaha!D44-[1]Rozvaha!C44)/[1]Rozvaha!C44)*100 ->  | I45: =(([1]Rozvaha!E44-[1]Rozvaha!D44)/[1]Rozvaha!D44)*100 ->  | J45: =(([1]Rozvaha!F44-[1]Rozvaha!E44)/[1]Rozvaha!E44)*100 ->  | K45: =(([1]Rozvaha!G44-[1]Rozvaha!F44)/[1]Rozvaha!F44)*100 ->  | L45: =(([1]Rozvaha!H44-[1]Rozvaha!G44)/[1]Rozvaha!G44)*100 -> 
A46: 5 | B46: Dlouhodobé poskytnuté zálohy | C46: =[1]Rozvaha!D45-[1]Rozvaha!C45 -> 57 | D46: =[1]Rozvaha!E45-[1]Rozvaha!D45 -> 23 | E46: =[1]Rozvaha!F45-[1]Rozvaha!E45 -> -23 | F46: =[1]Rozvaha!G45-[1]Rozvaha!F45 -> -3 | G46: =[1]Rozvaha!H45-[1]Rozvaha!G45 -> -5 | H46: =(([1]Rozvaha!D45-[1]Rozvaha!C45)/[1]Rozvaha!C45)*100 -> 1140 | I46: =(([1]Rozvaha!E45-[1]Rozvaha!D45)/[1]Rozvaha!D45)*100 -> 37.09677419 | J46: =(([1]Rozvaha!F45-[1]Rozvaha!E45)/[1]Rozvaha!E45)*100 -> -27.05882353 | K46: =(([1]Rozvaha!G45-[1]Rozvaha!F45)/[1]Rozvaha!F45)*100 -> -4.838709677 | L46: =(([1]Rozvaha!H45-[1]Rozvaha!G45)/[1]Rozvaha!G45)*100 -> -8.474576271
A47: 6 | B47: Dohadné účty aktivní | C47: =[1]Rozvaha!D46-[1]Rozvaha!C46 -> 0 | D47: =[1]Rozvaha!E46-[1]Rozvaha!D46 -> 0 | E47: =[1]Rozvaha!F46-[1]Rozvaha!E46 -> 0 | F47: =[1]Rozvaha!G46-[1]Rozvaha!F46 -> 0 | G47: =[1]Rozvaha!H46-[1]Rozvaha!G46 -> 0 | H47: =(([1]Rozvaha!D46-[1]Rozvaha!C46)/[1]Rozvaha!C46)*100 ->  | I47: =(([1]Rozvaha!E46-[1]Rozvaha!D46)/[1]Rozvaha!D46)*100 ->  | J47: =(([1]Rozvaha!F46-[1]Rozvaha!E46)/[1]Rozvaha!E46)*100 ->  | K47: =(([1]Rozvaha!G46-[1]Rozvaha!F46)/[1]Rozvaha!F46)*100 ->  | L47: =(([1]Rozvaha!H46-[1]Rozvaha!G46)/[1]Rozvaha!G46)*100 -> 
A48: 7 | B48: Jiné pohledávky | C48: =[1]Rozvaha!D47-[1]Rozvaha!C47 -> 0 | D48: =[1]Rozvaha!E47-[1]Rozvaha!D47 -> 0 | E48: =[1]Rozvaha!F47-[1]Rozvaha!E47 -> 0 | F48: =[1]Rozvaha!G47-[1]Rozvaha!F47 -> 0 | G48: =[1]Rozvaha!H47-[1]Rozvaha!G47 -> 0 | H48: =(([1]Rozvaha!D47-[1]Rozvaha!C47)/[1]Rozvaha!C47)*100 ->  | I48: =(([1]Rozvaha!E47-[1]Rozvaha!D47)/[1]Rozvaha!D47)*100 ->  | J48: =(([1]Rozvaha!F47-[1]Rozvaha!E47)/[1]Rozvaha!E47)*100 ->  | K48: =(([1]Rozvaha!G47-[1]Rozvaha!F47)/[1]Rozvaha!F47)*100 ->  | L48: =(([1]Rozvaha!H47-[1]Rozvaha!G47)/[1]Rozvaha!G47)*100 -> 
A49: 8 | B49: Odložená daňová pohledávka | C49: =[1]Rozvaha!D48-[1]Rozvaha!C48 -> 0 | D49: =[1]Rozvaha!E48-[1]Rozvaha!D48 -> 0 | E49: =[1]Rozvaha!F48-[1]Rozvaha!E48 -> 0 | F49: =[1]Rozvaha!G48-[1]Rozvaha!F48 -> 0 | G49: =[1]Rozvaha!H48-[1]Rozvaha!G48 -> 0 | H49: =(([1]Rozvaha!D48-[1]Rozvaha!C48)/[1]Rozvaha!C48)*100 ->  | I49: =(([1]Rozvaha!E48-[1]Rozvaha!D48)/[1]Rozvaha!D48)*100 ->  | J49: =(([1]Rozvaha!F48-[1]Rozvaha!E48)/[1]Rozvaha!E48)*100 ->  | K49: =(([1]Rozvaha!G48-[1]Rozvaha!F48)/[1]Rozvaha!F48)*100 ->  | L49: =(([1]Rozvaha!H48-[1]Rozvaha!G48)/[1]Rozvaha!G48)*100 -> 
A50: C. III. | B50: Krátkodobé pohledávky | C50: =[1]Rozvaha!D49-[1]Rozvaha!C49 -> -8101 | D50: =[1]Rozvaha!E49-[1]Rozvaha!D49 -> 5042 | E50: =[1]Rozvaha!F49-[1]Rozvaha!E49 -> 1343 | F50: =[1]Rozvaha!G49-[1]Rozvaha!F49 -> 64823 | G50: =[1]Rozvaha!H49-[1]Rozvaha!G49 -> -38502 | H50: =(([1]Rozvaha!D49-[1]Rozvaha!C49)/[1]Rozvaha!C49)*100 -> -18.33842671 | I50: =(([1]Rozvaha!E49-[1]Rozvaha!D49)/[1]Rozvaha!D49)*100 -> 13.97682541 | J50: =(([1]Rozvaha!F49-[1]Rozvaha!E49)/[1]Rozvaha!E49)*100 -> 3.266368324 | K50: =(([1]Rozvaha!G49-[1]Rozvaha!F49)/[1]Rozvaha!F49)*100 -> 152.6719894 | L50: =(([1]Rozvaha!H49-[1]Rozvaha!G49)/[1]Rozvaha!G49)*100 -> -35.88859268
A51: 1 | B51: Pohledávky z obchodních vztahů (z obchodního styku) | C51: =[1]Rozvaha!D50-[1]Rozvaha!C50 -> -3043 | D51: =[1]Rozvaha!E50-[1]Rozvaha!D50 -> 2409 | E51: =[1]Rozvaha!F50-[1]Rozvaha!E50 -> 1701 | F51: =[1]Rozvaha!G50-[1]Rozvaha!F50 -> -3401 | G51: =[1]Rozvaha!H50-[1]Rozvaha!G50 -> 32138 | H51: =(([1]Rozvaha!D50-[1]Rozvaha!C50)/[1]Rozvaha!C50)*100 -> -7.903485533 | I51: =(([1]Rozvaha!E50-[1]Rozvaha!D50)/[1]Rozvaha!D50)*100 -> 6.793761809 | J51: =(([1]Rozvaha!F50-[1]Rozvaha!E50)/[1]Rozvaha!E50)*100 -> 4.491919299 | K51: =(([1]Rozvaha!G50-[1]Rozvaha!F50)/[1]Rozvaha!F50)*100 -> -8.595112335 | L51: =(([1]Rozvaha!H50-[1]Rozvaha!G50)/[1]Rozvaha!G50)*100 -> 88.85755364
A52: 2 | B52: Pohledávky - ovládající a řídící osoba | C52: =[1]Rozvaha!D51-[1]Rozvaha!C51 -> 0 | D52: =[1]Rozvaha!E51-[1]Rozvaha!D51 -> 0 | E52: =[1]Rozvaha!F51-[1]Rozvaha!E51 -> 0 | F52: =[1]Rozvaha!G51-[1]Rozvaha!F51 -> 0 | G52: =[1]Rozvaha!H51-[1]Rozvaha!G51 -> 0 | H52: =(([1]Rozvaha!D51-[1]Rozvaha!C51)/[1]Rozvaha!C51)*100 ->  | I52: =(([1]Rozvaha!E51-[1]Rozvaha!D51)/[1]Rozvaha!D51)*100 ->  | J52: =(([1]Rozvaha!F51-[1]Rozvaha!E51)/[1]Rozvaha!E51)*100 ->  | K52: =(([1]Rozvaha!G51-[1]Rozvaha!F51)/[1]Rozvaha!F51)*100 ->  | L52: =(([1]Rozvaha!H51-[1]Rozvaha!G51)/[1]Rozvaha!G51)*100 -> 
A53: 3 | B53: Pohledávky - podstatný vliv | C53: =[1]Rozvaha!D52-[1]Rozvaha!C52 -> 0 | D53: =[1]Rozvaha!E52-[1]Rozvaha!D52 -> 0 | E53: =[1]Rozvaha!F52-[1]Rozvaha!E52 -> 0 | F53: =[1]Rozvaha!G52-[1]Rozvaha!F52 -> 0 | G53: =[1]Rozvaha!H52-[1]Rozvaha!G52 -> 0 | H53: =(([1]Rozvaha!D52-[1]Rozvaha!C52)/[1]Rozvaha!C52)*100 ->  | I53: =(([1]Rozvaha!E52-[1]Rozvaha!D52)/[1]Rozvaha!D52)*100 ->  | J53: =(([1]Rozvaha!F52-[1]Rozvaha!E52)/[1]Rozvaha!E52)*100 ->  | K53: =(([1]Rozvaha!G52-[1]Rozvaha!F52)/[1]Rozvaha!F52)*100 ->  | L53: =(([1]Rozvaha!H52-[1]Rozvaha!G52)/[1]Rozvaha!G52)*100 -> 
B54: Pohledávky -ostatní | C54: =[1]Rozvaha!D53-[1]Rozvaha!C53 -> 0 | D54: =[1]Rozvaha!E53-[1]Rozvaha!D53 -> 0 | E54: =[1]Rozvaha!F53-[1]Rozvaha!E53 -> 0 | F54: =[1]Rozvaha!G53-[1]Rozvaha!F53 -> 0 | G54: =[1]Rozvaha!H53-[1]Rozvaha!G53 -> 474 | H54: =(([1]Rozvaha!D53-[1]Rozvaha!C53)/[1]Rozvaha!C53)*100 ->  | I54: =(([1]Rozvaha!E53-[1]Rozvaha!D53)/[1]Rozvaha!D53)*100 ->  | J54: =(([1]Rozvaha!F53-[1]Rozvaha!E53)/[1]Rozvaha!E53)*100 ->  | K54: =(([1]Rozvaha!G53-[1]Rozvaha!F53)/[1]Rozvaha!F53)*100 ->  | L54: =(([1]Rozvaha!H53-[1]Rozvaha!G53)/[1]Rozvaha!G53)*100 -> 
A55: 4 | B55: Pohledávky za společníky, členy družstva a za účastníky sdružení | C55: =[1]Rozvaha!D54-[1]Rozvaha!C54 -> 0 | D55: =[1]Rozvaha!E54-[1]Rozvaha!D54 -> 0 | E55: =[1]Rozvaha!F54-[1]Rozvaha!E54 -> 0 | F55: =[1]Rozvaha!G54-[1]Rozvaha!F54 -> 0 | G55: =[1]Rozvaha!H54-[1]Rozvaha!G54 -> 0 | H55: =(([1]Rozvaha!D54-[1]Rozvaha!C54)/[1]Rozvaha!C54)*100 ->  | I55: =(([1]Rozvaha!E54-[1]Rozvaha!D54)/[1]Rozvaha!D54)*100 ->  | J55: =(([1]Rozvaha!F54-[1]Rozvaha!E54)/[1]Rozvaha!E54)*100 ->  | K55: =(([1]Rozvaha!G54-[1]Rozvaha!F54)/[1]Rozvaha!F54)*100 ->  | L55: =(([1]Rozvaha!H54-[1]Rozvaha!G54)/[1]Rozvaha!G54)*100 -> 
A56: 5 | B56: Sociální zabezpečení (a zdravotní pojištění) | C56: =[1]Rozvaha!D55-[1]Rozvaha!C55 -> 0 | D56: =[1]Rozvaha!E55-[1]Rozvaha!D55 -> 0 | E56: =[1]Rozvaha!F55-[1]Rozvaha!E55 -> 0 | F56: =[1]Rozvaha!G55-[1]Rozvaha!F55 -> 0 | G56: =[1]Rozvaha!H55-[1]Rozvaha!G55 -> 0 | H56: =(([1]Rozvaha!D55-[1]Rozvaha!C55)/[1]Rozvaha!C55)*100 ->  | I56: =(([1]Rozvaha!E55-[1]Rozvaha!D55)/[1]Rozvaha!D55)*100 ->  | J56: =(([1]Rozvaha!F55-[1]Rozvaha!E55)/[1]Rozvaha!E55)*100 ->  | K56: =(([1]Rozvaha!G55-[1]Rozvaha!F55)/[1]Rozvaha!F55)*100 ->  | L56: =(([1]Rozvaha!H55-[1]Rozvaha!G55)/[1]Rozvaha!G55)*100 -> 
A57: 6 | B57: Stát - daňové pohledávky | C57: =[1]Rozvaha!D56-[1]Rozvaha!C56 -> -1789 | D57: =[1]Rozvaha!E56-[1]Rozvaha!D56 -> 2217 | E57: =[1]Rozvaha!F56-[1]Rozvaha!E56 -> -1821 | F57: =[1]Rozvaha!G56-[1]Rozvaha!F56 -> 70418 | G57: =[1]Rozvaha!H56-[1]Rozvaha!G56 -> -70814 | H57: =(([1]Rozvaha!D56-[1]Rozvaha!C56)/[1]Rozvaha!C56)*100 -> -100 | I57: =(([1]Rozvaha!E56-[1]Rozvaha!D56)/[1]Rozvaha!D56)*100 ->  | J57: =(([1]Rozvaha!F56-[1]Rozvaha!E56)/[1]Rozvaha!E56)*100 -> -82.13802436 | K57: =(([1]Rozvaha!G56-[1]Rozvaha!F56)/[1]Rozvaha!F56)*100 -> 17782.32323 | L57: =(([1]Rozvaha!H56-[1]Rozvaha!G56)/[1]Rozvaha!G56)*100 -> -100
A58: 7 | B58: Krátkodobé poskytnuté zálohy | C58: =[1]Rozvaha!D57-[1]Rozvaha!C57 -> -3235 | D58: =[1]Rozvaha!E57-[1]Rozvaha!D57 -> 171 | E58: =[1]Rozvaha!F57-[1]Rozvaha!E57 -> 95 | F58: =[1]Rozvaha!G57-[1]Rozvaha!F57 -> -694 | G58: =[1]Rozvaha!H57-[1]Rozvaha!G57 -> 288 | H58: =(([1]Rozvaha!D57-[1]Rozvaha!C57)/[1]Rozvaha!C57)*100 -> -84.84133228 | I58: =(([1]Rozvaha!E57-[1]Rozvaha!D57)/[1]Rozvaha!D57)*100 -> 29.58477509 | J58: =(([1]Rozvaha!F57-[1]Rozvaha!E57)/[1]Rozvaha!E57)*100 -> 12.6835781 | K58: =(([1]Rozvaha!G57-[1]Rozvaha!F57)/[1]Rozvaha!F57)*100 -> -82.22748815 | L58: =(([1]Rozvaha!H57-[1]Rozvaha!G57)/[1]Rozvaha!G57)*100 -> 192
A59: 8 | B59: Dohadné účty aktivní | C59: =[1]Rozvaha!D58-[1]Rozvaha!C58 -> 0 | D59: =[1]Rozvaha!E58-[1]Rozvaha!D58 -> 0 | E59: =[1]Rozvaha!F58-[1]Rozvaha!E58 -> 355 | F59: =[1]Rozvaha!G58-[1]Rozvaha!F58 -> -240 | G59: =[1]Rozvaha!H58-[1]Rozvaha!G58 -> -115 | H59: =(([1]Rozvaha!D58-[1]Rozvaha!C58)/[1]Rozvaha!C58)*100 ->  | I59: =(([1]Rozvaha!E58-[1]Rozvaha!D58)/[1]Rozvaha!D58)*100 ->  | J59: =(([1]Rozvaha!F58-[1]Rozvaha!E58)/[1]Rozvaha!E58)*100 ->  | K59: =(([1]Rozvaha!G58-[1]Rozvaha!F58)/[1]Rozvaha!F58)*100 -> -67.6056338 | L59: =(([1]Rozvaha!H58-[1]Rozvaha!G58)/[1]Rozvaha!G58)*100 -> -100
A60: 9 | B60: Jiné pohledávky | C60: =[1]Rozvaha!D59-[1]Rozvaha!C59 -> -34 | D60: =[1]Rozvaha!E59-[1]Rozvaha!D59 -> 245 | E60: =[1]Rozvaha!F59-[1]Rozvaha!E59 -> 1013 | F60: =[1]Rozvaha!G59-[1]Rozvaha!F59 -> -1260 | G60: =[1]Rozvaha!H59-[1]Rozvaha!G59 -> 1 | H60: =(([1]Rozvaha!D59-[1]Rozvaha!C59)/[1]Rozvaha!C59)*100 -> -47.88732394 | I60: =(([1]Rozvaha!E59-[1]Rozvaha!D59)/[1]Rozvaha!D59)*100 -> 662.1621622 | J60: =(([1]Rozvaha!F59-[1]Rozvaha!E59)/[1]Rozvaha!E59)*100 -> 359.2198582 | K60: =(([1]Rozvaha!G59-[1]Rozvaha!F59)/[1]Rozvaha!F59)*100 -> -97.2972973 | L60: =(([1]Rozvaha!H59-[1]Rozvaha!G59)/[1]Rozvaha!G59)*100 -> 2.857142857
A61: C. IV. | B61: Finanční majetek | C61: =[1]Rozvaha!D60-[1]Rozvaha!C60 -> -7311 | D61: =[1]Rozvaha!E60-[1]Rozvaha!D60 -> -15312 | E61: =[1]Rozvaha!F60-[1]Rozvaha!E60 -> 4726 | F61: =[1]Rozvaha!G60-[1]Rozvaha!F60 -> -2653 | G61: =[1]Rozvaha!H60-[1]Rozvaha!G60 -> 1569 | H61: =(([1]Rozvaha!D60-[1]Rozvaha!C60)/[1]Rozvaha!C60)*100 -> -27.4746336 | I61: =(([1]Rozvaha!E60-[1]Rozvaha!D60)/[1]Rozvaha!D60)*100 -> -79.34089849 | J61: =(([1]Rozvaha!F60-[1]Rozvaha!E60)/[1]Rozvaha!E60)*100 -> 118.5352395 | K61: =(([1]Rozvaha!G60-[1]Rozvaha!F60)/[1]Rozvaha!F60)*100 -> -30.44875473 | L61: =(([1]Rozvaha!H60-[1]Rozvaha!G60)/[1]Rozvaha!G60)*100 -> 25.89108911
A62: 1 | B62: Peníze | C62: =[1]Rozvaha!D61-[1]Rozvaha!C61 -> 37 | D62: =[1]Rozvaha!E61-[1]Rozvaha!D61 -> -104 | E62: =[1]Rozvaha!F61-[1]Rozvaha!E61 -> -121 | F62: =[1]Rozvaha!G61-[1]Rozvaha!F61 -> 86 | G62: =[1]Rozvaha!H61-[1]Rozvaha!G61 -> -37 | H62: =(([1]Rozvaha!D61-[1]Rozvaha!C61)/[1]Rozvaha!C61)*100 -> 7.312252964 | I62: =(([1]Rozvaha!E61-[1]Rozvaha!D61)/[1]Rozvaha!D61)*100 -> -19.15285451 | J62: =(([1]Rozvaha!F61-[1]Rozvaha!E61)/[1]Rozvaha!E61)*100 -> -27.56264237 | K62: =(([1]Rozvaha!G61-[1]Rozvaha!F61)/[1]Rozvaha!F61)*100 -> 27.04402516 | L62: =(([1]Rozvaha!H61-[1]Rozvaha!G61)/[1]Rozvaha!G61)*100 -> -9.158415842
A63: 2 | B63: Účty v bankách | C63: =[1]Rozvaha!D62-[1]Rozvaha!C62 -> -7348 | D63: =[1]Rozvaha!E62-[1]Rozvaha!D62 -> -15208 | E63: =[1]Rozvaha!F62-[1]Rozvaha!E62 -> 5847 | F63: =[1]Rozvaha!G62-[1]Rozvaha!F62 -> -3739 | G63: =[1]Rozvaha!H62-[1]Rozvaha!G62 -> 1606 | H63: =(([1]Rozvaha!D62-[1]Rozvaha!C62)/[1]Rozvaha!C62)*100 -> -28.14894269 | I63: =(([1]Rozvaha!E62-[1]Rozvaha!D62)/[1]Rozvaha!D62)*100 -> -81.08338665 | J63: =(([1]Rozvaha!F62-[1]Rozvaha!E62)/[1]Rozvaha!E62)*100 -> 164.7970688 | K63: =(([1]Rozvaha!G62-[1]Rozvaha!F62)/[1]Rozvaha!F62)*100 -> -39.79776477 | L63: =(([1]Rozvaha!H62-[1]Rozvaha!G62)/[1]Rozvaha!G62)*100 -> 28.39462518
A64: 3 | B64: Krátkodobé cenné papíry a podíly (Krátkodobý finanční majetek) | C64: =[1]Rozvaha!D63-[1]Rozvaha!C63 -> 0 | D64: =[1]Rozvaha!E63-[1]Rozvaha!D63 -> 0 | E64: =[1]Rozvaha!F63-[1]Rozvaha!E63 -> 0 | F64: =[1]Rozvaha!G63-[1]Rozvaha!F63 -> 0 | G64: =[1]Rozvaha!H63-[1]Rozvaha!G63 -> 0 | H64: =(([1]Rozvaha!D63-[1]Rozvaha!C63)/[1]Rozvaha!C63)*100 ->  | I64: =(([1]Rozvaha!E63-[1]Rozvaha!D63)/[1]Rozvaha!D63)*100 ->  | J64: =(([1]Rozvaha!F63-[1]Rozvaha!E63)/[1]Rozvaha!E63)*100 ->  | K64: =(([1]Rozvaha!G63-[1]Rozvaha!F63)/[1]Rozvaha!F63)*100 ->  | L64: =(([1]Rozvaha!H63-[1]Rozvaha!G63)/[1]Rozvaha!G63)*100 -> 
A65: 4 | B65: Pořizovaný krátkodobý finanční majetek (Nedokončený krátk. fin. majetek) | C65: =[1]Rozvaha!D64-[1]Rozvaha!C64 -> 0 | D65: =[1]Rozvaha!E64-[1]Rozvaha!D64 -> 0 | E65: =[1]Rozvaha!F64-[1]Rozvaha!E64 -> 0 | F65: =[1]Rozvaha!G64-[1]Rozvaha!F64 -> 0 | G65: =[1]Rozvaha!H64-[1]Rozvaha!G64 -> 0 | H65: =(([1]Rozvaha!D64-[1]Rozvaha!C64)/[1]Rozvaha!C64)*100 ->  | I65: =(([1]Rozvaha!E64-[1]Rozvaha!D64)/[1]Rozvaha!D64)*100 ->  | J65: =(([1]Rozvaha!F64-[1]Rozvaha!E64)/[1]Rozvaha!E64)*100 ->  | K65: =(([1]Rozvaha!G64-[1]Rozvaha!F64)/[1]Rozvaha!F64)*100 ->  | L65: =(([1]Rozvaha!H64-[1]Rozvaha!G64)/[1]Rozvaha!G64)*100 -> 
A66: D. I. | B66: Časové rozlišení | C66: =[1]Rozvaha!D65-[1]Rozvaha!C65 -> 23 | D66: =[1]Rozvaha!E65-[1]Rozvaha!D65 -> 185 | E66: =[1]Rozvaha!F65-[1]Rozvaha!E65 -> -10 | F66: =[1]Rozvaha!G65-[1]Rozvaha!F65 -> 2387 | G66: =[1]Rozvaha!H65-[1]Rozvaha!G65 -> -2783 | H66: =(([1]Rozvaha!D65-[1]Rozvaha!C65)/[1]Rozvaha!C65)*100 -> 5.70719603 | I66: =(([1]Rozvaha!E65-[1]Rozvaha!D65)/[1]Rozvaha!D65)*100 -> 43.42723005 | J66: =(([1]Rozvaha!F65-[1]Rozvaha!E65)/[1]Rozvaha!E65)*100 -> -1.636661211 | K66: =(([1]Rozvaha!G65-[1]Rozvaha!F65)/[1]Rozvaha!F65)*100 -> 397.171381 | L66: =(([1]Rozvaha!H65-[1]Rozvaha!G65)/[1]Rozvaha!G65)*100 -> -93.13922356
A67: 1 | B67: Náklady příštích období | C67: =[1]Rozvaha!D66-[1]Rozvaha!C66 -> 24 | D67: =[1]Rozvaha!E66-[1]Rozvaha!D66 -> 162 | E67: =[1]Rozvaha!F66-[1]Rozvaha!E66 -> -58 | F67: =[1]Rozvaha!G66-[1]Rozvaha!F66 -> 2397 | G67: =[1]Rozvaha!H66-[1]Rozvaha!G66 -> -2726 | H67: =(([1]Rozvaha!D66-[1]Rozvaha!C66)/[1]Rozvaha!C66)*100 -> 6 | I67: =(([1]Rozvaha!E66-[1]Rozvaha!D66)/[1]Rozvaha!D66)*100 -> 38.20754717 | J67: =(([1]Rozvaha!F66-[1]Rozvaha!E66)/[1]Rozvaha!E66)*100 -> -9.897610922 | K67: =(([1]Rozvaha!G66-[1]Rozvaha!F66)/[1]Rozvaha!F66)*100 -> 453.9772727 | L67: =(([1]Rozvaha!H66-[1]Rozvaha!G66)/[1]Rozvaha!G66)*100 -> -93.1965812
A68: 2 | B68: Komplexní náklady příštích období | C68: =[1]Rozvaha!D67-[1]Rozvaha!C67 -> 0 | D68: =[1]Rozvaha!E67-[1]Rozvaha!D67 -> 0 | E68: =[1]Rozvaha!F67-[1]Rozvaha!E67 -> 0 | F68: =[1]Rozvaha!G67-[1]Rozvaha!F67 -> 0 | G68: =[1]Rozvaha!H67-[1]Rozvaha!G67 -> 0 | H68: =(([1]Rozvaha!D67-[1]Rozvaha!C67)/[1]Rozvaha!C67)*100 ->  | I68: =(([1]Rozvaha!E67-[1]Rozvaha!D67)/[1]Rozvaha!D67)*100 ->  | J68: =(([1]Rozvaha!F67-[1]Rozvaha!E67)/[1]Rozvaha!E67)*100 ->  | K68: =(([1]Rozvaha!G67-[1]Rozvaha!F67)/[1]Rozvaha!F67)*100 ->  | L68: =(([1]Rozvaha!H67-[1]Rozvaha!G67)/[1]Rozvaha!G67)*100 -> 
A69: 3 | B69: Příjmy příštích období | C69: =[1]Rozvaha!D68-[1]Rozvaha!C68 -> -1 | D69: =[1]Rozvaha!E68-[1]Rozvaha!D68 -> 23 | E69: =[1]Rozvaha!F68-[1]Rozvaha!E68 -> 48 | F69: =[1]Rozvaha!G68-[1]Rozvaha!F68 -> -10 | G69: =[1]Rozvaha!H68-[1]Rozvaha!G68 -> -57 | H69: =(([1]Rozvaha!D68-[1]Rozvaha!C68)/[1]Rozvaha!C68)*100 -> -33.33333333 | I69: =(([1]Rozvaha!E68-[1]Rozvaha!D68)/[1]Rozvaha!D68)*100 -> 1150 | J69: =(([1]Rozvaha!F68-[1]Rozvaha!E68)/[1]Rozvaha!E68)*100 -> 192 | K69: =(([1]Rozvaha!G68-[1]Rozvaha!F68)/[1]Rozvaha!F68)*100 -> -13.69863014 | L69: =(([1]Rozvaha!H68-[1]Rozvaha!G68)/[1]Rozvaha!G68)*100 -> -90.47619048
B71: PASIVA | C71: 2011-2012 | D71: 2012-2013 | E71: 2013-2014 | F71: 2014-2015 | G71: 2015-2016 | H71: 2011-2012 | I71: 2012-2013 | J71: 2013-2014 | K71: 2014-2015 | L71: 2015-2016
B72: PASIVA CELKEM | C72: =[1]Rozvaha!D71-[1]Rozvaha!C71 -> -19028 | D72: =[1]Rozvaha!E71-[1]Rozvaha!D71 -> 990 | E72: =[1]Rozvaha!F71-[1]Rozvaha!E71 -> -969 | F72: =[1]Rozvaha!G71-[1]Rozvaha!F71 -> 689956 | G72: =[1]Rozvaha!H71-[1]Rozvaha!G71 -> -667318 | H72: =(([1]Rozvaha!D71-[1]Rozvaha!C71)/[1]Rozvaha!C71)*100 -> -20.21459683 | I72: =(([1]Rozvaha!E71-[1]Rozvaha!D71)/[1]Rozvaha!D71)*100 -> 1.318207238 | J72: =(([1]Rozvaha!F71-[1]Rozvaha!E71)/[1]Rozvaha!E71)*100 -> -1.273458445 | K72: =(([1]Rozvaha!G71-[1]Rozvaha!F71)/[1]Rozvaha!F71)*100 -> 918.4350998 | L72: =(([1]Rozvaha!H71-[1]Rozvaha!G71)/[1]Rozvaha!G71)*100 -> -87.22210386
A73: A. | B73: Vlastní kapitál | C73: =[1]Rozvaha!D72-[1]Rozvaha!C72 -> -11366 | D73: =[1]Rozvaha!E72-[1]Rozvaha!D72 -> -6116 | E73: =[1]Rozvaha!F72-[1]Rozvaha!E72 -> 101 | F73: =[1]Rozvaha!G72-[1]Rozvaha!F72 -> 379733 | G73: =[1]Rozvaha!H72-[1]Rozvaha!G72 -> -360166 | H73: =(([1]Rozvaha!D72-[1]Rozvaha!C72)/[1]Rozvaha!C72)*100 -> -17.99271806 | I73: =(([1]Rozvaha!E72-[1]Rozvaha!D72)/[1]Rozvaha!D72)*100 -> -11.80603814 | J73: =(([1]Rozvaha!F72-[1]Rozvaha!E72)/[1]Rozvaha!E72)*100 -> 0.2210646122 | K73: =(([1]Rozvaha!G72-[1]Rozvaha!F72)/[1]Rozvaha!F72)*100 -> 829.3105331 | L73: =(([1]Rozvaha!H72-[1]Rozvaha!G72)/[1]Rozvaha!G72)*100 -> -84.64098213
A74: A. I. | B74: Základní kapitál | C74: =[1]Rozvaha!D73-[1]Rozvaha!C73 -> 0 | D74: =[1]Rozvaha!E73-[1]Rozvaha!D73 -> 0 | E74: =[1]Rozvaha!F73-[1]Rozvaha!E73 -> 0 | F74: =[1]Rozvaha!G73-[1]Rozvaha!F73 -> 406104 | G74: =[1]Rozvaha!H73-[1]Rozvaha!G73 -> -400118 | H74: =(([1]Rozvaha!D73-[1]Rozvaha!C73)/[1]Rozvaha!C73)*100 -> 0 | I74: =(([1]Rozvaha!E73-[1]Rozvaha!D73)/[1]Rozvaha!D73)*100 -> 0 | J74: =(([1]Rozvaha!F73-[1]Rozvaha!E73)/[1]Rozvaha!E73)*100 -> 0 | K74: =(([1]Rozvaha!G73-[1]Rozvaha!F73)/[1]Rozvaha!F73)*100 -> 10117.18984 | L74: =(([1]Rozvaha!H73-[1]Rozvaha!G73)/[1]Rozvaha!G73)*100 -> -97.56167737
A75: 1 | B75: Základní kapitál | C75: =[1]Rozvaha!D74-[1]Rozvaha!C74 -> 0 | D75: =[1]Rozvaha!E74-[1]Rozvaha!D74 -> 0 | E75: =[1]Rozvaha!F74-[1]Rozvaha!E74 -> 0 | F75: =[1]Rozvaha!G74-[1]Rozvaha!F74 -> 406104 | G75: =[1]Rozvaha!H74-[1]Rozvaha!G74 -> -400118 | H75: =(([1]Rozvaha!D74-[1]Rozvaha!C74)/[1]Rozvaha!C74)*100 -> 0 | I75: =(([1]Rozvaha!E74-[1]Rozvaha!D74)/[1]Rozvaha!D74)*100 -> 0 | J75: =(([1]Rozvaha!F74-[1]Rozvaha!E74)/[1]Rozvaha!E74)*100 -> 0 | K75: =(([1]Rozvaha!G74-[1]Rozvaha!F74)/[1]Rozvaha!F74)*100 -> 10117.18984 | L75: =(([1]Rozvaha!H74-[1]Rozvaha!G74)/[1]Rozvaha!G74)*100 -> -97.56167737
A76: 2 | B76: Vlastní akcie a vlastní obchodní podíly (-) | C76: =[1]Rozvaha!D75-[1]Rozvaha!C75 -> 0 | D76: =[1]Rozvaha!E75-[1]Rozvaha!D75 -> 0 | E76: =[1]Rozvaha!F75-[1]Rozvaha!E75 -> 0 | F76: =[1]Rozvaha!G75-[1]Rozvaha!F75 -> 0 | G76: =[1]Rozvaha!H75-[1]Rozvaha!G75 -> 0 | H76: =(([1]Rozvaha!D75-[1]Rozvaha!C75)/[1]Rozvaha!C75)*100 ->  | I76: =(([1]Rozvaha!E75-[1]Rozvaha!D75)/[1]Rozvaha!D75)*100 ->  | J76: =(([1]Rozvaha!F75-[1]Rozvaha!E75)/[1]Rozvaha!E75)*100 ->  | K76: =(([1]Rozvaha!G75-[1]Rozvaha!F75)/[1]Rozvaha!F75)*100 ->  | L76: =(([1]Rozvaha!H75-[1]Rozvaha!G75)/[1]Rozvaha!G75)*100 -> 
A77: 3 | B77: Změny základního kapitálu | C77: =[1]Rozvaha!D76-[1]Rozvaha!C76 -> 0 | D77: =[1]Rozvaha!E76-[1]Rozvaha!D76 -> 0 | E77: =[1]Rozvaha!F76-[1]Rozvaha!E76 -> 0 | F77: =[1]Rozvaha!G76-[1]Rozvaha!F76 -> 0 | G77: =[1]Rozvaha!H76-[1]Rozvaha!G76 -> 0 | H77: =(([1]Rozvaha!D76-[1]Rozvaha!C76)/[1]Rozvaha!C76)*100 ->  | I77: =(([1]Rozvaha!E76-[1]Rozvaha!D76)/[1]Rozvaha!D76)*100 ->  | J77: =(([1]Rozvaha!F76-[1]Rozvaha!E76)/[1]Rozvaha!E76)*100 ->  | K77: =(([1]Rozvaha!G76-[1]Rozvaha!F76)/[1]Rozvaha!F76)*100 ->  | L77: =(([1]Rozvaha!H76-[1]Rozvaha!G76)/[1]Rozvaha!G76)*100 -> 
A78: A. II. | B78: Kapitálové fondy | C78: =[1]Rozvaha!D77-[1]Rozvaha!C77 -> 1590 | D78: =[1]Rozvaha!E77-[1]Rozvaha!D77 -> 290 | E78: =[1]Rozvaha!F77-[1]Rozvaha!E77 -> 0 | F78: =[1]Rozvaha!G77-[1]Rozvaha!F77 -> -23643 | G78: =[1]Rozvaha!H77-[1]Rozvaha!G77 -> 23643 | H78: =(([1]Rozvaha!D77-[1]Rozvaha!C77)/[1]Rozvaha!C77)*100 -> -84.57446809 | I78: =(([1]Rozvaha!E77-[1]Rozvaha!D77)/[1]Rozvaha!D77)*100 -> -100 | J78: =(([1]Rozvaha!F77-[1]Rozvaha!E77)/[1]Rozvaha!E77)*100 ->  | K78: =(([1]Rozvaha!G77-[1]Rozvaha!F77)/[1]Rozvaha!F77)*100 ->  | L78: =(([1]Rozvaha!H77-[1]Rozvaha!G77)/[1]Rozvaha!G77)*100 -> -100
A79: 1 | B79: Emisní ážio | C79: =[1]Rozvaha!D78-[1]Rozvaha!C78 -> 0 | D79: =[1]Rozvaha!E78-[1]Rozvaha!D78 -> 0 | E79: =[1]Rozvaha!F78-[1]Rozvaha!E78 -> 0 | F79: =[1]Rozvaha!G78-[1]Rozvaha!F78 -> 133471 | G79: =[1]Rozvaha!H78-[1]Rozvaha!G78 -> -133471 | H79: =(([1]Rozvaha!D78-[1]Rozvaha!C78)/[1]Rozvaha!C78)*100 ->  | I79: =(([1]Rozvaha!E78-[1]Rozvaha!D78)/[1]Rozvaha!D78)*100 ->  | J79: =(([1]Rozvaha!F78-[1]Rozvaha!E78)/[1]Rozvaha!E78)*100 ->  | K79: =(([1]Rozvaha!G78-[1]Rozvaha!F78)/[1]Rozvaha!F78)*100 ->  | L79: =(([1]Rozvaha!H78-[1]Rozvaha!G78)/[1]Rozvaha!G78)*100 -> -100
A80: 2 | B80: Ostatní kapitálové fondy | C80: =[1]Rozvaha!D79-[1]Rozvaha!C79 -> 0 | D80: =[1]Rozvaha!E79-[1]Rozvaha!D79 -> 0 | E80: =[1]Rozvaha!F79-[1]Rozvaha!E79 -> 0 | F80: =[1]Rozvaha!G79-[1]Rozvaha!F79 -> 0 | G80: =[1]Rozvaha!H79-[1]Rozvaha!G79 -> 0 | H80: =(([1]Rozvaha!D79-[1]Rozvaha!C79)/[1]Rozvaha!C79)*100 ->  | I80: =(([1]Rozvaha!E79-[1]Rozvaha!D79)/[1]Rozvaha!D79)*100 ->  | J80: =(([1]Rozvaha!F79-[1]Rozvaha!E79)/[1]Rozvaha!E79)*100 ->  | K80: =(([1]Rozvaha!G79-[1]Rozvaha!F79)/[1]Rozvaha!F79)*100 ->  | L80: =(([1]Rozvaha!H79-[1]Rozvaha!G79)/[1]Rozvaha!G79)*100 -> 
A81: 3 | B81: Oceňovací rozdíly z přecenění majetku (a závazků) | C81: =[1]Rozvaha!D80-[1]Rozvaha!C80 -> 1590 | D81: =[1]Rozvaha!E80-[1]Rozvaha!D80 -> 290 | E81: =[1]Rozvaha!F80-[1]Rozvaha!E80 -> 0 | F81: =[1]Rozvaha!G80-[1]Rozvaha!F80 -> -157114 | G81: =[1]Rozvaha!H80-[1]Rozvaha!G80 -> 157114 | H81: =(([1]Rozvaha!D80-[1]Rozvaha!C80)/[1]Rozvaha!C80)*100 -> -84.57446809 | I81: =(([1]Rozvaha!E80-[1]Rozvaha!D80)/[1]Rozvaha!D80)*100 -> -100 | J81: =(([1]Rozvaha!F80-[1]Rozvaha!E80)/[1]Rozvaha!E80)*100 ->  | K81: =(([1]Rozvaha!G80-[1]Rozvaha!F80)/[1]Rozvaha!F80)*100 ->  | L81: =(([1]Rozvaha!H80-[1]Rozvaha!G80)/[1]Rozvaha!G80)*100 -> -100
A82: 4 | B82: Oceňovací rozdíly z přecenění při přeměnách | C82: =[1]Rozvaha!D81-[1]Rozvaha!C81 -> 0 | D82: =[1]Rozvaha!E81-[1]Rozvaha!D81 -> 0 | E82: =[1]Rozvaha!F81-[1]Rozvaha!E81 -> 0 | F82: =[1]Rozvaha!G81-[1]Rozvaha!F81 -> 0 | G82: =[1]Rozvaha!H81-[1]Rozvaha!G81 -> 0 | H82: =(([1]Rozvaha!D81-[1]Rozvaha!C81)/[1]Rozvaha!C81)*100 ->  | I82: =(([1]Rozvaha!E81-[1]Rozvaha!D81)/[1]Rozvaha!D81)*100 ->  | J82: =(([1]Rozvaha!F81-[1]Rozvaha!E81)/[1]Rozvaha!E81)*100 ->  | K82: =(([1]Rozvaha!G81-[1]Rozvaha!F81)/[1]Rozvaha!F81)*100 ->  | L82: =(([1]Rozvaha!H81-[1]Rozvaha!G81)/[1]Rozvaha!G81)*100 -> 
A83: A. III. | B83: Rezervní fondy, nedělitelný fond a ost. fondy ze zisku (Fondy ze zisku) | C83: =[1]Rozvaha!D82-[1]Rozvaha!C82 -> -24 | D83: =[1]Rozvaha!E82-[1]Rozvaha!D82 -> -23 | E83: =[1]Rozvaha!F82-[1]Rozvaha!E82 -> -615 | F83: =[1]Rozvaha!G82-[1]Rozvaha!F82 -> 0 | G83: =[1]Rozvaha!H82-[1]Rozvaha!G82 -> 0 | H83: =(([1]Rozvaha!D82-[1]Rozvaha!C82)/[1]Rozvaha!C82)*100 -> -3.625377644 | I83: =(([1]Rozvaha!E82-[1]Rozvaha!D82)/[1]Rozvaha!D82)*100 -> -3.605015674 | J83: =(([1]Rozvaha!F82-[1]Rozvaha!E82)/[1]Rozvaha!E82)*100 -> -100 | K83: =(([1]Rozvaha!G82-[1]Rozvaha!F82)/[1]Rozvaha!F82)*100 ->  | L83: =(([1]Rozvaha!H82-[1]Rozvaha!G82)/[1]Rozvaha!G82)*100 -> 
A84: 1 | B84: Zákonný rezervní fond/ Nedělitelný fond | C84: =[1]Rozvaha!D83-[1]Rozvaha!C83 -> 0 | D84: =[1]Rozvaha!E83-[1]Rozvaha!D83 -> 0 | E84: =[1]Rozvaha!F83-[1]Rozvaha!E83 -> -425 | F84: =[1]Rozvaha!G83-[1]Rozvaha!F83 -> 0 | G84: =[1]Rozvaha!H83-[1]Rozvaha!G83 -> 0 | H84: =(([1]Rozvaha!D83-[1]Rozvaha!C83)/[1]Rozvaha!C83)*100 -> 0 | I84: =(([1]Rozvaha!E83-[1]Rozvaha!D83)/[1]Rozvaha!D83)*100 -> 0 | J84: =(([1]Rozvaha!F83-[1]Rozvaha!E83)/[1]Rozvaha!E83)*100 -> -100 | K84: =(([1]Rozvaha!G83-[1]Rozvaha!F83)/[1]Rozvaha!F83)*100 ->  | L84: =(([1]Rozvaha!H83-[1]Rozvaha!G83)/[1]Rozvaha!G83)*100 -> 
A85: 2 | B85: Statutární ostatní fondy | C85: =[1]Rozvaha!D84-[1]Rozvaha!C84 -> -24 | D85: =[1]Rozvaha!E84-[1]Rozvaha!D84 -> -23 | E85: =[1]Rozvaha!F84-[1]Rozvaha!E84 -> -190 | F85: =[1]Rozvaha!G84-[1]Rozvaha!F84 -> 0 | G85: =[1]Rozvaha!H84-[1]Rozvaha!G84 -> 0 | H85: =(([1]Rozvaha!D84-[1]Rozvaha!C84)/[1]Rozvaha!C84)*100 -> -10.12658228 | I85: =(([1]Rozvaha!E84-[1]Rozvaha!D84)/[1]Rozvaha!D84)*100 -> -10.79812207 | J85: =(([1]Rozvaha!F84-[1]Rozvaha!E84)/[1]Rozvaha!E84)*100 -> -100 | K85: =(([1]Rozvaha!G84-[1]Rozvaha!F84)/[1]Rozvaha!F84)*100 ->  | L85: =(([1]Rozvaha!H84-[1]Rozvaha!G84)/[1]Rozvaha!G84)*100 -> 
A86: A. IV. | B86: Výsledek hospodaření minulých let | C86: =[1]Rozvaha!D85-[1]Rozvaha!C85 -> -18837 | D86: =[1]Rozvaha!E85-[1]Rozvaha!D85 -> 9068 | E86: =[1]Rozvaha!F85-[1]Rozvaha!E85 -> -769 | F86: =[1]Rozvaha!G85-[1]Rozvaha!F85 -> -5948 | G86: =[1]Rozvaha!H85-[1]Rozvaha!G85 -> 11285 | H86: =(([1]Rozvaha!D85-[1]Rozvaha!C85)/[1]Rozvaha!C85)*100 -> -39.89959967 | I86: =(([1]Rozvaha!E85-[1]Rozvaha!D85)/[1]Rozvaha!D85)*100 -> 31.95883555 | J86: =(([1]Rozvaha!F85-[1]Rozvaha!E85)/[1]Rozvaha!E85)*100 -> -2.053843278 | K86: =(([1]Rozvaha!G85-[1]Rozvaha!F85)/[1]Rozvaha!F85)*100 -> -16.21901672 | L86: =(([1]Rozvaha!H85-[1]Rozvaha!G85)/[1]Rozvaha!G85)*100 -> 36.72904801
A87: 1 | B87: Nerozdělený zisk minulých let | C87: =[1]Rozvaha!D86-[1]Rozvaha!C86 -> -18837 | D87: =[1]Rozvaha!E86-[1]Rozvaha!D86 -> 9068 | E87: =[1]Rozvaha!F86-[1]Rozvaha!E86 -> -769 | F87: =[1]Rozvaha!G86-[1]Rozvaha!F86 -> -5883 | G87: =[1]Rozvaha!H86-[1]Rozvaha!G86 -> 11285 | H87: =(([1]Rozvaha!D86-[1]Rozvaha!C86)/[1]Rozvaha!C86)*100 -> -39.89959967 | I87: =(([1]Rozvaha!E86-[1]Rozvaha!D86)/[1]Rozvaha!D86)*100 -> 31.95883555 | J87: =(([1]Rozvaha!F86-[1]Rozvaha!E86)/[1]Rozvaha!E86)*100 -> -2.053843278 | K87: =(([1]Rozvaha!G86-[1]Rozvaha!F86)/[1]Rozvaha!F86)*100 -> -16.0417746 | L87: =(([1]Rozvaha!H86-[1]Rozvaha!G86)/[1]Rozvaha!G86)*100 -> 36.65151023
A88: 2 | B88: Neuhrazená ztráta minulých let | C88: =[1]Rozvaha!D87-[1]Rozvaha!C87 -> 0 | D88: =[1]Rozvaha!E87-[1]Rozvaha!D87 -> 0 | E88: =[1]Rozvaha!F87-[1]Rozvaha!E87 -> 0 | F88: =[1]Rozvaha!G87-[1]Rozvaha!F87 -> 0 | G88: =[1]Rozvaha!H87-[1]Rozvaha!G87 -> 0 | H88: =(([1]Rozvaha!D87-[1]Rozvaha!C87)/[1]Rozvaha!C87)*100 ->  | I88: =(([1]Rozvaha!E87-[1]Rozvaha!D87)/[1]Rozvaha!D87)*100 ->  | J88: =(([1]Rozvaha!F87-[1]Rozvaha!E87)/[1]Rozvaha!E87)*100 ->  | K88: =(([1]Rozvaha!G87-[1]Rozvaha!F87)/[1]Rozvaha!F87)*100 ->  | L88: =(([1]Rozvaha!H87-[1]Rozvaha!G87)/[1]Rozvaha!G87)*100 -> 
A89: 3 | B89: Jiný výsledok hospodáření min. let | C89: =[1]Rozvaha!D88-[1]Rozvaha!C88 -> 0 | D89: =[1]Rozvaha!E88-[1]Rozvaha!D88 -> 0 | E89: =[1]Rozvaha!F88-[1]Rozvaha!E88 -> 0 | F89: =[1]Rozvaha!G88-[1]Rozvaha!F88 -> -65 | G89: =[1]Rozvaha!H88-[1]Rozvaha!G88 -> 0 | H89: =(([1]Rozvaha!D88-[1]Rozvaha!C88)/[1]Rozvaha!C88)*100 ->  | I89: =(([1]Rozvaha!E88-[1]Rozvaha!D88)/[1]Rozvaha!D88)*100 ->  | J89: =(([1]Rozvaha!F88-[1]Rozvaha!E88)/[1]Rozvaha!E88)*100 ->  | K89: =(([1]Rozvaha!G88-[1]Rozvaha!F88)/[1]Rozvaha!F88)*100 ->  | L89: =(([1]Rozvaha!H88-[1]Rozvaha!G88)/[1]Rozvaha!G88)*100 -> 0
A90: A. V. | B90: Výsledek hospodaření běžného účetního období | C90: =[1]Rozvaha!D89-[1]Rozvaha!C89 -> 5905 | D90: =[1]Rozvaha!E89-[1]Rozvaha!D89 -> -15451 | E90: =[1]Rozvaha!F89-[1]Rozvaha!E89 -> 1485 | F90: =[1]Rozvaha!G89-[1]Rozvaha!F89 -> 3220 | G90: =[1]Rozvaha!H89-[1]Rozvaha!G89 -> 5024 | H90: =(([1]Rozvaha!D89-[1]Rozvaha!C89)/[1]Rozvaha!C89)*100 -> 44.86059409 | I90: =(([1]Rozvaha!E89-[1]Rozvaha!D89)/[1]Rozvaha!D89)*100 -> -81.03104678 | J90: =(([1]Rozvaha!F89-[1]Rozvaha!E89)/[1]Rozvaha!E89)*100 -> 41.05612386 | K90: =(([1]Rozvaha!G89-[1]Rozvaha!F89)/[1]Rozvaha!F89)*100 -> 63.1125049 | L90: =(([1]Rozvaha!H89-[1]Rozvaha!G89)/[1]Rozvaha!G89)*100 -> 60.37010334
A91: B. | B91: Cizí zdroje | C91: =[1]Rozvaha!D90-[1]Rozvaha!C90 -> 2839 | D91: =[1]Rozvaha!E90-[1]Rozvaha!D90 -> 2503 | E91: =[1]Rozvaha!F90-[1]Rozvaha!E90 -> -1068 | F91: =[1]Rozvaha!G90-[1]Rozvaha!F90 -> 316411 | G91: =[1]Rozvaha!H90-[1]Rozvaha!G90 -> -312107 | H91: =(([1]Rozvaha!D90-[1]Rozvaha!C90)/[1]Rozvaha!C90)*100 -> 16.4094561 | I91: =(([1]Rozvaha!E90-[1]Rozvaha!D90)/[1]Rozvaha!D90)*100 -> 12.42800397 | J91: =(([1]Rozvaha!F90-[1]Rozvaha!E90)/[1]Rozvaha!E90)*100 -> -4.716689485 | K91: =(([1]Rozvaha!G90-[1]Rozvaha!F90)/[1]Rozvaha!F90)*100 -> 1466.563152 | L91: =(([1]Rozvaha!H90-[1]Rozvaha!G90)/[1]Rozvaha!G90)*100 -> -92.34317398
A92: B. I. | B92: Rezervy | C92: =[1]Rozvaha!D91-[1]Rozvaha!C91 -> 0 | D92: =[1]Rozvaha!E91-[1]Rozvaha!D91 -> 0 | E92: =[1]Rozvaha!F91-[1]Rozvaha!E91 -> 0 | F92: =[1]Rozvaha!G91-[1]Rozvaha!F91 -> 0 | G92: =[1]Rozvaha!H91-[1]Rozvaha!G91 -> 25879 | H92: =(([1]Rozvaha!D91-[1]Rozvaha!C91)/[1]Rozvaha!C91)*100 ->  | I92: =(([1]Rozvaha!E91-[1]Rozvaha!D91)/[1]Rozvaha!D91)*100 ->  | J92: =(([1]Rozvaha!F91-[1]Rozvaha!E91)/[1]Rozvaha!E91)*100 ->  | K92: =(([1]Rozvaha!G91-[1]Rozvaha!F91)/[1]Rozvaha!F91)*100 ->  | L92: =(([1]Rozvaha!H91-[1]Rozvaha!G91)/[1]Rozvaha!G91)*100 -> 
A93: 1 | B93: Rezervy podle zvláštních právních předpisů | C93: =[1]Rozvaha!D92-[1]Rozvaha!C92 -> 0 | D93: =[1]Rozvaha!E92-[1]Rozvaha!D92 -> 0 | E93: =[1]Rozvaha!F92-[1]Rozvaha!E92 -> 0 | F93: =[1]Rozvaha!G92-[1]Rozvaha!F92 -> 0 | G93: =[1]Rozvaha!H92-[1]Rozvaha!G92 -> 0 | H93: =(([1]Rozvaha!D92-[1]Rozvaha!C92)/[1]Rozvaha!C92)*100 ->  | I93: =(([1]Rozvaha!E92-[1]Rozvaha!D92)/[1]Rozvaha!D92)*100 ->  | J93: =(([1]Rozvaha!F92-[1]Rozvaha!E92)/[1]Rozvaha!E92)*100 ->  | K93: =(([1]Rozvaha!G92-[1]Rozvaha!F92)/[1]Rozvaha!F92)*100 ->  | L93: =(([1]Rozvaha!H92-[1]Rozvaha!G92)/[1]Rozvaha!G92)*100 -> 
A94: 2 | B94: Rezerva na důchody a podobné závazky | C94: =[1]Rozvaha!D93-[1]Rozvaha!C93 -> 0 | D94: =[1]Rozvaha!E93-[1]Rozvaha!D93 -> 0 | E94: =[1]Rozvaha!F93-[1]Rozvaha!E93 -> 0 | F94: =[1]Rozvaha!G93-[1]Rozvaha!F93 -> 0 | G94: =[1]Rozvaha!H93-[1]Rozvaha!G93 -> 0 | H94: =(([1]Rozvaha!D93-[1]Rozvaha!C93)/[1]Rozvaha!C93)*100 ->  | I94: =(([1]Rozvaha!E93-[1]Rozvaha!D93)/[1]Rozvaha!D93)*100 ->  | J94: =(([1]Rozvaha!F93-[1]Rozvaha!E93)/[1]Rozvaha!E93)*100 ->  | K94: =(([1]Rozvaha!G93-[1]Rozvaha!F93)/[1]Rozvaha!F93)*100 ->  | L94: =(([1]Rozvaha!H93-[1]Rozvaha!G93)/[1]Rozvaha!G93)*100 -> 
A95: 3 | B95: Rezerva na daň z příjmu | C95: =[1]Rozvaha!D94-[1]Rozvaha!C94 -> 0 | D95: =[1]Rozvaha!E94-[1]Rozvaha!D94 -> 0 | E95: =[1]Rozvaha!F94-[1]Rozvaha!E94 -> 0 | F95: =[1]Rozvaha!G94-[1]Rozvaha!F94 -> 0 | G95: =[1]Rozvaha!H94-[1]Rozvaha!G94 -> 0 | H95: =(([1]Rozvaha!D94-[1]Rozvaha!C94)/[1]Rozvaha!C94)*100 ->  | I95: =(([1]Rozvaha!E94-[1]Rozvaha!D94)/[1]Rozvaha!D94)*100 ->  | J95: =(([1]Rozvaha!F94-[1]Rozvaha!E94)/[1]Rozvaha!E94)*100 ->  | K95: =(([1]Rozvaha!G94-[1]Rozvaha!F94)/[1]Rozvaha!F94)*100 ->  | L95: =(([1]Rozvaha!H94-[1]Rozvaha!G94)/[1]Rozvaha!G94)*100 -> 
A96: 4 | B96: Ostatní rezervy | C96: =[1]Rozvaha!D95-[1]Rozvaha!C95 -> 0 | D96: =[1]Rozvaha!E95-[1]Rozvaha!D95 -> 0 | E96: =[1]Rozvaha!F95-[1]Rozvaha!E95 -> 0 | F96: =[1]Rozvaha!G95-[1]Rozvaha!F95 -> 0 | G96: =[1]Rozvaha!H95-[1]Rozvaha!G95 -> 0 | H96: =(([1]Rozvaha!D95-[1]Rozvaha!C95)/[1]Rozvaha!C95)*100 ->  | I96: =(([1]Rozvaha!E95-[1]Rozvaha!D95)/[1]Rozvaha!D95)*100 ->  | J96: =(([1]Rozvaha!F95-[1]Rozvaha!E95)/[1]Rozvaha!E95)*100 ->  | K96: =(([1]Rozvaha!G95-[1]Rozvaha!F95)/[1]Rozvaha!F95)*100 ->  | L96: =(([1]Rozvaha!H95-[1]Rozvaha!G95)/[1]Rozvaha!G95)*100 -> 
A97: B. II. | B97: Dlouhodobé závazky | C97: =[1]Rozvaha!D96-[1]Rozvaha!C96 -> 7 | D97: =[1]Rozvaha!E96-[1]Rozvaha!D96 -> 3 | E97: =[1]Rozvaha!F96-[1]Rozvaha!E96 -> -1 | F97: =[1]Rozvaha!G96-[1]Rozvaha!F96 -> 2748 | G97: =[1]Rozvaha!H96-[1]Rozvaha!G96 -> -2809 | H97: =(([1]Rozvaha!D96-[1]Rozvaha!C96)/[1]Rozvaha!C96)*100 -> 1.51187905 | I97: =(([1]Rozvaha!E96-[1]Rozvaha!D96)/[1]Rozvaha!D96)*100 -> 0.6382978723 | J97: =(([1]Rozvaha!F96-[1]Rozvaha!E96)/[1]Rozvaha!E96)*100 -> -0.2114164905 | K97: =(([1]Rozvaha!G96-[1]Rozvaha!F96)/[1]Rozvaha!F96)*100 -> 582.2033898 | L97: =(([1]Rozvaha!H96-[1]Rozvaha!G96)/[1]Rozvaha!G96)*100 -> -87.23602484
A98: 1 | B98: Závazky z obchodních vztahů | C98: =[1]Rozvaha!D97-[1]Rozvaha!C97 -> 0 | D98: =[1]Rozvaha!E97-[1]Rozvaha!D97 -> 0 | E98: =[1]Rozvaha!F97-[1]Rozvaha!E97 -> 0 | F98: =[1]Rozvaha!G97-[1]Rozvaha!F97 -> 0 | G98: =[1]Rozvaha!H97-[1]Rozvaha!G97 -> 0 | H98: =(([1]Rozvaha!D97-[1]Rozvaha!C97)/[1]Rozvaha!C97)*100 ->  | I98: =(([1]Rozvaha!E97-[1]Rozvaha!D97)/[1]Rozvaha!D97)*100 ->  | J98: =(([1]Rozvaha!F97-[1]Rozvaha!E97)/[1]Rozvaha!E97)*100 ->  | K98: =(([1]Rozvaha!G97-[1]Rozvaha!F97)/[1]Rozvaha!F97)*100 ->  | L98: =(([1]Rozvaha!H97-[1]Rozvaha!G97)/[1]Rozvaha!G97)*100 -> 
A99: 2 | B99: Závazky - ovládající a řídící osoba | C99: =[1]Rozvaha!D98-[1]Rozvaha!C98 -> 0 | D99: =[1]Rozvaha!E98-[1]Rozvaha!D98 -> 0 | E99: =[1]Rozvaha!F98-[1]Rozvaha!E98 -> 0 | F99: =[1]Rozvaha!G98-[1]Rozvaha!F98 -> 0 | G99: =[1]Rozvaha!H98-[1]Rozvaha!G98 -> 0 | H99: =(([1]Rozvaha!D98-[1]Rozvaha!C98)/[1]Rozvaha!C98)*100 ->  | I99: =(([1]Rozvaha!E98-[1]Rozvaha!D98)/[1]Rozvaha!D98)*100 ->  | J99: =(([1]Rozvaha!F98-[1]Rozvaha!E98)/[1]Rozvaha!E98)*100 ->  | K99: =(([1]Rozvaha!G98-[1]Rozvaha!F98)/[1]Rozvaha!F98)*100 ->  | L99: =(([1]Rozvaha!H98-[1]Rozvaha!G98)/[1]Rozvaha!G98)*100 -> 
A100: 3 | B100: Závazky - podstatný vliv | C100: =[1]Rozvaha!D99-[1]Rozvaha!C99 -> 0 | D100: =[1]Rozvaha!E99-[1]Rozvaha!D99 -> 0 | E100: =[1]Rozvaha!F99-[1]Rozvaha!E99 -> 0 | F100: =[1]Rozvaha!G99-[1]Rozvaha!F99 -> 0 | G100: =[1]Rozvaha!H99-[1]Rozvaha!G99 -> 0 | H100: =(([1]Rozvaha!D99-[1]Rozvaha!C99)/[1]Rozvaha!C99)*100 ->  | I100: =(([1]Rozvaha!E99-[1]Rozvaha!D99)/[1]Rozvaha!D99)*100 ->  | J100: =(([1]Rozvaha!F99-[1]Rozvaha!E99)/[1]Rozvaha!E99)*100 ->  | K100: =(([1]Rozvaha!G99-[1]Rozvaha!F99)/[1]Rozvaha!F99)*100 ->  | L100: =(([1]Rozvaha!H99-[1]Rozvaha!G99)/[1]Rozvaha!G99)*100 -> 
A101: 4 | B101: Závazky ke společníkům, členům družstva a k účastníkům sdružení | C101: =[1]Rozvaha!D100-[1]Rozvaha!C100 -> 0 | D101: =[1]Rozvaha!E100-[1]Rozvaha!D100 -> 0 | E101: =[1]Rozvaha!F100-[1]Rozvaha!E100 -> 0 | F101: =[1]Rozvaha!G100-[1]Rozvaha!F100 -> 0 | G101: =[1]Rozvaha!H100-[1]Rozvaha!G100 -> 0 | H101: =(([1]Rozvaha!D100-[1]Rozvaha!C100)/[1]Rozvaha!C100)*100 ->  | I101: =(([1]Rozvaha!E100-[1]Rozvaha!D100)/[1]Rozvaha!D100)*100 ->  | J101: =(([1]Rozvaha!F100-[1]Rozvaha!E100)/[1]Rozvaha!E100)*100 ->  | K101: =(([1]Rozvaha!G100-[1]Rozvaha!F100)/[1]Rozvaha!F100)*100 ->  | L101: =(([1]Rozvaha!H100-[1]Rozvaha!G100)/[1]Rozvaha!G100)*100 -> 
A102: 5 | B102: Dlouhodobé přijaté zálohy | C102: =[1]Rozvaha!D101-[1]Rozvaha!C101 -> 0 | D102: =[1]Rozvaha!E101-[1]Rozvaha!D101 -> 0 | E102: =[1]Rozvaha!F101-[1]Rozvaha!E101 -> 0 | F102: =[1]Rozvaha!G101-[1]Rozvaha!F101 -> 0 | G102: =[1]Rozvaha!H101-[1]Rozvaha!G101 -> 0 | H102: =(([1]Rozvaha!D101-[1]Rozvaha!C101)/[1]Rozvaha!C101)*100 ->  | I102: =(([1]Rozvaha!E101-[1]Rozvaha!D101)/[1]Rozvaha!D101)*100 ->  | J102: =(([1]Rozvaha!F101-[1]Rozvaha!E101)/[1]Rozvaha!E101)*100 ->  | K102: =(([1]Rozvaha!G101-[1]Rozvaha!F101)/[1]Rozvaha!F101)*100 ->  | L102: =(([1]Rozvaha!H101-[1]Rozvaha!G101)/[1]Rozvaha!G101)*100 -> 
A103: 6 | B103: Vydané dluhopisy | C103: =[1]Rozvaha!D102-[1]Rozvaha!C102 -> 0 | D103: =[1]Rozvaha!E102-[1]Rozvaha!D102 -> 0 | E103: =[1]Rozvaha!F102-[1]Rozvaha!E102 -> 0 | F103: =[1]Rozvaha!G102-[1]Rozvaha!F102 -> 0 | G103: =[1]Rozvaha!H102-[1]Rozvaha!G102 -> 0 | H103: =(([1]Rozvaha!D102-[1]Rozvaha!C102)/[1]Rozvaha!C102)*100 ->  | I103: =(([1]Rozvaha!E102-[1]Rozvaha!D102)/[1]Rozvaha!D102)*100 ->  | J103: =(([1]Rozvaha!F102-[1]Rozvaha!E102)/[1]Rozvaha!E102)*100 ->  | K103: =(([1]Rozvaha!G102-[1]Rozvaha!F102)/[1]Rozvaha!F102)*100 ->  | L103: =(([1]Rozvaha!H102-[1]Rozvaha!G102)/[1]Rozvaha!G102)*100 -> 
A104: 7 | B104: Dlouhodobé směnky k úhradě | C104: =[1]Rozvaha!D103-[1]Rozvaha!C103 -> 0 | D104: =[1]Rozvaha!E103-[1]Rozvaha!D103 -> 0 | E104: =[1]Rozvaha!F103-[1]Rozvaha!E103 -> 0 | F104: =[1]Rozvaha!G103-[1]Rozvaha!F103 -> 0 | G104: =[1]Rozvaha!H103-[1]Rozvaha!G103 -> 0 | H104: =(([1]Rozvaha!D103-[1]Rozvaha!C103)/[1]Rozvaha!C103)*100 ->  | I104: =(([1]Rozvaha!E103-[1]Rozvaha!D103)/[1]Rozvaha!D103)*100 ->  | J104: =(([1]Rozvaha!F103-[1]Rozvaha!E103)/[1]Rozvaha!E103)*100 ->  | K104: =(([1]Rozvaha!G103-[1]Rozvaha!F103)/[1]Rozvaha!F103)*100 ->  | L104: =(([1]Rozvaha!H103-[1]Rozvaha!G103)/[1]Rozvaha!G103)*100 -> 
A105: 8 | B105: Dohadné účty pasivní | C105: =[1]Rozvaha!D104-[1]Rozvaha!C104 -> 0 | D105: =[1]Rozvaha!E104-[1]Rozvaha!D104 -> 0 | E105: =[1]Rozvaha!F104-[1]Rozvaha!E104 -> 0 | F105: =[1]Rozvaha!G104-[1]Rozvaha!F104 -> 0 | G105: =[1]Rozvaha!H104-[1]Rozvaha!G104 -> 0 | H105: =(([1]Rozvaha!D104-[1]Rozvaha!C104)/[1]Rozvaha!C104)*100 ->  | I105: =(([1]Rozvaha!E104-[1]Rozvaha!D104)/[1]Rozvaha!D104)*100 ->  | J105: =(([1]Rozvaha!F104-[1]Rozvaha!E104)/[1]Rozvaha!E104)*100 ->  | K105: =(([1]Rozvaha!G104-[1]Rozvaha!F104)/[1]Rozvaha!F104)*100 ->  | L105: =(([1]Rozvaha!H104-[1]Rozvaha!G104)/[1]Rozvaha!G104)*100 -> 
A106: 9 | B106: Jiné (dlouhodobé) závazky | C106: =[1]Rozvaha!D105-[1]Rozvaha!C105 -> 0 | D106: =[1]Rozvaha!E105-[1]Rozvaha!D105 -> 0 | E106: =[1]Rozvaha!F105-[1]Rozvaha!E105 -> 0 | F106: =[1]Rozvaha!G105-[1]Rozvaha!F105 -> 0 | G106: =[1]Rozvaha!H105-[1]Rozvaha!G105 -> 0 | H106: =(([1]Rozvaha!D105-[1]Rozvaha!C105)/[1]Rozvaha!C105)*100 ->  | I106: =(([1]Rozvaha!E105-[1]Rozvaha!D105)/[1]Rozvaha!D105)*100 ->  | J106: =(([1]Rozvaha!F105-[1]Rozvaha!E105)/[1]Rozvaha!E105)*100 ->  | K106: =(([1]Rozvaha!G105-[1]Rozvaha!F105)/[1]Rozvaha!F105)*100 ->  | L106: =(([1]Rozvaha!H105-[1]Rozvaha!G105)/[1]Rozvaha!G105)*100 -> 
A107: 10 | B107: Odložený daňový závazek | C107: =[1]Rozvaha!D106-[1]Rozvaha!C106 -> 7 | D107: =[1]Rozvaha!E106-[1]Rozvaha!D106 -> 3 | E107: =[1]Rozvaha!F106-[1]Rozvaha!E106 -> -1 | F107: =[1]Rozvaha!G106-[1]Rozvaha!F106 -> 2748 | G107: =[1]Rozvaha!H106-[1]Rozvaha!G106 -> -3220 | H107: =(([1]Rozvaha!D106-[1]Rozvaha!C106)/[1]Rozvaha!C106)*100 -> 1.51187905 | I107: =(([1]Rozvaha!E106-[1]Rozvaha!D106)/[1]Rozvaha!D106)*100 -> 0.6382978723 | J107: =(([1]Rozvaha!F106-[1]Rozvaha!E106)/[1]Rozvaha!E106)*100 -> -0.2114164905 | K107: =(([1]Rozvaha!G106-[1]Rozvaha!F106)/[1]Rozvaha!F106)*100 -> 582.2033898 | L107: =(([1]Rozvaha!H106-[1]Rozvaha!G106)/[1]Rozvaha!G106)*100 -> -100
A108: B. III. | B108: Krátkodobé závazky | C108: =[1]Rozvaha!D107-[1]Rozvaha!C107 -> 2832 | D108: =[1]Rozvaha!E107-[1]Rozvaha!D107 -> 2500 | E108: =[1]Rozvaha!F107-[1]Rozvaha!E107 -> -1067 | F108: =[1]Rozvaha!G107-[1]Rozvaha!F107 -> 313663 | G108: =[1]Rozvaha!H107-[1]Rozvaha!G107 -> -309298 | H108: =(([1]Rozvaha!D107-[1]Rozvaha!C107)/[1]Rozvaha!C107)*100 -> 16.81909966 | I108: =(([1]Rozvaha!E107-[1]Rozvaha!D107)/[1]Rozvaha!D107)*100 -> 12.70971022 | J108: =(([1]Rozvaha!F107-[1]Rozvaha!E107)/[1]Rozvaha!E107)*100 -> -4.812810104 | K108: =(([1]Rozvaha!G107-[1]Rozvaha!F107)/[1]Rozvaha!F107)*100 -> 1486.343174 | L108: =(([1]Rozvaha!H107-[1]Rozvaha!G107)/[1]Rozvaha!G107)*100 -> -92.3922979
A109: 1 | B109: Závazky z obchodních vztahů | C109: =[1]Rozvaha!D108-[1]Rozvaha!C108 -> 4863 | D109: =[1]Rozvaha!E108-[1]Rozvaha!D108 -> -1781 | E109: =[1]Rozvaha!F108-[1]Rozvaha!E108 -> 1501 | F109: =[1]Rozvaha!G108-[1]Rozvaha!F108 -> 319213 | G109: =[1]Rozvaha!H108-[1]Rozvaha!G108 -> -319312 | H109: =(([1]Rozvaha!D108-[1]Rozvaha!C108)/[1]Rozvaha!C108)*100 -> 98.34175935 | I109: =(([1]Rozvaha!E108-[1]Rozvaha!D108)/[1]Rozvaha!D108)*100 -> -18.158646 | J109: =(([1]Rozvaha!F108-[1]Rozvaha!E108)/[1]Rozvaha!E108)*100 -> 18.69938956 | K109: =(([1]Rozvaha!G108-[1]Rozvaha!F108)/[1]Rozvaha!F108)*100 -> 3350.262385 | L109: =(([1]Rozvaha!H108-[1]Rozvaha!G108)/[1]Rozvaha!G108)*100 -> -97.1317846
A110: 2 | B110: Závazky - ovládající a řídící osoba /uverovým inštitúciám | C110: =[1]Rozvaha!D109-[1]Rozvaha!C109 -> 0 | D110: =[1]Rozvaha!E109-[1]Rozvaha!D109 -> 0 | E110: =[1]Rozvaha!F109-[1]Rozvaha!E109 -> 0 | F110: =[1]Rozvaha!G109-[1]Rozvaha!F109 -> 0 | G110: =[1]Rozvaha!H109-[1]Rozvaha!G109 -> 5000 | H110: =(([1]Rozvaha!D109-[1]Rozvaha!C109)/[1]Rozvaha!C109)*100 ->  | I110: =(([1]Rozvaha!E109-[1]Rozvaha!D109)/[1]Rozvaha!D109)*100 ->  | J110: =(([1]Rozvaha!F109-[1]Rozvaha!E109)/[1]Rozvaha!E109)*100 ->  | K110: =(([1]Rozvaha!G109-[1]Rozvaha!F109)/[1]Rozvaha!F109)*100 ->  | L110: =(([1]Rozvaha!H109-[1]Rozvaha!G109)/[1]Rozvaha!G109)*100 -> 
A111: 3 | B111: Závazky - podstatný vliv | C111: =[1]Rozvaha!D110-[1]Rozvaha!C110 -> 0 | D111: =[1]Rozvaha!E110-[1]Rozvaha!D110 -> 0 | E111: =[1]Rozvaha!F110-[1]Rozvaha!E110 -> 0 | F111: =[1]Rozvaha!G110-[1]Rozvaha!F110 -> 0 | G111: =[1]Rozvaha!H110-[1]Rozvaha!G110 -> 0 | H111: =(([1]Rozvaha!D110-[1]Rozvaha!C110)/[1]Rozvaha!C110)*100 ->  | I111: =(([1]Rozvaha!E110-[1]Rozvaha!D110)/[1]Rozvaha!D110)*100 ->  | J111: =(([1]Rozvaha!F110-[1]Rozvaha!E110)/[1]Rozvaha!E110)*100 ->  | K111: =(([1]Rozvaha!G110-[1]Rozvaha!F110)/[1]Rozvaha!F110)*100 ->  | L111: =(([1]Rozvaha!H110-[1]Rozvaha!G110)/[1]Rozvaha!G110)*100 -> 
A112: 4 | B112: Závazky ke společníkům, členům družstva a k účastníkům sdružení | C112: =[1]Rozvaha!D111-[1]Rozvaha!C111 -> 0 | D112: =[1]Rozvaha!E111-[1]Rozvaha!D111 -> 0 | E112: =[1]Rozvaha!F111-[1]Rozvaha!E111 -> 0 | F112: =[1]Rozvaha!G111-[1]Rozvaha!F111 -> 0 | G112: =[1]Rozvaha!H111-[1]Rozvaha!G111 -> 0 | H112: =(([1]Rozvaha!D111-[1]Rozvaha!C111)/[1]Rozvaha!C111)*100 ->  | I112: =(([1]Rozvaha!E111-[1]Rozvaha!D111)/[1]Rozvaha!D111)*100 ->  | J112: =(([1]Rozvaha!F111-[1]Rozvaha!E111)/[1]Rozvaha!E111)*100 ->  | K112: =(([1]Rozvaha!G111-[1]Rozvaha!F111)/[1]Rozvaha!F111)*100 ->  | L112: =(([1]Rozvaha!H111-[1]Rozvaha!G111)/[1]Rozvaha!G111)*100 -> 
A113: 5 | B113: Závazky k zaměstnancům | C113: =[1]Rozvaha!D112-[1]Rozvaha!C112 -> 64 | D113: =[1]Rozvaha!E112-[1]Rozvaha!D112 -> -138 | E113: =[1]Rozvaha!F112-[1]Rozvaha!E112 -> 321 | F113: =[1]Rozvaha!G112-[1]Rozvaha!F112 -> -457 | G113: =[1]Rozvaha!H112-[1]Rozvaha!G112 -> 84 | H113: =(([1]Rozvaha!D112-[1]Rozvaha!C112)/[1]Rozvaha!C112)*100 -> 2.002503129 | I113: =(([1]Rozvaha!E112-[1]Rozvaha!D112)/[1]Rozvaha!D112)*100 -> -4.233128834 | J113: =(([1]Rozvaha!F112-[1]Rozvaha!E112)/[1]Rozvaha!E112)*100 -> 10.2818706 | K113: =(([1]Rozvaha!G112-[1]Rozvaha!F112)/[1]Rozvaha!F112)*100 -> -13.27330816 | L113: =(([1]Rozvaha!H112-[1]Rozvaha!G112)/[1]Rozvaha!G112)*100 -> 2.81312793
A114: 6 | B114: Závazky ze sociálního a zdravotního zabezpečení | C114: =[1]Rozvaha!D113-[1]Rozvaha!C113 -> -164 | D114: =[1]Rozvaha!E113-[1]Rozvaha!D113 -> 22 | E114: =[1]Rozvaha!F113-[1]Rozvaha!E113 -> 200 | F114: =[1]Rozvaha!G113-[1]Rozvaha!F113 -> -216 | G114: =[1]Rozvaha!H113-[1]Rozvaha!G113 -> -20 | H114: =(([1]Rozvaha!D113-[1]Rozvaha!C113)/[1]Rozvaha!C113)*100 -> -8.704883227 | I114: =(([1]Rozvaha!E113-[1]Rozvaha!D113)/[1]Rozvaha!D113)*100 -> 1.279069767 | J114: =(([1]Rozvaha!F113-[1]Rozvaha!E113)/[1]Rozvaha!E113)*100 -> 11.48105626 | K114: =(([1]Rozvaha!G113-[1]Rozvaha!F113)/[1]Rozvaha!F113)*100 -> -11.12255407 | L114: =(([1]Rozvaha!H113-[1]Rozvaha!G113)/[1]Rozvaha!G113)*100 -> -1.158748552
A115: 7 | B115: Stát - daňové závazky a dotace | C115: =[1]Rozvaha!D114-[1]Rozvaha!C114 -> 728 | D115: =[1]Rozvaha!E114-[1]Rozvaha!D114 -> -613 | E115: =[1]Rozvaha!F114-[1]Rozvaha!E114 -> 2161 | F115: =[1]Rozvaha!G114-[1]Rozvaha!F114 -> -4191 | G115: =[1]Rozvaha!H114-[1]Rozvaha!G114 -> 4593 | H115: =(([1]Rozvaha!D114-[1]Rozvaha!C114)/[1]Rozvaha!C114)*100 -> 25.34818942 | I115: =(([1]Rozvaha!E114-[1]Rozvaha!D114)/[1]Rozvaha!D114)*100 -> -17.02777778 | J115: =(([1]Rozvaha!F114-[1]Rozvaha!E114)/[1]Rozvaha!E114)*100 -> 72.34683629 | K115: =(([1]Rozvaha!G114-[1]Rozvaha!F114)/[1]Rozvaha!F114)*100 -> -81.41025641 | L115: =(([1]Rozvaha!H114-[1]Rozvaha!G114)/[1]Rozvaha!G114)*100 -> 479.9373041
A116: 8 | B116: Krátkodobé přijaté zálohy /závazky ostatní | C116: =[1]Rozvaha!D115-[1]Rozvaha!C115 -> -800 | D116: =[1]Rozvaha!E115-[1]Rozvaha!D115 -> 5279 | E116: =[1]Rozvaha!F115-[1]Rozvaha!E115 -> -5279 | F116: =[1]Rozvaha!G115-[1]Rozvaha!F115 -> 0 | G116: =[1]Rozvaha!H115-[1]Rozvaha!G115 -> 11039 | H116: =(([1]Rozvaha!D115-[1]Rozvaha!C115)/[1]Rozvaha!C115)*100 -> -100 | I116: =(([1]Rozvaha!E115-[1]Rozvaha!D115)/[1]Rozvaha!D115)*100 ->  | J116: =(([1]Rozvaha!F115-[1]Rozvaha!E115)/[1]Rozvaha!E115)*100 -> -100 | K116: =(([1]Rozvaha!G115-[1]Rozvaha!F115)/[1]Rozvaha!F115)*100 ->  | L116: =(([1]Rozvaha!H115-[1]Rozvaha!G115)/[1]Rozvaha!G115)*100 -> 
A117: 9 | B117: Vydané dlouhopisy | C117: =[1]Rozvaha!D116-[1]Rozvaha!C116 -> 0 | D117: =[1]Rozvaha!E116-[1]Rozvaha!D116 -> 0 | E117: =[1]Rozvaha!F116-[1]Rozvaha!E116 -> 0 | F117: =[1]Rozvaha!G116-[1]Rozvaha!F116 -> 0 | G117: =[1]Rozvaha!H116-[1]Rozvaha!G116 -> 0 | H117: =(([1]Rozvaha!D116-[1]Rozvaha!C116)/[1]Rozvaha!C116)*100 ->  | I117: =(([1]Rozvaha!E116-[1]Rozvaha!D116)/[1]Rozvaha!D116)*100 ->  | J117: =(([1]Rozvaha!F116-[1]Rozvaha!E116)/[1]Rozvaha!E116)*100 ->  | K117: =(([1]Rozvaha!G116-[1]Rozvaha!F116)/[1]Rozvaha!F116)*100 ->  | L117: =(([1]Rozvaha!H116-[1]Rozvaha!G116)/[1]Rozvaha!G116)*100 -> 
A118: 10 | B118: Dohadné účty pasivní | C118: =[1]Rozvaha!D117-[1]Rozvaha!C117 -> -293 | D118: =[1]Rozvaha!E117-[1]Rozvaha!D117 -> 16 | E118: =[1]Rozvaha!F117-[1]Rozvaha!E117 -> 30 | F118: =[1]Rozvaha!G117-[1]Rozvaha!F117 -> -676 | G118: =[1]Rozvaha!H117-[1]Rozvaha!G117 -> 357 | H118: =(([1]Rozvaha!D117-[1]Rozvaha!C117)/[1]Rozvaha!C117)*100 -> -26.75799087 | I118: =(([1]Rozvaha!E117-[1]Rozvaha!D117)/[1]Rozvaha!D117)*100 -> 1.995012469 | J118: =(([1]Rozvaha!F117-[1]Rozvaha!E117)/[1]Rozvaha!E117)*100 -> 3.667481663 | K118: =(([1]Rozvaha!G117-[1]Rozvaha!F117)/[1]Rozvaha!F117)*100 -> -79.71698113 | L118: =(([1]Rozvaha!H117-[1]Rozvaha!G117)/[1]Rozvaha!G117)*100 -> 207.5581395
A119: 11 | B119: Jiné závazky | C119: =[1]Rozvaha!D118-[1]Rozvaha!C118 -> -1566 | D119: =[1]Rozvaha!E118-[1]Rozvaha!D118 -> -285 | E119: =[1]Rozvaha!F118-[1]Rozvaha!E118 -> -1 | F119: =[1]Rozvaha!G118-[1]Rozvaha!F118 -> -10 | G119: =[1]Rozvaha!H118-[1]Rozvaha!G118 -> 0 | H119: =(([1]Rozvaha!D118-[1]Rozvaha!C118)/[1]Rozvaha!C118)*100 -> -76.53958944 | I119: =(([1]Rozvaha!E118-[1]Rozvaha!D118)/[1]Rozvaha!D118)*100 -> -59.375 | J119: =(([1]Rozvaha!F118-[1]Rozvaha!E118)/[1]Rozvaha!E118)*100 -> -0.5128205128 | K119: =(([1]Rozvaha!G118-[1]Rozvaha!F118)/[1]Rozvaha!F118)*100 -> -5.154639175 | L119: =(([1]Rozvaha!H118-[1]Rozvaha!G118)/[1]Rozvaha!G118)*100 -> 0
A120: B. IV. | B120: Bankovní úvěry a výpomoci | C120: =[1]Rozvaha!D119-[1]Rozvaha!C119 -> 0 | D120: =[1]Rozvaha!E119-[1]Rozvaha!D119 -> 0 | E120: =[1]Rozvaha!F119-[1]Rozvaha!E119 -> 0 | F120: =[1]Rozvaha!G119-[1]Rozvaha!F119 -> 0 | G120: =[1]Rozvaha!H119-[1]Rozvaha!G119 -> 0 | H120: =(([1]Rozvaha!D119-[1]Rozvaha!C119)/[1]Rozvaha!C119)*100 ->  | I120: =(([1]Rozvaha!E119-[1]Rozvaha!D119)/[1]Rozvaha!D119)*100 ->  | J120: =(([1]Rozvaha!F119-[1]Rozvaha!E119)/[1]Rozvaha!E119)*100 ->  | K120: =(([1]Rozvaha!G119-[1]Rozvaha!F119)/[1]Rozvaha!F119)*100 ->  | L120: =(([1]Rozvaha!H119-[1]Rozvaha!G119)/[1]Rozvaha!G119)*100 -> 
A121: 1 | B121: Bankovní úvěry dlouhodobé | C121: =[1]Rozvaha!D120-[1]Rozvaha!C120 -> 0 | D121: =[1]Rozvaha!E120-[1]Rozvaha!D120 -> 0 | E121: =[1]Rozvaha!F120-[1]Rozvaha!E120 -> 0 | F121: =[1]Rozvaha!G120-[1]Rozvaha!F120 -> 0 | G121: =[1]Rozvaha!H120-[1]Rozvaha!G120 -> 0 | H121: =(([1]Rozvaha!D120-[1]Rozvaha!C120)/[1]Rozvaha!C120)*100 ->  | I121: =(([1]Rozvaha!E120-[1]Rozvaha!D120)/[1]Rozvaha!D120)*100 ->  | J121: =(([1]Rozvaha!F120-[1]Rozvaha!E120)/[1]Rozvaha!E120)*100 ->  | K121: =(([1]Rozvaha!G120-[1]Rozvaha!F120)/[1]Rozvaha!F120)*100 ->  | L121: =(([1]Rozvaha!H120-[1]Rozvaha!G120)/[1]Rozvaha!G120)*100 -> 
A122: 2 | B122: Krátkodobé bankovní úvěry (Běžné bakovní úvěry) | C122: =[1]Rozvaha!D121-[1]Rozvaha!C121 -> 0 | D122: =[1]Rozvaha!E121-[1]Rozvaha!D121 -> 0 | E122: =[1]Rozvaha!F121-[1]Rozvaha!E121 -> 0 | F122: =[1]Rozvaha!G121-[1]Rozvaha!F121 -> 0 | G122: =[1]Rozvaha!H121-[1]Rozvaha!G121 -> 0 | H122: =(([1]Rozvaha!D121-[1]Rozvaha!C121)/[1]Rozvaha!C121)*100 ->  | I122: =(([1]Rozvaha!E121-[1]Rozvaha!D121)/[1]Rozvaha!D121)*100 ->  | J122: =(([1]Rozvaha!F121-[1]Rozvaha!E121)/[1]Rozvaha!E121)*100 ->  | K122: =(([1]Rozvaha!G121-[1]Rozvaha!F121)/[1]Rozvaha!F121)*100 ->  | L122: =(([1]Rozvaha!H121-[1]Rozvaha!G121)/[1]Rozvaha!G121)*100 -> 
A123: 3 | B123: Krátkodobé finanční výpomoci | C123: =[1]Rozvaha!D122-[1]Rozvaha!C122 -> 0 | D123: =[1]Rozvaha!E122-[1]Rozvaha!D122 -> 0 | E123: =[1]Rozvaha!F122-[1]Rozvaha!E122 -> 0 | F123: =[1]Rozvaha!G122-[1]Rozvaha!F122 -> 0 | G123: =[1]Rozvaha!H122-[1]Rozvaha!G122 -> 0 | H123: =(([1]Rozvaha!D122-[1]Rozvaha!C122)/[1]Rozvaha!C122)*100 ->  | I123: =(([1]Rozvaha!E122-[1]Rozvaha!D122)/[1]Rozvaha!D122)*100 ->  | J123: =(([1]Rozvaha!F122-[1]Rozvaha!E122)/[1]Rozvaha!E122)*100 ->  | K123: =(([1]Rozvaha!G122-[1]Rozvaha!F122)/[1]Rozvaha!F122)*100 ->  | L123: =(([1]Rozvaha!H122-[1]Rozvaha!G122)/[1]Rozvaha!G122)*100 -> 
A124: C. I. | B124: Časové rozlišení | C124: =[1]Rozvaha!D123-[1]Rozvaha!C123 -> -10501 | D124: =[1]Rozvaha!E123-[1]Rozvaha!D123 -> 4603 | E124: =[1]Rozvaha!F123-[1]Rozvaha!E123 -> -2 | F124: =[1]Rozvaha!G123-[1]Rozvaha!F123 -> -6188 | G124: =[1]Rozvaha!H123-[1]Rozvaha!G123 -> 4955 | H124: =(([1]Rozvaha!D123-[1]Rozvaha!C123)/[1]Rozvaha!C123)*100 -> -76.87971301 | I124: =(([1]Rozvaha!E123-[1]Rozvaha!D123)/[1]Rozvaha!D123)*100 -> 145.7568081 | J124: =(([1]Rozvaha!F123-[1]Rozvaha!E123)/[1]Rozvaha!E123)*100 -> -0.02576987502 | K124: =(([1]Rozvaha!G123-[1]Rozvaha!F123)/[1]Rozvaha!F123)*100 -> -79.75254543 | L124: =(([1]Rozvaha!H123-[1]Rozvaha!G123)/[1]Rozvaha!G123)*100 -> 315.4042011
A125: 1 | B125: Výdaje příštích období | C125: =[1]Rozvaha!D124-[1]Rozvaha!C124 -> 1 | D125: =[1]Rozvaha!E124-[1]Rozvaha!D124 -> -399 | E125: =[1]Rozvaha!F124-[1]Rozvaha!E124 -> -85 | F125: =[1]Rozvaha!G124-[1]Rozvaha!F124 -> -6 | G125: =[1]Rozvaha!H124-[1]Rozvaha!G124 -> 72 | H125: =(([1]Rozvaha!D124-[1]Rozvaha!C124)/[1]Rozvaha!C124)*100 -> 0.2 | I125: =(([1]Rozvaha!E124-[1]Rozvaha!D124)/[1]Rozvaha!D124)*100 -> -79.64071856 | J125: =(([1]Rozvaha!F124-[1]Rozvaha!E124)/[1]Rozvaha!E124)*100 -> -83.33333333 | K125: =(([1]Rozvaha!G124-[1]Rozvaha!F124)/[1]Rozvaha!F124)*100 -> -35.29411765 | L125: =(([1]Rozvaha!H124-[1]Rozvaha!G124)/[1]Rozvaha!G124)*100 -> 654.5454545
A126: 2 | B126: Výnosy příštích období | C126: =[1]Rozvaha!D125-[1]Rozvaha!C125 -> -10502 | D126: =[1]Rozvaha!E125-[1]Rozvaha!D125 -> 5002 | E126: =[1]Rozvaha!F125-[1]Rozvaha!E125 -> 83 | F126: =[1]Rozvaha!G125-[1]Rozvaha!F125 -> -6182 | G126: =[1]Rozvaha!H125-[1]Rozvaha!G125 -> 4883 | H126: =(([1]Rozvaha!D125-[1]Rozvaha!C125)/[1]Rozvaha!C125)*100 -> -79.80849609 | I126: =(([1]Rozvaha!E125-[1]Rozvaha!D125)/[1]Rozvaha!D125)*100 -> 188.2574332 | J126: =(([1]Rozvaha!F125-[1]Rozvaha!E125)/[1]Rozvaha!E125)*100 -> 1.083692388 | K126: =(([1]Rozvaha!G125-[1]Rozvaha!F125)/[1]Rozvaha!F125)*100 -> -79.85016792 | L126: =(([1]Rozvaha!H125-[1]Rozvaha!G125)/[1]Rozvaha!G125)*100 -> 313.0128205

Sheet Hárok13 (hidden)
B1: AKTIVA | C1: Absolútna zmena | H1: Percentuálna zmena
C2: 2011-2012 | D2: 2012-2013 | E2: 2013-2014 | F2: 2014-2015 | G2: 2015-2016 | H2: 2011-2012 | I2: 2012-2013 | J2: 2013-2014 | K2: 2014-2015 | L2: 2015-2016
B3: AKTIVA CELKEM | C3: =[1]Rozvaha!D2-[1]Rozvaha!C2 -> -19028 | D3: =[1]Rozvaha!E2-[1]Rozvaha!D2 -> 990 | E3: =[1]Rozvaha!F2-[1]Rozvaha!E2 -> -969 | F3: =[1]Rozvaha!G2-[1]Rozvaha!F2 -> 689956 | G3: =[1]Rozvaha!H2-[1]Rozvaha!G2 -> -667318 | H3: =(([1]Rozvaha!D2-[1]Rozvaha!C2)/[1]Rozvaha!C2)*100 -> -20.21459683 | I3: =(([1]Rozvaha!E2-[1]Rozvaha!D2)/[1]Rozvaha!D2)*100 -> 1.318207238 | J3: =(([1]Rozvaha!F2-[1]Rozvaha!E2)/[1]Rozvaha!E2)*100 -> -1.273458445 | K3: =(([1]Rozvaha!G2-[1]Rozvaha!F2)/[1]Rozvaha!F2)*100 -> 918.4350998 | L3: =(([1]Rozvaha!H2-[1]Rozvaha!G2)/[1]Rozvaha!G2)*100 -> -87.22210386
A4: B. | B4: Stálá aktiva | C4: =[1]Rozvaha!D4-[1]Rozvaha!C4 -> -487 | D4: =[1]Rozvaha!E4-[1]Rozvaha!D4 -> -1036 | E4: =[1]Rozvaha!F4-[1]Rozvaha!E4 -> -911 | F4: =[1]Rozvaha!G4-[1]Rozvaha!F4 -> 355499 | G4: =[1]Rozvaha!H4-[1]Rozvaha!G4 -> -357857 | H4: =(([1]Rozvaha!D4-[1]Rozvaha!C4)/[1]Rozvaha!C4)*100 -> -4.05326675 | I4: =(([1]Rozvaha!E4-[1]Rozvaha!D4)/[1]Rozvaha!D4)*100 -> -8.986814712 | J4: =(([1]Rozvaha!F4-[1]Rozvaha!E4)/[1]Rozvaha!E4)*100 -> -8.682805947 | K4: =(([1]Rozvaha!G4-[1]Rozvaha!F4)/[1]Rozvaha!F4)*100 -> 3710.458199 | L4: =(([1]Rozvaha!H4-[1]Rozvaha!G4)/[1]Rozvaha!G4)*100 -> -98.02152953
A5: B. I. | B5: Dlouhodobý nehmotný majetek | C5: =[1]Rozvaha!D5-[1]Rozvaha!C5 -> -42 | D5: =[1]Rozvaha!E5-[1]Rozvaha!D5 -> 0 | E5: =[1]Rozvaha!F5-[1]Rozvaha!E5 -> 0 | F5: =[1]Rozvaha!G5-[1]Rozvaha!F5 -> 18182 | G5: =[1]Rozvaha!H5-[1]Rozvaha!G5 -> -18182 | H5: =(([1]Rozvaha!D5-[1]Rozvaha!C5)/[1]Rozvaha!C5)*100 -> -100 | I5: =(([1]Rozvaha!E5-[1]Rozvaha!D5)/[1]Rozvaha!D5)*100 ->  | J5: =(([1]Rozvaha!F5-[1]Rozvaha!E5)/[1]Rozvaha!E5)*100 ->  | K5: =(([1]Rozvaha!G5-[1]Rozvaha!F5)/[1]Rozvaha!F5)*100 ->  | L5: =(([1]Rozvaha!H5-[1]Rozvaha!G5)/[1]Rozvaha!G5)*100 -> -100
A6: 3 | B6: Software | C6: =[1]Rozvaha!D8-[1]Rozvaha!C8 -> -42 | D6: =[1]Rozvaha!E8-[1]Rozvaha!D8 -> 0 | E6: =[1]Rozvaha!F8-[1]Rozvaha!E8 -> 0 | F6: =[1]Rozvaha!G8-[1]Rozvaha!F8 -> 0 | G6: =[1]Rozvaha!H8-[1]Rozvaha!G8 -> 0 | H6: =(([1]Rozvaha!D8-[1]Rozvaha!C8)/[1]Rozvaha!C8)*100 -> -100 | I6: =(([1]Rozvaha!E8-[1]Rozvaha!D8)/[1]Rozvaha!D8)*100 ->  | J6: =(([1]Rozvaha!F8-[1]Rozvaha!E8)/[1]Rozvaha!E8)*100 ->  | K6: =(([1]Rozvaha!G8-[1]Rozvaha!F8)/[1]Rozvaha!F8)*100 ->  | L6: =(([1]Rozvaha!H8-[1]Rozvaha!G8)/[1]Rozvaha!G8)*100 -> 
A7: 4 | B7: Ocenitená práva | C7: =[1]Rozvaha!D9-[1]Rozvaha!C9 -> 0 | D7: =[1]Rozvaha!E9-[1]Rozvaha!D9 -> 0 | E7: =[1]Rozvaha!F9-[1]Rozvaha!E9 -> 0 | F7: =[1]Rozvaha!G9-[1]Rozvaha!F9 -> 18182 | G7: =[1]Rozvaha!H9-[1]Rozvaha!G9 -> -18182 | H7: =(([1]Rozvaha!D9-[1]Rozvaha!C9)/[1]Rozvaha!C9)*100 ->  | I7: =(([1]Rozvaha!E9-[1]Rozvaha!D9)/[1]Rozvaha!D9)*100 ->  | J7: =(([1]Rozvaha!F9-[1]Rozvaha!E9)/[1]Rozvaha!E9)*100 ->  | K7: =(([1]Rozvaha!G9-[1]Rozvaha!F9)/[1]Rozvaha!F9)*100 ->  | L7: =(([1]Rozvaha!H9-[1]Rozvaha!G9)/[1]Rozvaha!G9)*100 -> -100
A8: B. II. | B8: Dlouhodobý hmotný majetek | C8: =[1]Rozvaha!D14-[1]Rozvaha!C14 -> -445 | D8: =[1]Rozvaha!E14-[1]Rozvaha!D14 -> -1036 | E8: =[1]Rozvaha!F14-[1]Rozvaha!E14 -> -911 | F8: =[1]Rozvaha!G14-[1]Rozvaha!F14 -> 63931 | G8: =[1]Rozvaha!H14-[1]Rozvaha!G14 -> -66289 | H8: =(([1]Rozvaha!D14-[1]Rozvaha!C14)/[1]Rozvaha!C14)*100 -> -3.716695899 | I8: =(([1]Rozvaha!E14-[1]Rozvaha!D14)/[1]Rozvaha!D14)*100 -> -8.986814712 | J8: =(([1]Rozvaha!F14-[1]Rozvaha!E14)/[1]Rozvaha!E14)*100 -> -8.682805947 | K8: =(([1]Rozvaha!G14-[1]Rozvaha!F14)/[1]Rozvaha!F14)*100 -> 667.2685523 | L8: =(([1]Rozvaha!H14-[1]Rozvaha!G14)/[1]Rozvaha!G14)*100 -> -90.1743933
A9: 1 | B9: Pozemky | C9: =[1]Rozvaha!D15-[1]Rozvaha!C15 -> 0 | D9: =[1]Rozvaha!E15-[1]Rozvaha!D15 -> 0 | E9: =[1]Rozvaha!F15-[1]Rozvaha!E15 -> 0 | F9: =[1]Rozvaha!G15-[1]Rozvaha!F15 -> 0 | G9: =[1]Rozvaha!H15-[1]Rozvaha!G15 -> 6540 | H9: =(([1]Rozvaha!D15-[1]Rozvaha!C15)/[1]Rozvaha!C15)*100 -> 0 | I9: =(([1]Rozvaha!E15-[1]Rozvaha!D15)/[1]Rozvaha!D15)*100 -> 0 | J9: =(([1]Rozvaha!F15-[1]Rozvaha!E15)/[1]Rozvaha!E15)*100 -> 0 | K9: =(([1]Rozvaha!G15-[1]Rozvaha!F15)/[1]Rozvaha!F15)*100 -> 0 | L9: =(([1]Rozvaha!H15-[1]Rozvaha!G15)/[1]Rozvaha!G15)*100 -> 408.2397004
A10: 2 | B10: Stavby | C10: =[1]Rozvaha!D16-[1]Rozvaha!C16 -> 243 | D10: =[1]Rozvaha!E16-[1]Rozvaha!D16 -> -506 | E10: =[1]Rozvaha!F16-[1]Rozvaha!E16 -> -504 | F10: =[1]Rozvaha!G16-[1]Rozvaha!F16 -> -308 | G10: =[1]Rozvaha!H16-[1]Rozvaha!G16 -> -5443 | H10: =(([1]Rozvaha!D16-[1]Rozvaha!C16)/[1]Rozvaha!C16)*100 -> 2.992610837 | I10: =(([1]Rozvaha!E16-[1]Rozvaha!D16)/[1]Rozvaha!D16)*100 -> -6.050460361 | J10: =(([1]Rozvaha!F16-[1]Rozvaha!E16)/[1]Rozvaha!E16)*100 -> -6.414662085 | K10: =(([1]Rozvaha!G16-[1]Rozvaha!F16)/[1]Rozvaha!F16)*100 -> -4.18876649 | L10: =(([1]Rozvaha!H16-[1]Rozvaha!G16)/[1]Rozvaha!G16)*100 -> -77.26046842
A11: 3 | B11: Samostatné movité věci a soubory movitých věcí | C11: =[1]Rozvaha!D17-[1]Rozvaha!C17 -> -689 | D11: =[1]Rozvaha!E17-[1]Rozvaha!D17 -> -529 | E11: =[1]Rozvaha!F17-[1]Rozvaha!E17 -> -408 | F11: =[1]Rozvaha!G17-[1]Rozvaha!F17 -> 17158 | G11: =[1]Rozvaha!H17-[1]Rozvaha!G17 -> -11207 | H11: =(([1]Rozvaha!D17-[1]Rozvaha!C17)/[1]Rozvaha!C17)*100 -> -31.10609481 | I11: =(([1]Rozvaha!E17-[1]Rozvaha!D17)/[1]Rozvaha!D17)*100 -> -34.66579292 | J11: =(([1]Rozvaha!F17-[1]Rozvaha!E17)/[1]Rozvaha!E17)*100 -> -40.9227683 | K11: =(([1]Rozvaha!G17-[1]Rozvaha!F17)/[1]Rozvaha!F17)*100 -> 2913.073005 | L11: =(([1]Rozvaha!H17-[1]Rozvaha!G17)/[1]Rozvaha!G17)*100 -> -63.14870119
A12: 4 | B12: Pěstitelské celky trvalých porostů | C12: =[1]Rozvaha!D18-[1]Rozvaha!C18 -> 0 | D12: =[1]Rozvaha!E18-[1]Rozvaha!D18 -> 0 | E12: =[1]Rozvaha!F18-[1]Rozvaha!E18 -> 0 | F12: =[1]Rozvaha!G18-[1]Rozvaha!F18 -> 0 | G12: =[1]Rozvaha!H18-[1]Rozvaha!G18 -> 497 | H12: =(([1]Rozvaha!D18-[1]Rozvaha!C18)/[1]Rozvaha!C18)*100 ->  | I12: =(([1]Rozvaha!E18-[1]Rozvaha!D18)/[1]Rozvaha!D18)*100 ->  | J12: =(([1]Rozvaha!F18-[1]Rozvaha!E18)/[1]Rozvaha!E18)*100 ->  | K12: =(([1]Rozvaha!G18-[1]Rozvaha!F18)/[1]Rozvaha!F18)*100 ->  | L12: =(([1]Rozvaha!H18-[1]Rozvaha!G18)/[1]Rozvaha!G18)*100 -> 
A13: 6 | B13: Jiný dlouhodobý hmotný majetek | C13: =[1]Rozvaha!D20-[1]Rozvaha!C20 -> 0 | D13: =[1]Rozvaha!E20-[1]Rozvaha!D20 -> 0 | E13: =[1]Rozvaha!F20-[1]Rozvaha!E20 -> 0 | F13: =[1]Rozvaha!G20-[1]Rozvaha!F20 -> 25743 | G13: =[1]Rozvaha!H20-[1]Rozvaha!G20 -> -27159 | H13: =(([1]Rozvaha!D20-[1]Rozvaha!C20)/[1]Rozvaha!C20)*100 ->  | I13: =(([1]Rozvaha!E20-[1]Rozvaha!D20)/[1]Rozvaha!D20)*100 ->  | J13: =(([1]Rozvaha!F20-[1]Rozvaha!E20)/[1]Rozvaha!E20)*100 ->  | K13: =(([1]Rozvaha!G20-[1]Rozvaha!F20)/[1]Rozvaha!F20)*100 ->  | L13: =(([1]Rozvaha!H20-[1]Rozvaha!G20)/[1]Rozvaha!G20)*100 -> -105.5005244
A14: 7 | B14: Nedokončený dlouhodobý hmotný majetek | C14: =[1]Rozvaha!D21-[1]Rozvaha!C21 -> 1 | D14: =[1]Rozvaha!E21-[1]Rozvaha!D21 -> -1 | E14: =[1]Rozvaha!F21-[1]Rozvaha!E21 -> 1 | F14: =[1]Rozvaha!G21-[1]Rozvaha!F21 -> -37 | G14: =[1]Rozvaha!H21-[1]Rozvaha!G21 -> 0 | H14: =(([1]Rozvaha!D21-[1]Rozvaha!C21)/[1]Rozvaha!C21)*100 -> 2.777777778 | I14: =(([1]Rozvaha!E21-[1]Rozvaha!D21)/[1]Rozvaha!D21)*100 -> -2.702702703 | J14: =(([1]Rozvaha!F21-[1]Rozvaha!E21)/[1]Rozvaha!E21)*100 -> 2.777777778 | K14: =(([1]Rozvaha!G21-[1]Rozvaha!F21)/[1]Rozvaha!F21)*100 -> -100 | L14: =(([1]Rozvaha!H21-[1]Rozvaha!G21)/[1]Rozvaha!G21)*100 -> 
A15: 8 | B15: Poskytnuté zálohy na dlouhodobý hmotný majetek | C15: =[1]Rozvaha!D22-[1]Rozvaha!C22 -> 0 | D15: =[1]Rozvaha!E22-[1]Rozvaha!D22 -> 0 | E15: =[1]Rozvaha!F22-[1]Rozvaha!E22 -> 0 | F15: =[1]Rozvaha!G22-[1]Rozvaha!F22 -> 0 | G15: =[1]Rozvaha!H22-[1]Rozvaha!G22 -> -1416 | H15: =(([1]Rozvaha!D22-[1]Rozvaha!C22)/[1]Rozvaha!C22)*100 ->  | I15: =(([1]Rozvaha!E22-[1]Rozvaha!D22)/[1]Rozvaha!D22)*100 ->  | J15: =(([1]Rozvaha!F22-[1]Rozvaha!E22)/[1]Rozvaha!E22)*100 ->  | K15: =(([1]Rozvaha!G22-[1]Rozvaha!F22)/[1]Rozvaha!F22)*100 ->  | L15: =(([1]Rozvaha!H22-[1]Rozvaha!G22)/[1]Rozvaha!G22)*100 -> 
A16: 9 | B16: Oceňovací rozdíl k nabytému majetku | C16: =[1]Rozvaha!D23-[1]Rozvaha!C23 -> 0 | D16: =[1]Rozvaha!E23-[1]Rozvaha!D23 -> 0 | E16: =[1]Rozvaha!F23-[1]Rozvaha!E23 -> 0 | F16: =[1]Rozvaha!G23-[1]Rozvaha!F23 -> 21375 | G16: =[1]Rozvaha!H23-[1]Rozvaha!G23 -> -21375 | H16: =(([1]Rozvaha!D23-[1]Rozvaha!C23)/[1]Rozvaha!C23)*100 ->  | I16: =(([1]Rozvaha!E23-[1]Rozvaha!D23)/[1]Rozvaha!D23)*100 ->  | J16: =(([1]Rozvaha!F23-[1]Rozvaha!E23)/[1]Rozvaha!E23)*100 ->  | K16: =(([1]Rozvaha!G23-[1]Rozvaha!F23)/[1]Rozvaha!F23)*100 ->  | L16: =(([1]Rozvaha!H23-[1]Rozvaha!G23)/[1]Rozvaha!G23)*100 -> -100
A17: B. III. | B17: Dlouhodobý finanční majetek | C17: =[1]Rozvaha!D24-[1]Rozvaha!C24 -> 0 | D17: =[1]Rozvaha!E24-[1]Rozvaha!D24 -> 0 | E17: =[1]Rozvaha!F24-[1]Rozvaha!E24 -> 0 | F17: =[1]Rozvaha!G24-[1]Rozvaha!F24 -> 273389 | G17: =[1]Rozvaha!H24-[1]Rozvaha!G24 -> -273389 | H17: =(([1]Rozvaha!D24-[1]Rozvaha!C24)/[1]Rozvaha!C24)*100 ->  | I17: =(([1]Rozvaha!E24-[1]Rozvaha!D24)/[1]Rozvaha!D24)*100 ->  | J17: =(([1]Rozvaha!F24-[1]Rozvaha!E24)/[1]Rozvaha!E24)*100 ->  | K17: =(([1]Rozvaha!G24-[1]Rozvaha!F24)/[1]Rozvaha!F24)*100 ->  | L17: =(([1]Rozvaha!H24-[1]Rozvaha!G24)/[1]Rozvaha!G24)*100 -> -100
A18: 1 | B18: Podíly v ovládaných a řízených osobách | C18: =[1]Rozvaha!D25-[1]Rozvaha!C25 -> 0 | D18: =[1]Rozvaha!E25-[1]Rozvaha!D25 -> 0 | E18: =[1]Rozvaha!F25-[1]Rozvaha!E25 -> 0 | F18: =[1]Rozvaha!G25-[1]Rozvaha!F25 -> 273386 | G18: =[1]Rozvaha!H25-[1]Rozvaha!G25 -> -273386 | H18: =(([1]Rozvaha!D25-[1]Rozvaha!C25)/[1]Rozvaha!C25)*100 ->  | I18: =(([1]Rozvaha!E25-[1]Rozvaha!D25)/[1]Rozvaha!D25)*100 ->  | J18: =(([1]Rozvaha!F25-[1]Rozvaha!E25)/[1]Rozvaha!E25)*100 ->  | K18: =(([1]Rozvaha!G25-[1]Rozvaha!F25)/[1]Rozvaha!F25)*100 ->  | L18: =(([1]Rozvaha!H25-[1]Rozvaha!G25)/[1]Rozvaha!G25)*100 -> -100
A19: 1 | B19: Materiál | C19: =[1]Rozvaha!D34-[1]Rozvaha!C34 -> -539 | D19: =[1]Rozvaha!E34-[1]Rozvaha!D34 -> -678 | E19: =[1]Rozvaha!F34-[1]Rozvaha!E34 -> -100 | F19: =[1]Rozvaha!G34-[1]Rozvaha!F34 -> 84547 | G19: =[1]Rozvaha!H34-[1]Rozvaha!G34 -> -83081 | H19: =(([1]Rozvaha!D34-[1]Rozvaha!C34)/[1]Rozvaha!C34)*100 -> -15.44855259 | I19: =(([1]Rozvaha!E34-[1]Rozvaha!D34)/[1]Rozvaha!D34)*100 -> -22.98305085 | J19: =(([1]Rozvaha!F34-[1]Rozvaha!E34)/[1]Rozvaha!E34)*100 -> -4.401408451 | K19: =(([1]Rozvaha!G34-[1]Rozvaha!F34)/[1]Rozvaha!F34)*100 -> 3892.587477 | L19: =(([1]Rozvaha!H34-[1]Rozvaha!G34)/[1]Rozvaha!G34)*100 -> -95.80484092
A20: 2 | B20: Nedokončená výroba a polotovary | C20: =[1]Rozvaha!D35-[1]Rozvaha!C35 -> -2800 | D20: =[1]Rozvaha!E35-[1]Rozvaha!D35 -> 13029 | E20: =[1]Rozvaha!F35-[1]Rozvaha!E35 -> -5954 | F20: =[1]Rozvaha!G35-[1]Rozvaha!F35 -> 96267 | G20: =[1]Rozvaha!H35-[1]Rozvaha!G35 -> -96819 | H20: =(([1]Rozvaha!D35-[1]Rozvaha!C35)/[1]Rozvaha!C35)*100 -> -47.30528806 | I20: =(([1]Rozvaha!E35-[1]Rozvaha!D35)/[1]Rozvaha!D35)*100 -> 417.7300417 | J20: =(([1]Rozvaha!F35-[1]Rozvaha!E35)/[1]Rozvaha!E35)*100 -> -36.87143919 | K20: =(([1]Rozvaha!G35-[1]Rozvaha!F35)/[1]Rozvaha!F35)*100 -> 944.3496174 | L20: =(([1]Rozvaha!H35-[1]Rozvaha!G35)/[1]Rozvaha!G35)*100 -> -90.94316228
A21: 3 | B21: Výrobky | C21: =[1]Rozvaha!D36-[1]Rozvaha!C36 -> -13 | D21: =[1]Rozvaha!E36-[1]Rozvaha!D36 -> -4 | E21: =[1]Rozvaha!F36-[1]Rozvaha!E36 -> -1 | F21: =[1]Rozvaha!G36-[1]Rozvaha!F36 -> 81243 | G21: =[1]Rozvaha!H36-[1]Rozvaha!G36 -> -80659 | H21: =(([1]Rozvaha!D36-[1]Rozvaha!C36)/[1]Rozvaha!C36)*100 -> -54.16666667 | I21: =(([1]Rozvaha!E36-[1]Rozvaha!D36)/[1]Rozvaha!D36)*100 -> -36.36363636 | J21: =(([1]Rozvaha!F36-[1]Rozvaha!E36)/[1]Rozvaha!E36)*100 -> -14.28571429 | K21: =(([1]Rozvaha!G36-[1]Rozvaha!F36)/[1]Rozvaha!F36)*100 -> 1354050 | L21: =(([1]Rozvaha!H36-[1]Rozvaha!G36)/[1]Rozvaha!G36)*100 -> -99.27383722
A22: 4 | B22: Zvířata | C22: =[1]Rozvaha!D37-[1]Rozvaha!C37 -> 0 | D22: =[1]Rozvaha!E37-[1]Rozvaha!D37 -> 0 | E22: =[1]Rozvaha!F37-[1]Rozvaha!E37 -> 0 | F22: =[1]Rozvaha!G37-[1]Rozvaha!F37 -> 0 | G22: =[1]Rozvaha!H37-[1]Rozvaha!G37 -> 87 | H22: =(([1]Rozvaha!D37-[1]Rozvaha!C37)/[1]Rozvaha!C37)*100 ->  | I22: =(([1]Rozvaha!E37-[1]Rozvaha!D37)/[1]Rozvaha!D37)*100 ->  | J22: =(([1]Rozvaha!F37-[1]Rozvaha!E37)/[1]Rozvaha!E37)*100 ->  | K22: =(([1]Rozvaha!G37-[1]Rozvaha!F37)/[1]Rozvaha!F37)*100 ->  | L22: =(([1]Rozvaha!H37-[1]Rozvaha!G37)/[1]Rozvaha!G37)*100 -> 
A23: 5 | B23: Zboží | C23: =[1]Rozvaha!D38-[1]Rozvaha!C38 -> -24 | D23: =[1]Rozvaha!E38-[1]Rozvaha!D38 -> -92 | E23: =[1]Rozvaha!F38-[1]Rozvaha!E38 -> -39 | F23: =[1]Rozvaha!G38-[1]Rozvaha!F38 -> 7846 | G23: =[1]Rozvaha!H38-[1]Rozvaha!G38 -> -8678 | H23: =(([1]Rozvaha!D38-[1]Rozvaha!C38)/[1]Rozvaha!C38)*100 -> -1.610738255 | I23: =(([1]Rozvaha!E38-[1]Rozvaha!D38)/[1]Rozvaha!D38)*100 -> -6.275579809 | J23: =(([1]Rozvaha!F38-[1]Rozvaha!E38)/[1]Rozvaha!E38)*100 -> -2.838427948 | K23: =(([1]Rozvaha!G38-[1]Rozvaha!F38)/[1]Rozvaha!F38)*100 -> 587.7153558 | L23: =(([1]Rozvaha!H38-[1]Rozvaha!G38)/[1]Rozvaha!G38)*100 -> -94.52129398
A24: 6 | B24: Poskytnuté zálohy na zásoby | C24: =[1]Rozvaha!D39-[1]Rozvaha!C39 -> 167 | D24: =[1]Rozvaha!E39-[1]Rozvaha!D39 -> -167 | E24: =[1]Rozvaha!F39-[1]Rozvaha!E39 -> 0 | F24: =[1]Rozvaha!G39-[1]Rozvaha!F39 -> 0 | G24: =[1]Rozvaha!H39-[1]Rozvaha!G39 -> 0 | H24: =(([1]Rozvaha!D39-[1]Rozvaha!C39)/[1]Rozvaha!C39)*100 ->  | I24: =(([1]Rozvaha!E39-[1]Rozvaha!D39)/[1]Rozvaha!D39)*100 -> -100 | J24: =(([1]Rozvaha!F39-[1]Rozvaha!E39)/[1]Rozvaha!E39)*100 ->  | K24: =(([1]Rozvaha!G39-[1]Rozvaha!F39)/[1]Rozvaha!F39)*100 ->  | L24: =(([1]Rozvaha!H39-[1]Rozvaha!G39)/[1]Rozvaha!G39)*100 -> 
A25: C. II. | B25: Dlouhodobé pohledávky | C25: =[1]Rozvaha!D40-[1]Rozvaha!C40 -> 57 | D25: =[1]Rozvaha!E40-[1]Rozvaha!D40 -> 23 | E25: =[1]Rozvaha!F40-[1]Rozvaha!E40 -> -23 | F25: =[1]Rozvaha!G40-[1]Rozvaha!F40 -> -3 | G25: =[1]Rozvaha!H40-[1]Rozvaha!G40 -> -5 | H25: =(([1]Rozvaha!D40-[1]Rozvaha!C40)/[1]Rozvaha!C40)*100 -> 1140 | I25: =(([1]Rozvaha!E40-[1]Rozvaha!D40)/[1]Rozvaha!D40)*100 -> 37.09677419 | J25: =(([1]Rozvaha!F40-[1]Rozvaha!E40)/[1]Rozvaha!E40)*100 -> -27.05882353 | K25: =(([1]Rozvaha!G40-[1]Rozvaha!F40)/[1]Rozvaha!F40)*100 -> -4.838709677 | L25: =(([1]Rozvaha!H40-[1]Rozvaha!G40)/[1]Rozvaha!G40)*100 -> -8.474576271
A26: 5 | B26: Dlouhodobé poskytnuté zálohy | C26: =[1]Rozvaha!D45-[1]Rozvaha!C45 -> 57 | D26: =[1]Rozvaha!E45-[1]Rozvaha!D45 -> 23 | E26: =[1]Rozvaha!F45-[1]Rozvaha!E45 -> -23 | F26: =[1]Rozvaha!G45-[1]Rozvaha!F45 -> -3 | G26: =[1]Rozvaha!H45-[1]Rozvaha!G45 -> -5 | H26: =(([1]Rozvaha!D45-[1]Rozvaha!C45)/[1]Rozvaha!C45)*100 -> 1140 | I26: =(([1]Rozvaha!E45-[1]Rozvaha!D45)/[1]Rozvaha!D45)*100 -> 37.09677419 | J26: =(([1]Rozvaha!F45-[1]Rozvaha!E45)/[1]Rozvaha!E45)*100 -> -27.05882353 | K26: =(([1]Rozvaha!G45-[1]Rozvaha!F45)/[1]Rozvaha!F45)*100 -> -4.838709677 | L26: =(([1]Rozvaha!H45-[1]Rozvaha!G45)/[1]Rozvaha!G45)*100 -> -8.474576271
A27: C. III. | B27: Krátkodobé pohledávky | C27: =[1]Rozvaha!D49-[1]Rozvaha!C49 -> -8101 | D27: =[1]Rozvaha!E49-[1]Rozvaha!D49 -> 5042 | E27: =[1]Rozvaha!F49-[1]Rozvaha!E49 -> 1343 | F27: =[1]Rozvaha!G49-[1]Rozvaha!F49 -> 64823 | G27: =[1]Rozvaha!H49-[1]Rozvaha!G49 -> -38502 | H27: =(([1]Rozvaha!D49-[1]Rozvaha!C49)/[1]Rozvaha!C49)*100 -> -18.33842671 | I27: =(([1]Rozvaha!E49-[1]Rozvaha!D49)/[1]Rozvaha!D49)*100 -> 13.97682541 | J27: =(([1]Rozvaha!F49-[1]Rozvaha!E49)/[1]Rozvaha!E49)*100 -> 3.266368324 | K27: =(([1]Rozvaha!G49-[1]Rozvaha!F49)/[1]Rozvaha!F49)*100 -> 152.6719894 | L27: =(([1]Rozvaha!H49-[1]Rozvaha!G49)/[1]Rozvaha!G49)*100 -> -35.88859268
A28: 1 | B28: Pohledávky z obchodních vztahů (z obchodního styku) | C28: =[1]Rozvaha!D50-[1]Rozvaha!C50 -> -3043 | D28: =[1]Rozvaha!E50-[1]Rozvaha!D50 -> 2409 | E28: =[1]Rozvaha!F50-[1]Rozvaha!E50 -> 1701 | F28: =[1]Rozvaha!G50-[1]Rozvaha!F50 -> -3401 | G28: =[1]Rozvaha!H50-[1]Rozvaha!G50 -> 32138 | H28: =(([1]Rozvaha!D50-[1]Rozvaha!C50)/[1]Rozvaha!C50)*100 -> -7.903485533 | I28: =(([1]Rozvaha!E50-[1]Rozvaha!D50)/[1]Rozvaha!D50)*100 -> 6.793761809 | J28: =(([1]Rozvaha!F50-[1]Rozvaha!E50)/[1]Rozvaha!E50)*100 -> 4.491919299 | K28: =(([1]Rozvaha!G50-[1]Rozvaha!F50)/[1]Rozvaha!F50)*100 -> -8.595112335 | L28: =(([1]Rozvaha!H50-[1]Rozvaha!G50)/[1]Rozvaha!G50)*100 -> 88.85755364
B29: Pohledávky -ostatní | C29: =[1]Rozvaha!D53-[1]Rozvaha!C53 -> 0 | D29: =[1]Rozvaha!E53-[1]Rozvaha!D53 -> 0 | E29: =[1]Rozvaha!F53-[1]Rozvaha!E53 -> 0 | F29: =[1]Rozvaha!G53-[1]Rozvaha!F53 -> 0 | G29: =[1]Rozvaha!H53-[1]Rozvaha!G53 -> 474 | H29: =(([1]Rozvaha!D53-[1]Rozvaha!C53)/[1]Rozvaha!C53)*100 ->  | I29: =(([1]Rozvaha!E53-[1]Rozvaha!D53)/[1]Rozvaha!D53)*100 ->  | J29: =(([1]Rozvaha!F53-[1]Rozvaha!E53)/[1]Rozvaha!E53)*100 ->  | K29: =(([1]Rozvaha!G53-[1]Rozvaha!F53)/[1]Rozvaha!F53)*100 ->  | L29: =(([1]Rozvaha!H53-[1]Rozvaha!G53)/[1]Rozvaha!G53)*100 -> 
A30: 6 | B30: Stát - daňové pohledávky | C30: =[1]Rozvaha!D56-[1]Rozvaha!C56 -> -1789 | D30: =[1]Rozvaha!E56-[1]Rozvaha!D56 -> 2217 | E30: =[1]Rozvaha!F56-[1]Rozvaha!E56 -> -1821 | F30: =[1]Rozvaha!G56-[1]Rozvaha!F56 -> 70418 | G30: =[1]Rozvaha!H56-[1]Rozvaha!G56 -> -70814 | H30: =(([1]Rozvaha!D56-[1]Rozvaha!C56)/[1]Rozvaha!C56)*100 -> -100 | I30: =(([1]Rozvaha!E56-[1]Rozvaha!D56)/[1]Rozvaha!D56)*100 ->  | J30: =(([1]Rozvaha!F56-[1]Rozvaha!E56)/[1]Rozvaha!E56)*100 -> -82.13802436 | K30: =(([1]Rozvaha!G56-[1]Rozvaha!F56)/[1]Rozvaha!F56)*100 -> 17782.32323 | L30: =(([1]Rozvaha!H56-[1]Rozvaha!G56)/[1]Rozvaha!G56)*100 -> -100
A31: 7 | B31: Krátkodobé poskytnuté zálohy | C31: =[1]Rozvaha!D57-[1]Rozvaha!C57 -> -3235 | D31: =[1]Rozvaha!E57-[1]Rozvaha!D57 -> 171 | E31: =[1]Rozvaha!F57-[1]Rozvaha!E57 -> 95 | F31: =[1]Rozvaha!G57-[1]Rozvaha!F57 -> -694 | G31: =[1]Rozvaha!H57-[1]Rozvaha!G57 -> 288 | H31: =(([1]Rozvaha!D57-[1]Rozvaha!C57)/[1]Rozvaha!C57)*100 -> -84.84133228 | I31: =(([1]Rozvaha!E57-[1]Rozvaha!D57)/[1]Rozvaha!D57)*100 -> 29.58477509 | J31: =(([1]Rozvaha!F57-[1]Rozvaha!E57)/[1]Rozvaha!E57)*100 -> 12.6835781 | K31: =(([1]Rozvaha!G57-[1]Rozvaha!F57)/[1]Rozvaha!F57)*100 -> -82.22748815 | L31: =(([1]Rozvaha!H57-[1]Rozvaha!G57)/[1]Rozvaha!G57)*100 -> 192
A32: 8 | B32: Dohadné účty aktivní | C32: =[1]Rozvaha!D58-[1]Rozvaha!C58 -> 0 | D32: =[1]Rozvaha!E58-[1]Rozvaha!D58 -> 0 | E32: =[1]Rozvaha!F58-[1]Rozvaha!E58 -> 355 | F32: =[1]Rozvaha!G58-[1]Rozvaha!F58 -> -240 | G32: =[1]Rozvaha!H58-[1]Rozvaha!G58 -> -115 | H32: =(([1]Rozvaha!D58-[1]Rozvaha!C58)/[1]Rozvaha!C58)*100 ->  | I32: =(([1]Rozvaha!E58-[1]Rozvaha!D58)/[1]Rozvaha!D58)*100 ->  | J32: =(([1]Rozvaha!F58-[1]Rozvaha!E58)/[1]Rozvaha!E58)*100 ->  | K32: =(([1]Rozvaha!G58-[1]Rozvaha!F58)/[1]Rozvaha!F58)*100 -> -67.6056338 | L32: =(([1]Rozvaha!H58-[1]Rozvaha!G58)/[1]Rozvaha!G58)*100 -> -100
A33: 9 | B33: Jiné pohledávky | C33: =[1]Rozvaha!D59-[1]Rozvaha!C59 -> -34 | D33: =[1]Rozvaha!E59-[1]Rozvaha!D59 -> 245 | E33: =[1]Rozvaha!F59-[1]Rozvaha!E59 -> 1013 | F33: =[1]Rozvaha!G59-[1]Rozvaha!F59 -> -1260 | G33: =[1]Rozvaha!H59-[1]Rozvaha!G59 -> 1 | H33: =(([1]Rozvaha!D59-[1]Rozvaha!C59)/[1]Rozvaha!C59)*100 -> -47.88732394 | I33: =(([1]Rozvaha!E59-[1]Rozvaha!D59)/[1]Rozvaha!D59)*100 -> 662.1621622 | J33: =(([1]Rozvaha!F59-[1]Rozvaha!E59)/[1]Rozvaha!E59)*100 -> 359.2198582 | K33: =(([1]Rozvaha!G59-[1]Rozvaha!F59)/[1]Rozvaha!F59)*100 -> -97.2972973 | L33: =(([1]Rozvaha!H59-[1]Rozvaha!G59)/[1]Rozvaha!G59)*100 -> 2.857142857
A34: C. IV. | B34: Finanční majetek | C34: =[1]Rozvaha!D60-[1]Rozvaha!C60 -> -7311 | D34: =[1]Rozvaha!E60-[1]Rozvaha!D60 -> -15312 | E34: =[1]Rozvaha!F60-[1]Rozvaha!E60 -> 4726 | F34: =[1]Rozvaha!G60-[1]Rozvaha!F60 -> -2653 | G34: =[1]Rozvaha!H60-[1]Rozvaha!G60 -> 1569 | H34: =(([1]Rozvaha!D60-[1]Rozvaha!C60)/[1]Rozvaha!C60)*100 -> -27.4746336 | I34: =(([1]Rozvaha!E60-[1]Rozvaha!D60)/[1]Rozvaha!D60)*100 -> -79.34089849 | J34: =(([1]Rozvaha!F60-[1]Rozvaha!E60)/[1]Rozvaha!E60)*100 -> 118.5352395 | K34: =(([1]Rozvaha!G60-[1]Rozvaha!F60)/[1]Rozvaha!F60)*100 -> -30.44875473 | L34: =(([1]Rozvaha!H60-[1]Rozvaha!G60)/[1]Rozvaha!G60)*100 -> 25.89108911
A35: 1 | B35: Peníze | C35: =[1]Rozvaha!D61-[1]Rozvaha!C61 -> 37 | D35: =[1]Rozvaha!E61-[1]Rozvaha!D61 -> -104 | E35: =[1]Rozvaha!F61-[1]Rozvaha!E61 -> -121 | F35: =[1]Rozvaha!G61-[1]Rozvaha!F61 -> 86 | G35: =[1]Rozvaha!H61-[1]Rozvaha!G61 -> -37 | H35: =(([1]Rozvaha!D61-[1]Rozvaha!C61)/[1]Rozvaha!C61)*100 -> 7.312252964 | I35: =(([1]Rozvaha!E61-[1]Rozvaha!D61)/[1]Rozvaha!D61)*100 -> -19.15285451 | J35: =(([1]Rozvaha!F61-[1]Rozvaha!E61)/[1]Rozvaha!E61)*100 -> -27.56264237 | K35: =(([1]Rozvaha!G61-[1]Rozvaha!F61)/[1]Rozvaha!F61)*100 -> 27.04402516 | L35: =(([1]Rozvaha!H61-[1]Rozvaha!G61)/[1]Rozvaha!G61)*100 -> -9.158415842
A36: 2 | B36: Účty v bankách | C36: =[1]Rozvaha!D62-[1]Rozvaha!C62 -> -7348 | D36: =[1]Rozvaha!E62-[1]Rozvaha!D62 -> -15208 | E36: =[1]Rozvaha!F62-[1]Rozvaha!E62 -> 5847 | F36: =[1]Rozvaha!G62-[1]Rozvaha!F62 -> -3739 | G36: =[1]Rozvaha!H62-[1]Rozvaha!G62 -> 1606 | H36: =(([1]Rozvaha!D62-[1]Rozvaha!C62)/[1]Rozvaha!C62)*100 -> -28.14894269 | I36: =(([1]Rozvaha!E62-[1]Rozvaha!D62)/[1]Rozvaha!D62)*100 -> -81.08338665 | J36: =(([1]Rozvaha!F62-[1]Rozvaha!E62)/[1]Rozvaha!E62)*100 -> 164.7970688 | K36: =(([1]Rozvaha!G62-[1]Rozvaha!F62)/[1]Rozvaha!F62)*100 -> -39.79776477 | L36: =(([1]Rozvaha!H62-[1]Rozvaha!G62)/[1]Rozvaha!G62)*100 -> 28.39462518
A37: D. I. | B37: Časové rozlišení | C37: =[1]Rozvaha!D65-[1]Rozvaha!C65 -> 23 | D37: =[1]Rozvaha!E65-[1]Rozvaha!D65 -> 185 | E37: =[1]Rozvaha!F65-[1]Rozvaha!E65 -> -10 | F37: =[1]Rozvaha!G65-[1]Rozvaha!F65 -> 2387 | G37: =[1]Rozvaha!H65-[1]Rozvaha!G65 -> -2783 | H37: =(([1]Rozvaha!D65-[1]Rozvaha!C65)/[1]Rozvaha!C65)*100 -> 5.70719603 | I37: =(([1]Rozvaha!E65-[1]Rozvaha!D65)/[1]Rozvaha!D65)*100 -> 43.42723005 | J37: =(([1]Rozvaha!F65-[1]Rozvaha!E65)/[1]Rozvaha!E65)*100 -> -1.636661211 | K37: =(([1]Rozvaha!G65-[1]Rozvaha!F65)/[1]Rozvaha!F65)*100 -> 397.171381 | L37: =(([1]Rozvaha!H65-[1]Rozvaha!G65)/[1]Rozvaha!G65)*100 -> -93.13922356
A38: 1 | B38: Náklady příštích období | C38: =[1]Rozvaha!D66-[1]Rozvaha!C66 -> 24 | D38: =[1]Rozvaha!E66-[1]Rozvaha!D66 -> 162 | E38: =[1]Rozvaha!F66-[1]Rozvaha!E66 -> -58 | F38: =[1]Rozvaha!G66-[1]Rozvaha!F66 -> 2397 | G38: =[1]Rozvaha!H66-[1]Rozvaha!G66 -> -2726 | H38: =(([1]Rozvaha!D66-[1]Rozvaha!C66)/[1]Rozvaha!C66)*100 -> 6 | I38: =(([1]Rozvaha!E66-[1]Rozvaha!D66)/[1]Rozvaha!D66)*100 -> 38.20754717 | J38: =(([1]Rozvaha!F66-[1]Rozvaha!E66)/[1]Rozvaha!E66)*100 -> -9.897610922 | K38: =(([1]Rozvaha!G66-[1]Rozvaha!F66)/[1]Rozvaha!F66)*100 -> 453.9772727 | L38: =(([1]Rozvaha!H66-[1]Rozvaha!G66)/[1]Rozvaha!G66)*100 -> -93.1965812
A39: 3 | B39: Příjmy příštích období | C39: =[1]Rozvaha!D68-[1]Rozvaha!C68 -> -1 | D39: =[1]Rozvaha!E68-[1]Rozvaha!D68 -> 23 | E39: =[1]Rozvaha!F68-[1]Rozvaha!E68 -> 48 | F39: =[1]Rozvaha!G68-[1]Rozvaha!F68 -> -10 | G39: =[1]Rozvaha!H68-[1]Rozvaha!G68 -> -57 | H39: =(([1]Rozvaha!D68-[1]Rozvaha!C68)/[1]Rozvaha!C68)*100 -> -33.33333333 | I39: =(([1]Rozvaha!E68-[1]Rozvaha!D68)/[1]Rozvaha!D68)*100 -> 1150 | J39: =(([1]Rozvaha!F68-[1]Rozvaha!E68)/[1]Rozvaha!E68)*100 -> 192 | K39: =(([1]Rozvaha!G68-[1]Rozvaha!F68)/[1]Rozvaha!F68)*100 -> -13.69863014 | L39: =(([1]Rozvaha!H68-[1]Rozvaha!G68)/[1]Rozvaha!G68)*100 -> -90.47619048
C43: Absolútna zmena | H43: Percentuálna zmena
B44: PASIVA | C44: 2011-2012 | D44: 2012-2013 | E44: 2013-2014 | F44: 2014-2015 | G44: 2015-2016 | H44: 2011-2012 | I44: 2012-2013 | J44: 2013-2014 | K44: 2014-2015 | L44: 2015-2016
B45: PASIVA CELKEM | C45: -19028 | D45: 990 | E45: -969 | F45: 689956 | G45: -667318 | H45: -20.21459683 | I45: 1.318207238 | J45: -1.273458445 | K45: 918.4350998 | L45: -87.22210386
A46: A. | B46: Vlastní kapitál | C46: -11366 | D46: -6116 | E46: 101 | F46: 379733 | G46: -360166 | H46: -17.99271806 | I46: -11.80603814 | J46: 0.2210646122 | K46: 829.3105331 | L46: -84.64098213
A47: A. I. | B47: Základní kapitál | C47: 0 | D47: 0 | E47: 0 | F47: 406104 | G47: -400118 | H47: 0 | I47: 0 | J47: 0 | K47: 10117.18984 | L47: -97.56167737
A48: B. | B48: Cizí zdroje | C48: 2839 | D48: 2503 | E48: -1068 | F48: 316411 | G48: -312107 | H48: 16.4094561 | I48: 12.42800397 | J48: -4.716689485 | K48: 1466.563152 | L48: -92.34317398
A49: B. II. | B49: Dlouhodobé závazky | C49: 7 | D49: 3 | E49: -1 | F49: 2748 | G49: -2809 | H49: 1.51187905 | I49: 0.6382978723 | J49: -0.2114164905 | K49: 582.2033898 | L49: -87.23602484
A50: B. III. | B50: Krátkodobé závazky | C50: 2832 | D50: 2500 | E50: -1067 | F50: 313663 | G50: -309298 | H50: 16.81909966 | I50: 12.70971022 | J50: -4.812810104 | K50: 1486.343174 | L50: -92.3922979
A51: 1 | B51: Závazky z obchodních vztahů | C51: 4863 | D51: -1781 | E51: 1501 | F51: 319213 | G51: -319312 | H51: 98.34175935 | I51: -18.158646 | J51: 18.69938956 | K51: 3350.262385 | L51: -97.1317846
A52: 5 | B52: Závazky k zaměstnancům | C52: 64 | D52: -138 | E52: 321 | F52: -457 | G52: 84 | H52: 2.002503129 | I52: -4.233128834 | J52: 10.2818706 | K52: -13.27330816 | L52: 2.81312793
A53: 6 | B53: Závazky ze sociálního a zdravotního zabezpečení | C53: -164 | D53: 22 | E53: 200 | F53: -216 | G53: -20 | H53: -8.704883227 | I53: 1.279069767 | J53: 11.48105626 | K53: -11.12255407 | L53: -1.158748552
A54: 7 | B54: Stát - daňové závazky a dotace | C54: 728 | D54: -613 | E54: 2161 | F54: -4191 | G54: 4593 | H54: 25.34818942 | I54: -17.02777778 | J54: 72.34683629 | K54: -81.41025641 | L54: 479.9373041

Sheet Vertikálna analýza (hidden)
B1: AKTIVA | C1: 2011 | D1: 2012 | E1: 2013 | F1: 2014 | G1: 2015 | H1: 2016
B3: AKTIVA CELKEM | C3: =(Rozvaha!C2/Rozvaha!C2)*100 -> 100 | D3: =(Rozvaha!D2/Rozvaha!D2)*100 -> 100 | E3: =(Rozvaha!E2/Rozvaha!E2)*100 -> 100 | F3: =(Rozvaha!F2/Rozvaha!F2)*100 -> 100 | G3: =(Rozvaha!G2/Rozvaha!G2)*100 -> 100 | H3: =(Rozvaha!H2/Rozvaha!H2)*100 -> 100
A4: A. | B4: Pohledávky za upsaný vlastní kapitál | C4: =(Rozvaha!C3/Rozvaha!C2)*100 -> 0 | D4: =(Rozvaha!D3/Rozvaha!D2)*100 -> 0 | E4: =(Rozvaha!E3/Rozvaha!E2)*100 -> 0 | F4: =(Rozvaha!F3/Rozvaha!F2)*100 -> 0 | G4: =(Rozvaha!G3/Rozvaha!G2)*100 -> 0 | H4: =(Rozvaha!H3/Rozvaha!H2)*100 -> 0
A5: B. | B5: Stálá aktiva | C5: =Rozvaha!C4/Rozvaha!C2*100 -> 12.76426219 | D5: =Rozvaha!D4/Rozvaha!D2*100 -> 15.34979095 | E5: =Rozvaha!E4/Rozvaha!E2*100 -> 13.78857173 | F5: =Rozvaha!F4/Rozvaha!F2*100 -> 12.75375052 | G5: =Rozvaha!G4/Rozvaha!G2*100 -> 47.71794808 | H5: =Rozvaha!H4/Rozvaha!H2*100 -> 7.388426878
A6: B. I. | B6: Dlouhodobý nehmotný majetek | C6: =Rozvaha!C5/Rozvaha!C2*100 -> 0.04461914374 | D6: =Rozvaha!D5/Rozvaha!D2*100 -> 0 | E6: =Rozvaha!E5/Rozvaha!E2*100 -> 0 | F6: =Rozvaha!F5/Rozvaha!F2*100 -> 0 | G6: =Rozvaha!G5/Rozvaha!G2*100 -> 2.376486611 | H6: =Rozvaha!H5/Rozvaha!H2*100 -> 0
A7: 1 | B7: Zřizovací výdaje | C7: =Rozvaha!C6/Rozvaha!C2*100 -> 0 | D7: =Rozvaha!D6/Rozvaha!D2*100 -> 0 | E7: =Rozvaha!E6/Rozvaha!E2*100 -> 0 | F7: =Rozvaha!F6/Rozvaha!F2*100 -> 0 | G7: =Rozvaha!G6/Rozvaha!G2*100 -> 0 | H7: =Rozvaha!H6/Rozvaha!H2*100 -> 0
A8: 2 | B8: Nehmotné výsledky výzkumu a vývoje | C8: =Rozvaha!C7/Rozvaha!C2*100 -> 0 | D8: =Rozvaha!D7/Rozvaha!D2*100 -> 0 | E8: =Rozvaha!E7/Rozvaha!E2*100 -> 0 | F8: =Rozvaha!F7/Rozvaha!F2*100 -> 0 | G8: =Rozvaha!G7/Rozvaha!G2*100 -> 0 | H8: =Rozvaha!H7/Rozvaha!H2*100 -> 0
A9: 3 | B9: Software | C9: =Rozvaha!C8/Rozvaha!C2*100 -> 0.04461914374 | D9: =Rozvaha!D8/Rozvaha!D2*100 -> 0 | E9: =Rozvaha!E8/Rozvaha!E2*100 -> 0 | F9: =Rozvaha!F8/Rozvaha!F2*100 -> 0 | G9: =Rozvaha!G8/Rozvaha!G2*100 -> 0 | H9: =Rozvaha!H8/Rozvaha!H2*100 -> 0
A10: 4 | B10: Ocenitená práva | C10: =Rozvaha!C9/Rozvaha!C2*100 -> 0 | D10: =Rozvaha!D9/Rozvaha!D2*100 -> 0 | E10: =Rozvaha!E9/Rozvaha!E2*100 -> 0 | F10: =Rozvaha!F9/Rozvaha!F2*100 -> 0 | G10: =Rozvaha!G9/Rozvaha!G2*100 -> 2.376486611 | H10: =Rozvaha!H9/Rozvaha!H2*100 -> 0
A11: 5 | B11: Goodwill | C11: =Rozvaha!C10/Rozvaha!C2*100 -> 0 | D11: =Rozvaha!D10/Rozvaha!D2*100 -> 0 | E11: =Rozvaha!E10/Rozvaha!E2*100 -> 0 | F11: =Rozvaha!F10/Rozvaha!F2*100 -> 0 | G11: =Rozvaha!G10/Rozvaha!G2*100 -> 0 | H11: =Rozvaha!H10/Rozvaha!H2*100 -> 0
A12: 6 | B12: Jiný dlouhodobý nehmotný majetek | C12: =Rozvaha!C11/Rozvaha!C2*100 -> 0 | D12: =Rozvaha!D11/Rozvaha!D2*100 -> 0 | E12: =Rozvaha!E11/Rozvaha!E2*100 -> 0 | F12: =Rozvaha!F11/Rozvaha!F2*100 -> 0 | G12: =Rozvaha!G11/Rozvaha!G2*100 -> 0 | H12: =Rozvaha!H11/Rozvaha!H2*100 -> 0
A13: 7 | B13: Nedokončený dlouhodobý nehmotný majetek | C13: =Rozvaha!C12/Rozvaha!C2*100 -> 0 | D13: =Rozvaha!D12/Rozvaha!D2*100 -> 0 | E13: =Rozvaha!E12/Rozvaha!E2*100 -> 0 | F13: =Rozvaha!F12/Rozvaha!F2*100 -> 0 | G13: =Rozvaha!G12/Rozvaha!G2*100 -> 0 | H13: =Rozvaha!H12/Rozvaha!H2*100 -> 0
A14: 8 | B14: Poskytnuté zálohy na dlouhodobý nehmotný majetek | C14: =Rozvaha!C13/Rozvaha!C2*100 -> 0 | D14: =Rozvaha!D13/Rozvaha!D2*100 -> 0 | E14: =Rozvaha!E13/Rozvaha!E2*100 -> 0 | F14: =Rozvaha!F13/Rozvaha!F2*100 -> 0 | G14: =Rozvaha!G13/Rozvaha!G2*100 -> 0 | H14: =Rozvaha!H13/Rozvaha!H2*100 -> 0
A15: B. II. | B15: Dlouhodobý hmotný majetek | C15: =Rozvaha!C14/Rozvaha!C2*100 -> 12.71964305 | D15: =Rozvaha!D14/Rozvaha!D2*100 -> 15.34979095 | E15: =Rozvaha!E14/Rozvaha!E2*100 -> 13.78857173 | F15: =Rozvaha!F14/Rozvaha!F2*100 -> 12.75375052 | G15: =Rozvaha!G14/Rozvaha!G2*100 -> 9.608419523 | H15: =Rozvaha!H14/Rozvaha!H2*100 -> 7.388426878
A16: 1 | B16: Pozemky | C16: =Rozvaha!C15/Rozvaha!C2*100 -> 1.701901625 | D16: =Rozvaha!D15/Rozvaha!D2*100 -> 2.133098985 | E16: =Rozvaha!E15/Rozvaha!E2*100 -> 2.10534616 | F16: =Rozvaha!F15/Rozvaha!F2*100 -> 2.132502696 | G16: =Rozvaha!G15/Rozvaha!G2*100 -> 0.2093901414 | H16: =Rozvaha!H15/Rozvaha!H2*100 -> 8.328474545
A17: 2 | B17: Stavby | C17: =Rozvaha!C16/Rozvaha!C2*100 -> 8.626367789 | D17: =Rozvaha!D16/Rozvaha!D2*100 -> 11.13552236 | E17: =Rozvaha!E16/Rozvaha!E2*100 -> 10.32565841 | F17: =Rozvaha!F16/Rozvaha!F2*100 -> 9.787947766 | G17: =Rozvaha!G16/Rozvaha!G2*100 -> 0.9208199415 | H17: =Rozvaha!H16/Rozvaha!H2*100 -> 1.638690275
A18: 3 | B18: Samostatné movité věci a soubory movitých věcí | C18: =Rozvaha!C17/Rozvaha!C2*100 -> 2.353128652 | D18: =Rozvaha!D17/Rozvaha!D2*100 -> 2.031903278 | E18: =Rozvaha!E17/Rozvaha!E2*100 -> 1.310256006 | F18: =Rozvaha!F17/Rozvaha!F2*100 -> 0.7840474954 | G18: =Rozvaha!G17/Rozvaha!G2*100 -> 2.319629738 | H18: =Rozvaha!H17/Rozvaha!H2*100 -> 6.68978427
A19: 4 | B19: Pěstitelské celky trvalých porostů | C19: =Rozvaha!C18/Rozvaha!C2*100 -> 0 | D19: =Rozvaha!D18/Rozvaha!D2*100 -> 0 | E19: =Rozvaha!E18/Rozvaha!E2*100 -> 0 | F19: =Rozvaha!F18/Rozvaha!F2*100 -> 0 | G19: =Rozvaha!G18/Rozvaha!G2*100 -> 0 | H19: =Rozvaha!H18/Rozvaha!H2*100 -> 0.5083826884
A20: 5 | B20: Základní stádo a tažná zvířata | C20: =Rozvaha!C19/Rozvaha!C2*100 -> 0 | D20: =Rozvaha!D19/Rozvaha!D2*100 -> 0 | E20: =Rozvaha!E19/Rozvaha!E2*100 -> 0 | F20: =Rozvaha!F19/Rozvaha!F2*100 -> 0 | G20: =Rozvaha!G19/Rozvaha!G2*100 -> 0 | H20: =Rozvaha!H19/Rozvaha!H2*100 -> 0
A21: 6 | B21: Jiný dlouhodobý hmotný majetek | C21: =Rozvaha!C20/Rozvaha!C2*100 -> 0 | D21: =Rozvaha!D20/Rozvaha!D2*100 -> 0 | E21: =Rozvaha!E20/Rozvaha!E2*100 -> 0 | F21: =Rozvaha!F20/Rozvaha!F2*100 -> 0 | G21: =Rozvaha!G20/Rozvaha!G2*100 -> 3.364750568 | H21: =Rozvaha!H20/Rozvaha!H2*100 -> -1.448430356
A22: 7 | B22: Nedokončený dlouhodobý hmotný majetek | C22: =Rozvaha!C21/Rozvaha!C2*100 -> 0.03824498035 | D22: =Rozvaha!D21/Rozvaha!D2*100 -> 0.04926633112 | E22: =Rozvaha!E21/Rozvaha!E2*100 -> 0.04731114966 | F22: =Rozvaha!F21/Rozvaha!F2*100 -> 0.04925255914 | G22: =Rozvaha!G21/Rozvaha!G2*100 -> 0 | H22: =Rozvaha!H21/Rozvaha!H2*100 -> 0
A23: 8 | B23: Poskytnuté zálohy na dlouhodobý hmotný majetek | C23: =Rozvaha!C22/Rozvaha!C2*100 -> 0 | D23: =Rozvaha!D22/Rozvaha!D2*100 -> 0 | E23: =Rozvaha!E22/Rozvaha!E2*100 -> 0 | F23: =Rozvaha!F22/Rozvaha!F2*100 -> 0 | G23: =Rozvaha!G22/Rozvaha!G2*100 -> 0 | H23: =Rozvaha!H22/Rozvaha!H2*100 -> -1.448430356
A24: 9 | B24: Oceňovací rozdíl k nabytému majetku | C24: =Rozvaha!C23/Rozvaha!C2*100 -> 0 | D24: =Rozvaha!D23/Rozvaha!D2*100 -> 0 | E24: =Rozvaha!E23/Rozvaha!E2*100 -> 0 | F24: =Rozvaha!F23/Rozvaha!F2*100 -> 0 | G24: =Rozvaha!G23/Rozvaha!G2*100 -> 2.793829134 | H24: =Rozvaha!H23/Rozvaha!H2*100 -> 0
A25: B. III. | B25: Dlouhodobý finanční majetek | C25: =Rozvaha!C24/Rozvaha!C2*100 -> 0 | D25: =Rozvaha!D24/Rozvaha!D2*100 -> 0 | E25: =Rozvaha!E24/Rozvaha!E2*100 -> 0 | F25: =Rozvaha!F24/Rozvaha!F2*100 -> 0 | G25: =Rozvaha!G24/Rozvaha!G2*100 -> 35.73343406 | H25: =Rozvaha!H24/Rozvaha!H2*100 -> 0
A26: 1 | B26: Podíly v ovládaných a řízených osobách | C26: =Rozvaha!C25/Rozvaha!C2*100 -> 0 | D26: =Rozvaha!D25/Rozvaha!D2*100 -> 0 | E26: =Rozvaha!E25/Rozvaha!E2*100 -> 0 | F26: =Rozvaha!F25/Rozvaha!F2*100 -> 0 | G26: =Rozvaha!G25/Rozvaha!G2*100 -> 35.73304195 | H26: =Rozvaha!H25/Rozvaha!H2*100 -> 0
A27: 2 | B27: Podíly v účetních jednotkách podstatným vlivem | C27: =Rozvaha!C26/Rozvaha!C2*100 -> 0 | D27: =Rozvaha!D26/Rozvaha!D2*100 -> 0 | E27: =Rozvaha!E26/Rozvaha!E2*100 -> 0 | F27: =Rozvaha!F26/Rozvaha!F2*100 -> 0 | G27: =Rozvaha!G26/Rozvaha!G2*100 -> 0 | H27: =Rozvaha!H26/Rozvaha!H2*100 -> 0
A28: 3 | B28: Ostatní dlouhodobé cenné papíry a podíly (vklady) | C28: =Rozvaha!C27/Rozvaha!C2*100 -> 0 | D28: =Rozvaha!D27/Rozvaha!D2*100 -> 0 | E28: =Rozvaha!E27/Rozvaha!E2*100 -> 0 | F28: =Rozvaha!F27/Rozvaha!F2*100 -> 0 | G28: =Rozvaha!G27/Rozvaha!G2*100 -> 0 | H28: =Rozvaha!H27/Rozvaha!H2*100 -> 0
A29: 4 | B29: Půjčky a úvěry - ovládající a řídící osoba, podstatný vliv | C29: =Rozvaha!C28/Rozvaha!C2*100 -> 0 | D29: =Rozvaha!D28/Rozvaha!D2*100 -> 0 | E29: =Rozvaha!E28/Rozvaha!E2*100 -> 0 | F29: =Rozvaha!F28/Rozvaha!F2*100 -> 0 | G29: =Rozvaha!G28/Rozvaha!G2*100 -> 0 | H29: =Rozvaha!H28/Rozvaha!H2*100 -> 0
A30: 5 | B30: Jiný dlouhodobý finanční majetek | C30: =Rozvaha!C29/Rozvaha!C2*100 -> 0 | D30: =Rozvaha!D29/Rozvaha!D2*100 -> 0 | E30: =Rozvaha!E29/Rozvaha!E2*100 -> 0 | F30: =Rozvaha!F29/Rozvaha!F2*100 -> 0 | G30: =Rozvaha!G29/Rozvaha!G2*100 -> 0 | H30: =Rozvaha!H29/Rozvaha!H2*100 -> 0
A31: 6 | B31: Pořizovaný dlouhodobý finanční majetek | C31: =Rozvaha!C30/Rozvaha!C2*100 -> 0 | D31: =Rozvaha!D30/Rozvaha!D2*100 -> 0 | E31: =Rozvaha!E30/Rozvaha!E2*100 -> 0 | F31: =Rozvaha!F30/Rozvaha!F2*100 -> 0 | G31: =Rozvaha!G30/Rozvaha!G2*100 -> 0 | H31: =Rozvaha!H30/Rozvaha!H2*100 -> 0
C32: =Rozvaha!C31/Rozvaha!C2*100 -> 0 | D32: =Rozvaha!D31/Rozvaha!D2*100 -> 0 | E32: =Rozvaha!E31/Rozvaha!E2*100 -> 0 | F32: =Rozvaha!F31/Rozvaha!F2*100 -> 0 | G32: =Rozvaha!G31/Rozvaha!G2*100 -> 0 | H32: =Rozvaha!H31/Rozvaha!H2*100 -> 0
C33: =Rozvaha!C32/Rozvaha!C2*100 -> 86.8076065 | D33: =Rozvaha!D32/Rozvaha!D2*100 -> 84.08298048 | E33: =Rozvaha!E32/Rozvaha!E2*100 -> 85.40845293 | F33: =Rozvaha!F32/Rozvaha!F2*100 -> 86.44622819 | G33: =Rozvaha!G32/Rozvaha!G2*100 -> 51.89150401 | H33: =Rozvaha!H32/Rozvaha!H2*100 -> 92.40187805
C34: =Rozvaha!C33/Rozvaha!C2*100 -> 11.60310209 | D34: =Rozvaha!D33/Rozvaha!D2*100 -> 10.27003276 | E34: =Rozvaha!E33/Rozvaha!E2*100 -> 26.02244651 | F34: =Rozvaha!F33/Rozvaha!F2*100 -> 18.24607643 | G34: =Rozvaha!G33/Rozvaha!G2*100 -> 37.06937454 | H34: =Rozvaha!H33/Rozvaha!H2*100 -> 14.18766175
A35: 1 | B35: Materiál | C35: =Rozvaha!C34/Rozvaha!C2*100 -> 3.706576012 | D35: =Rozvaha!D34/Rozvaha!D2*100 -> 3.927991265 | E35: =Rozvaha!E34/Rozvaha!E2*100 -> 2.985859223 | F35: =Rozvaha!F34/Rozvaha!F2*100 -> 2.891258336 | G35: =Rozvaha!G34/Rozvaha!G2*100 -> 11.33464649 | H35: =Rozvaha!H34/Rozvaha!H2*100 -> 3.721320363
A36: 2 | B36: Nedokončená výroba a polotovary | C36: =Rozvaha!C35/Rozvaha!C2*100 -> 6.288112185 | D36: =Rozvaha!D35/Rozvaha!D2*100 -> 4.153018561 | E36: =Rozvaha!E35/Rozvaha!E2*100 -> 21.22167902 | F36: =Rozvaha!F35/Rozvaha!F2*100 -> 13.56974562 | G36: =Rozvaha!G35/Rozvaha!G2*100 -> 13.91503361 | H36: =Rozvaha!H35/Rozvaha!H2*100 -> 9.862828735
A37: 3 | B37: Výrobky | C37: =Rozvaha!C36/Rozvaha!C2*100 -> 0.02549665356 | D37: =Rozvaha!D36/Rozvaha!D2*100 -> 0.01464674709 | E37: =Rozvaha!E36/Rozvaha!E2*100 -> 0.009199390212 | F37: =Rozvaha!F36/Rozvaha!F2*100 -> 0.007986901482 | G37: =Rozvaha!G36/Rozvaha!G2*100 -> 10.61968764 | H37: =Rozvaha!H36/Rozvaha!H2*100 -> 0.6035126482
A38: 4 | B38: Zvířata | C38: =Rozvaha!C37/Rozvaha!C2*100 -> 0 | D38: =Rozvaha!D37/Rozvaha!D2*100 -> 0 | E38: =Rozvaha!E37/Rozvaha!E2*100 -> 0 | F38: =Rozvaha!F37/Rozvaha!F2*100 -> 0 | G38: =Rozvaha!G37/Rozvaha!G2*100 -> 0 | H38: =Rozvaha!H37/Rozvaha!H2*100 -> 0.08899254304
A39: 5 | B39: Zboží | C39: =Rozvaha!C38/Rozvaha!C2*100 -> 1.582917242 | D39: =Rozvaha!D38/Rozvaha!D2*100 -> 1.95201193 | E39: =Rozvaha!E38/Rozvaha!E2*100 -> 1.805708879 | F39: =Rozvaha!F38/Rozvaha!F2*100 -> 1.77708558 | G39: =Rozvaha!G38/Rozvaha!G2*100 -> 1.200006797 | H39: =Rozvaha!H38/Rozvaha!H2*100 -> 0.5145201052
A40: 6 | B40: Poskytnuté zálohy na zásoby | C40: =Rozvaha!C39/Rozvaha!C2*100 -> 0 | D40: =Rozvaha!D39/Rozvaha!D2*100 -> 0.2223642513 | E40: =Rozvaha!E39/Rozvaha!E2*100 -> 0 | F40: =Rozvaha!F39/Rozvaha!F2*100 -> 0 | G40: =Rozvaha!G39/Rozvaha!G2*100 -> 0 | H40: =Rozvaha!H39/Rozvaha!H2*100 -> 0
A41: C. II. | B41: Dlouhodobé pohledávky | C41: =Rozvaha!C40/Rozvaha!C2*100 -> 0.005311802826 | D41: =Rozvaha!D40/Rozvaha!D2*100 -> 0.08255439269 | E41: =Rozvaha!E40/Rozvaha!E2*100 -> 0.1117068811 | F41: =Rozvaha!F40/Rozvaha!F2*100 -> 0.08253131531 | G41: =Rozvaha!G40/Rozvaha!G2*100 -> 0.007711621937 | H41: =Rozvaha!H40/Rozvaha!H2*100 -> 0.05523675085
A42: 1 | B42: Pohledávky z obchodních vztahů (z obchodního styku) | C42: =Rozvaha!C41/Rozvaha!C2*100 -> 0 | D42: =Rozvaha!D41/Rozvaha!D2*100 -> 0 | E42: =Rozvaha!E41/Rozvaha!E2*100 -> 0 | F42: =Rozvaha!F41/Rozvaha!F2*100 -> 0 | G42: =Rozvaha!G41/Rozvaha!G2*100 -> 0 | H42: =Rozvaha!H41/Rozvaha!H2*100 -> 0
A43: 2 | B43: Pohledávky - ovládající a řídící osoba | C43: =Rozvaha!C42/Rozvaha!C2*100 -> 0 | D43: =Rozvaha!D42/Rozvaha!D2*100 -> 0 | E43: =Rozvaha!E42/Rozvaha!E2*100 -> 0 | F43: =Rozvaha!F42/Rozvaha!F2*100 -> 0 | G43: =Rozvaha!G42/Rozvaha!G2*100 -> 0 | H43: =Rozvaha!H42/Rozvaha!H2*100 -> 0
A44: 3 | B44: Pohledávky - podstatný vliv | C44: =Rozvaha!C43/Rozvaha!C2*100 -> 0 | D44: =Rozvaha!D43/Rozvaha!D2*100 -> 0 | E44: =Rozvaha!E43/Rozvaha!E2*100 -> 0 | F44: =Rozvaha!F43/Rozvaha!F2*100 -> 0 | G44: =Rozvaha!G43/Rozvaha!G2*100 -> 0 | H44: =Rozvaha!H43/Rozvaha!H2*100 -> 0
A45: 4 | B45: Pohledávky za společníky, členy družstva a za účastníky sdružení | C45: =Rozvaha!C44/Rozvaha!C2*100 -> 0 | D45: =Rozvaha!D44/Rozvaha!D2*100 -> 0 | E45: =Rozvaha!E44/Rozvaha!E2*100 -> 0 | F45: =Rozvaha!F44/Rozvaha!F2*100 -> 0 | G45: =Rozvaha!G44/Rozvaha!G2*100 -> 0 | H45: =Rozvaha!H44/Rozvaha!H2*100 -> 0
A46: 5 | B46: Dlouhodobé poskytnuté zálohy | C46: =Rozvaha!C45/Rozvaha!C2*100 -> 0.005311802826 | D46: =Rozvaha!D45/Rozvaha!D2*100 -> 0.08255439269 | E46: =Rozvaha!E45/Rozvaha!E2*100 -> 0.1117068811 | F46: =Rozvaha!F45/Rozvaha!F2*100 -> 0.08253131531 | G46: =Rozvaha!G45/Rozvaha!G2*100 -> 0.007711621937 | H46: =Rozvaha!H45/Rozvaha!H2*100 -> 0.05523675085
A47: 6 | B47: Dohadné účty aktivní | C47: =Rozvaha!C46/Rozvaha!C2*100 -> 0 | D47: =Rozvaha!D46/Rozvaha!D2*100 -> 0 | E47: =Rozvaha!E46/Rozvaha!E2*100 -> 0 | F47: =Rozvaha!F46/Rozvaha!F2*100 -> 0 | G47: =Rozvaha!G46/Rozvaha!G2*100 -> 0 | H47: =Rozvaha!H46/Rozvaha!H2*100 -> 0
A48: 7 | B48: Jiné pohledávky | C48: =Rozvaha!C47/Rozvaha!C2*100 -> 0 | D48: =Rozvaha!D47/Rozvaha!D2*100 -> 0 | E48: =Rozvaha!E47/Rozvaha!E2*100 -> 0 | F48: =Rozvaha!F47/Rozvaha!F2*100 -> 0 | G48: =Rozvaha!G47/Rozvaha!G2*100 -> 0 | H48: =Rozvaha!H47/Rozvaha!H2*100 -> 0
A49: 8 | B49: Odložená daňová pohledávka | C49: =Rozvaha!C48/Rozvaha!C2*100 -> 0 | D49: =Rozvaha!D48/Rozvaha!D2*100 -> 0 | E49: =Rozvaha!E48/Rozvaha!E2*100 -> 0 | F49: =Rozvaha!F48/Rozvaha!F2*100 -> 0 | G49: =Rozvaha!G48/Rozvaha!G2*100 -> 0 | H49: =Rozvaha!H48/Rozvaha!H2*100 -> 0
A50: C. III. | B50: Krátkodobé pohledávky | C50: =Rozvaha!C49/Rozvaha!C2*100 -> 46.92977797 | D50: =Rozvaha!D49/Rozvaha!D2*100 -> 48.03334132 | E50: =Rozvaha!E49/Rozvaha!E2*100 -> 54.03458971 | F50: =Rozvaha!F49/Rozvaha!F2*100 -> 56.51930833 | G50: =Rozvaha!G49/Rozvaha!G2*100 -> 14.02234279 | H50: =Rozvaha!H49/Rozvaha!H2*100 -> 70.35525414
A51: 1 | B51: Pohledávky z obchodních vztahů (z obchodního styku) | C51: =Rozvaha!C50/Rozvaha!C2*100 -> 40.90300648 | D51: =Rozvaha!D50/Rozvaha!D2*100 -> 47.21445501 | E51: =Rozvaha!E50/Rozvaha!E2*100 -> 49.76607265 | F51: =Rozvaha!F50/Rozvaha!F2*100 -> 52.67228412 | G51: =Rozvaha!G50/Rozvaha!G2*100 -> 4.727354953 | H51: =Rozvaha!H50/Rozvaha!H2*100 -> 69.87039822
A52: 2 | B52: Pohledávky - ovládající a řídící osoba | C52: =Rozvaha!C51/Rozvaha!C2*100 -> 0 | D52: =Rozvaha!D51/Rozvaha!D2*100 -> 0 | E52: =Rozvaha!E51/Rozvaha!E2*100 -> 0 | F52: =Rozvaha!F51/Rozvaha!F2*100 -> 0 | G52: =Rozvaha!G51/Rozvaha!G2*100 -> 0 | H52: =Rozvaha!H51/Rozvaha!H2*100 -> 0
A53: 3 | B53: Pohledávky - podstatný vliv | C53: =Rozvaha!C52/Rozvaha!C2*100 -> 0 | D53: =Rozvaha!D52/Rozvaha!D2*100 -> 0 | E53: =Rozvaha!E52/Rozvaha!E2*100 -> 0 | F53: =Rozvaha!F52/Rozvaha!F2*100 -> 0 | G53: =Rozvaha!G52/Rozvaha!G2*100 -> 0 | H53: =Rozvaha!H52/Rozvaha!H2*100 -> 0
B54: Pohledávky -ostatní | C54: =Rozvaha!C53/Rozvaha!C2*100 -> 0 | D54: =Rozvaha!D53/Rozvaha!D2*100 -> 0 | E54: =Rozvaha!E53/Rozvaha!E2*100 -> 0 | F54: =Rozvaha!F53/Rozvaha!F2*100 -> 0 | G54: =Rozvaha!G53/Rozvaha!G2*100 -> 0 | H54: =Rozvaha!H53/Rozvaha!H2*100 -> 0.4848559241
A55: 4 | B55: Pohledávky za společníky, členy družstva a za účastníky sdružení | C55: =Rozvaha!C54/Rozvaha!C2*100 -> 0 | D55: =Rozvaha!D54/Rozvaha!D2*100 -> 0 | E55: =Rozvaha!E54/Rozvaha!E2*100 -> 0 | F55: =Rozvaha!F54/Rozvaha!F2*100 -> 0 | G55: =Rozvaha!G54/Rozvaha!G2*100 -> 0 | H55: =Rozvaha!H54/Rozvaha!H2*100 -> 0
A56: 5 | B56: Sociální zabezpečení (a zdravotní pojištění) | C56: =Rozvaha!C55/Rozvaha!C2*100 -> 0 | D56: =Rozvaha!D55/Rozvaha!D2*100 -> 0 | E56: =Rozvaha!E55/Rozvaha!E2*100 -> 0 | F56: =Rozvaha!F55/Rozvaha!F2*100 -> 0 | G56: =Rozvaha!G55/Rozvaha!G2*100 -> 0 | H56: =Rozvaha!H55/Rozvaha!H2*100 -> 0
A57: 6 | B57: Stát - daňové pohledávky | C57: =Rozvaha!C56/Rozvaha!C2*100 -> 1.900563051 | D57: =Rozvaha!D56/Rozvaha!D2*100 -> 0 | E57: =Rozvaha!E56/Rozvaha!E2*100 -> 2.9135783 | F57: =Rozvaha!F56/Rozvaha!F2*100 -> 0.5271354978 | G57: =Rozvaha!G56/Rozvaha!G2*100 -> 9.255776201 | H57: =Rozvaha!H56/Rozvaha!H2*100 -> 0
A58: 7 | B58: Krátkodobé poskytnuté zálohy | C58: =Rozvaha!C57/Rozvaha!C2*100 -> 4.050780835 | D58: =Rozvaha!D57/Rozvaha!D2*100 -> 0.7696199835 | E58: =Rozvaha!E57/Rozvaha!E2*100 -> 0.9843347527 | F58: =Rozvaha!F57/Rozvaha!F2*100 -> 1.123490808 | G58: =Rozvaha!G57/Rozvaha!G2*100 -> 0.01960581848 | H58: =Rozvaha!H57/Rozvaha!H2*100 -> 0.4480314236
A59: 8 | B59: Dohadné účty aktivní | C59: =Rozvaha!C58/Rozvaha!C2*100 -> 0 | D59: =Rozvaha!D58/Rozvaha!D2*100 -> 0 | E59: =Rozvaha!E58/Rozvaha!E2*100 -> 0 | F59: =Rozvaha!F58/Rozvaha!F2*100 -> 0.4725583377 | G59: =Rozvaha!G58/Rozvaha!G2*100 -> 0.0150311275 | H59: =Rozvaha!H58/Rozvaha!H2*100 -> 0
A60: 9 | B60: Jiné pohledávky | C60: =Rozvaha!C59/Rozvaha!C2*100 -> 0.07542760013 | D60: =Rozvaha!D59/Rozvaha!D2*100 -> 0.04926633112 | E60: =Rozvaha!E59/Rozvaha!E2*100 -> 0.3706040057 | F60: =Rozvaha!F59/Rozvaha!F2*100 -> 1.72383957 | G60: =Rozvaha!G59/Rozvaha!G2*100 -> 0.00457469098 | H60: =Rozvaha!H59/Rozvaha!H2*100 -> 0.03682450057
A61: C. IV. | B61: Finanční majetek | C61: =Rozvaha!C60/Rozvaha!C2*100 -> 28.26941464 | D61: =Rozvaha!D60/Rozvaha!D2*100 -> 25.69705201 | E61: =Rozvaha!E60/Rozvaha!E2*100 -> 5.239709825 | F61: =Rozvaha!F60/Rozvaha!F2*100 -> 11.5983121 | G61: =Rozvaha!G60/Rozvaha!G2*100 -> 0.7920750668 | H61: =Rozvaha!H60/Rozvaha!H2*100 -> 7.803725412
A62: 1 | B62: Peníze | C62: =Rozvaha!C61/Rozvaha!C2*100 -> 0.537554446 | D62: =Rozvaha!D61/Rozvaha!D2*100 -> 0.7230166973 | E62: =Rozvaha!E61/Rozvaha!E2*100 -> 0.5769331861 | F62: =Rozvaha!F61/Rozvaha!F2*100 -> 0.4233057785 | G62: =Rozvaha!G61/Rozvaha!G2*100 -> 0.05280500445 | H62: =Rozvaha!H61/Rozvaha!H2*100 -> 0.3754053252
A63: 2 | B63: Účty v bankách | C63: =Rozvaha!C62/Rozvaha!C2*100 -> 27.73186019 | D63: =Rozvaha!D62/Rozvaha!D2*100 -> 24.97403531 | E63: =Rozvaha!E62/Rozvaha!E2*100 -> 4.662776639 | F63: =Rozvaha!F62/Rozvaha!F2*100 -> 12.50615657 | G63: =Rozvaha!G62/Rozvaha!G2*100 -> 0.7392700623 | H63: =Rozvaha!H62/Rozvaha!H2*100 -> 7.428320087
A64: 3 | B64: Krátkodobé cenné papíry a podíly (Krátkodobý finanční majetek) | C64: =Rozvaha!C63/Rozvaha!C2*100 -> 0 | D64: =Rozvaha!D63/Rozvaha!D2*100 -> 0 | E64: =Rozvaha!E63/Rozvaha!E2*100 -> 0 | F64: =Rozvaha!F63/Rozvaha!F2*100 -> 0 | G64: =Rozvaha!G63/Rozvaha!G2*100 -> 0 | H64: =Rozvaha!H63/Rozvaha!H2*100 -> 0
A65: 4 | B65: Pořizovaný krátkodobý finanční majetek (Nedokončený krátk. fin. majetek) | C65: =Rozvaha!C64/Rozvaha!C2*100 -> 0 | D65: =Rozvaha!D64/Rozvaha!D2*100 -> 0 | E65: =Rozvaha!E64/Rozvaha!E2*100 -> 0 | F65: =Rozvaha!F64/Rozvaha!F2*100 -> 0 | G65: =Rozvaha!G64/Rozvaha!G2*100 -> 0 | H65: =Rozvaha!H64/Rozvaha!H2*100 -> 0
A66: D. I. | B66: Časové rozlišení | C66: =Rozvaha!C65/Rozvaha!C2*100 -> 0.4281313078 | D66: =Rozvaha!D65/Rozvaha!D2*100 -> 0.5672285691 | E66: =Rozvaha!E65/Rozvaha!E2*100 -> 0.8029753456 | F66: =Rozvaha!F65/Rozvaha!F2*100 -> 0.8000212984 | G66: =Rozvaha!G65/Rozvaha!G2*100 -> 0.3905479042 | H66: =Rozvaha!H65/Rozvaha!H2*100 -> 0.2096950727
A67: 1 | B67: Náklady příštích období | C67: =Rozvaha!C66/Rozvaha!C2*100 -> 0.4249442261 | D67: =Rozvaha!D66/Rozvaha!D2*100 -> 0.5645655242 | E67: =Rozvaha!E66/Rozvaha!E2*100 -> 0.7701203806 | F67: =Rozvaha!F66/Rozvaha!F2*100 -> 0.7028473304 | G67: =Rozvaha!G66/Rozvaha!G2*100 -> 0.3823134604 | H67: =Rozvaha!H66/Rozvaha!H2*100 -> 0.2035576559
A68: 2 | B68: Komplexní náklady příštích období | C68: =Rozvaha!C67/Rozvaha!C2*100 -> 0 | D68: =Rozvaha!D67/Rozvaha!D2*100 -> 0 | E68: =Rozvaha!E67/Rozvaha!E2*100 -> 0 | F68: =Rozvaha!F67/Rozvaha!F2*100 -> 0 | G68: =Rozvaha!G67/Rozvaha!G2*100 -> 0 | H68: =Rozvaha!H67/Rozvaha!H2*100 -> 0
A69: 3 | B69: Příjmy příštích období | C69: =Rozvaha!C68/Rozvaha!C2*100 -> 0.003187081696 | D69: =Rozvaha!D68/Rozvaha!D2*100 -> 0.002663044926 | E69: =Rozvaha!E68/Rozvaha!E2*100 -> 0.03285496504 | F69: =Rozvaha!F68/Rozvaha!F2*100 -> 0.09717396803 | G69: =Rozvaha!G68/Rozvaha!G2*100 -> 0.008234443763 | H69: =Rozvaha!H68/Rozvaha!H2*100 -> 0.006137416761
B71: PASIVA | C71: 2011 | D71: 2012 | E71: 2013 | F71: 2014 | G71: 2015 | H71: 2016
B72: PASIVA CELKEM | C72: =Rozvaha!C71/Rozvaha!C71*100 -> 100 | D72: =Rozvaha!D71/Rozvaha!D71*100 -> 100 | E72: =Rozvaha!E71/Rozvaha!E71*100 -> 100 | F72: =Rozvaha!F71/Rozvaha!F71*100 -> 100 | G72: =Rozvaha!G71/Rozvaha!G71*100 -> 100 | H72: =Rozvaha!H71/Rozvaha!H71*100 -> 100
A73: A. | B73: Vlastní kapitál | C73: =Rozvaha!C72/Rozvaha!C71*100 -> 67.1093169 | D73: =Rozvaha!D72/Rozvaha!D71*100 -> 68.97818966 | E73: =Rozvaha!E72/Rozvaha!E71*100 -> 60.04310571 | F73: =Rozvaha!F72/Rozvaha!F71*100 -> 60.95203866 | G73: =Rozvaha!G72/Rozvaha!G71*100 -> 55.61804729 | H73: =Rozvaha!H72/Rozvaha!H71*100 -> 66.85283498
A74: A. I. | B74: Základní kapitál | C74: =Rozvaha!C73/Rozvaha!C71*100 -> 4.264315309 | D74: =Rozvaha!D73/Rozvaha!D71*100 -> 5.344731166 | E74: =Rozvaha!E73/Rozvaha!E71*100 -> 5.275193187 | F74: =Rozvaha!F73/Rozvaha!F71*100 -> 5.343237091 | G74: =Rozvaha!G73/Rozvaha!G71*100 -> 53.60466043 | H74: =Rozvaha!H73/Rozvaha!H71*100 -> 10.22902794
A75: 1 | B75: Základní kapitál | C75: =Rozvaha!C74/Rozvaha!C71*100 -> 4.264315309 | D75: =Rozvaha!D74/Rozvaha!D71*100 -> 5.344731166 | E75: =Rozvaha!E74/Rozvaha!E71*100 -> 5.275193187 | F75: =Rozvaha!F74/Rozvaha!F71*100 -> 5.343237091 | G75: =Rozvaha!G74/Rozvaha!G71*100 -> 53.60466043 | H75: =Rozvaha!H74/Rozvaha!H71*100 -> 10.22902794
A76: 2 | B76: Vlastní akcie a vlastní obchodní podíly (-) | C76: =Rozvaha!C75/Rozvaha!C71*100 -> 0 | D76: =Rozvaha!D75/Rozvaha!D71*100 -> 0 | E76: =Rozvaha!E75/Rozvaha!E71*100 -> 0 | F76: =Rozvaha!F75/Rozvaha!F71*100 -> 0 | G76: =Rozvaha!G75/Rozvaha!G71*100 -> 0 | H76: =Rozvaha!H75/Rozvaha!H71*100 -> 0
A77: 3 | B77: Změny základního kapitálu | C77: =Rozvaha!C76/Rozvaha!C71*100 -> 0 | D77: =Rozvaha!D76/Rozvaha!D71*100 -> 0 | E77: =Rozvaha!E76/Rozvaha!E71*100 -> 0 | F77: =Rozvaha!F76/Rozvaha!F71*100 -> 0 | G77: =Rozvaha!G76/Rozvaha!G71*100 -> 0 | H77: =Rozvaha!H76/Rozvaha!H71*100 -> 0
A78: A. II. | B78: Kapitálové fondy | C78: =Rozvaha!C77/Rozvaha!C71*100 -> -1.997237863 | D78: =Rozvaha!D77/Rozvaha!D71*100 -> -0.3861415142 | E78: =Rozvaha!E77/Rozvaha!E71*100 -> 0 | F78: =Rozvaha!F77/Rozvaha!F71*100 -> 0 | G78: =Rozvaha!G77/Rozvaha!G71*100 -> -3.090269109 | H78: =Rozvaha!H77/Rozvaha!H71*100 -> 0
A79: 1 | B79: Emisní ážio | C79: =Rozvaha!C78/Rozvaha!C71*100 -> 0 | D79: =Rozvaha!D78/Rozvaha!D71*100 -> 0 | E79: =Rozvaha!E78/Rozvaha!E71*100 -> 0 | F79: =Rozvaha!F78/Rozvaha!F71*100 -> 0 | G79: =Rozvaha!G78/Rozvaha!G71*100 -> 17.44538799 | H79: =Rozvaha!H78/Rozvaha!H71*100 -> 0
A80: 2 | B80: Ostatní kapitálové fondy | C80: =Rozvaha!C79/Rozvaha!C71*100 -> 0 | D80: =Rozvaha!D79/Rozvaha!D71*100 -> 0 | E80: =Rozvaha!E79/Rozvaha!E71*100 -> 0 | F80: =Rozvaha!F79/Rozvaha!F71*100 -> 0 | G80: =Rozvaha!G79/Rozvaha!G71*100 -> 0 | H80: =Rozvaha!H79/Rozvaha!H71*100 -> 0
A81: 3 | B81: Oceňovací rozdíly z přecenění majetku (a závazků) | C81: =Rozvaha!C80/Rozvaha!C71*100 -> -1.997237863 | D81: =Rozvaha!D80/Rozvaha!D71*100 -> -0.3861415142 | E81: =Rozvaha!E80/Rozvaha!E71*100 -> 0 | F81: =Rozvaha!F80/Rozvaha!F71*100 -> 0 | G81: =Rozvaha!G80/Rozvaha!G71*100 -> -20.5356571 | H81: =Rozvaha!H80/Rozvaha!H71*100 -> 0
A82: 4 | B82: Oceňovací rozdíly z přecenění při přeměnách | C82: =Rozvaha!C81/Rozvaha!C71*100 -> 0 | D82: =Rozvaha!D81/Rozvaha!D71*100 -> 0 | E82: =Rozvaha!E81/Rozvaha!E71*100 -> 0 | F82: =Rozvaha!F81/Rozvaha!F71*100 -> 0 | G82: =Rozvaha!G81/Rozvaha!G71*100 -> 0 | H82: =Rozvaha!H81/Rozvaha!H71*100 -> 0
A83: A. III. | B83: Rezervní fondy, nedělitelný fond a ost. fondy ze zisku (Fondy ze zisku) | C83: =Rozvaha!C82/Rozvaha!C71*100 -> 0.7032826941 | D83: =Rozvaha!D82/Rozvaha!D71*100 -> 0.8495113313 | E83: =Rozvaha!E82/Rozvaha!E71*100 -> 0.80823214 | F83: =Rozvaha!F82/Rozvaha!F71*100 -> 0 | G83: =Rozvaha!G82/Rozvaha!G71*100 -> 0 | H83: =Rozvaha!H82/Rozvaha!H71*100 -> 0
A84: 1 | B84: Zákonný rezervní fond/ Nedělitelný fond | C84: =Rozvaha!C83/Rozvaha!C71*100 -> 0.4515032402 | D84: =Rozvaha!D83/Rozvaha!D71*100 -> 0.5658970467 | E84: =Rozvaha!E83/Rozvaha!E71*100 -> 0.5585344057 | F84: =Rozvaha!F83/Rozvaha!F71*100 -> 0 | G84: =Rozvaha!G83/Rozvaha!G71*100 -> 0 | H84: =Rozvaha!H83/Rozvaha!H71*100 -> 0
A85: 2 | B85: Statutární ostatní fondy | C85: =Rozvaha!C84/Rozvaha!C71*100 -> 0.2517794539 | D85: =Rozvaha!D84/Rozvaha!D71*100 -> 0.2836142846 | E85: =Rozvaha!E84/Rozvaha!E71*100 -> 0.2496977343 | F85: =Rozvaha!F84/Rozvaha!F71*100 -> 0 | G85: =Rozvaha!G84/Rozvaha!G71*100 -> 0 | H85: =Rozvaha!H84/Rozvaha!H71*100 -> 0
A86: A. IV. | B86: Výsledek hospodaření minulých let | C86: =Rozvaha!C85/Rozvaha!C71*100 -> 50.15510464 | D86: =Rozvaha!D85/Rozvaha!D71*100 -> 37.78061836 | E86: =Rozvaha!E85/Rozvaha!E71*100 -> 49.20622404 | F86: =Rozvaha!F85/Rozvaha!F71*100 -> 48.81727301 | G86: =Rozvaha!G85/Rozvaha!G71*100 -> 4.015925153 | H86: =Rozvaha!H85/Rozvaha!H71*100 -> 42.97214636
A87: 1 | B87: Nerozdělený zisk minulých let | C87: =Rozvaha!C86/Rozvaha!C71*100 -> 50.15510464 | D87: =Rozvaha!D86/Rozvaha!D71*100 -> 37.78061836 | E87: =Rozvaha!E86/Rozvaha!E71*100 -> 49.20622404 | F87: =Rozvaha!F86/Rozvaha!F71*100 -> 48.81727301 | G87: =Rozvaha!G86/Rozvaha!G71*100 -> 4.024421008 | H87: =Rozvaha!H86/Rozvaha!H71*100 -> 43.03863504
A88: 2 | B88: Neuhrazená ztráta minulých let | C88: =Rozvaha!C87/Rozvaha!C71*100 -> 0 | D88: =Rozvaha!D87/Rozvaha!D71*100 -> 0 | E88: =Rozvaha!E87/Rozvaha!E71*100 -> 0 | F88: =Rozvaha!F87/Rozvaha!F71*100 -> 0 | G88: =Rozvaha!G87/Rozvaha!G71*100 -> 0 | H88: =Rozvaha!H87/Rozvaha!H71*100 -> 0
A89: 3 | B89: Jiný výsledok hospodáření min. let | C89: =Rozvaha!C88/Rozvaha!C71*100 -> 0 | D89: =Rozvaha!D88/Rozvaha!D71*100 -> 0 | E89: =Rozvaha!E88/Rozvaha!E71*100 -> 0 | F89: =Rozvaha!F88/Rozvaha!F71*100 -> 0 | G89: =Rozvaha!G88/Rozvaha!G71*100 -> -0.008495854676 | H89: =Rozvaha!H88/Rozvaha!H71*100 -> -0.06648868158
A90: A. V. | B90: Výsledek hospodaření běžného účetního období | C90: =Rozvaha!C89/Rozvaha!C71*100 -> 13.98385212 | D90: =Rozvaha!D89/Rozvaha!D71*100 -> 25.38947032 | E90: =Rozvaha!E89/Rozvaha!E71*100 -> 4.753456342 | F90: =Rozvaha!F89/Rozvaha!F71*100 -> 6.79152856 | G90: =Rozvaha!G89/Rozvaha!G71*100 -> 1.087730809 | H90: =Rozvaha!H89/Rozvaha!H71*100 -> 13.65166068
A91: B. | B91: Cizí zdroje | C91: =Rozvaha!C90/Rozvaha!C71*100 -> 18.37990014 | D91: =Rozvaha!D90/Rozvaha!D71*100 -> 26.8168624 | E91: =Rozvaha!E90/Rozvaha!E71*100 -> 29.75739894 | F91: =Rozvaha!F90/Rozvaha!F71*100 -> 28.71956658 | G91: =Rozvaha!G90/Rozvaha!G71*100 -> 44.17661444 | H91: =Rozvaha!H90/Rozvaha!H71*100 -> 26.47170139
A92: B. I. | B92: Rezervy | C92: =Rozvaha!C91/Rozvaha!C71*100 -> 0 | D92: =Rozvaha!D91/Rozvaha!D71*100 -> 0 | E92: =Rozvaha!E91/Rozvaha!E71*100 -> 0 | F92: =Rozvaha!F91/Rozvaha!F71*100 -> 0 | G92: =Rozvaha!G91/Rozvaha!G71*100 -> 0 | H92: =Rozvaha!H91/Rozvaha!H71*100 -> 26.47170139
A93: 1 | B93: Rezervy podle zvláštních právních předpisů | C93: =Rozvaha!C92/Rozvaha!C71*100 -> 0 | D93: =Rozvaha!D92/Rozvaha!D71*100 -> 0 | E93: =Rozvaha!E92/Rozvaha!E71*100 -> 0 | F93: =Rozvaha!F92/Rozvaha!F71*100 -> 0 | G93: =Rozvaha!G92/Rozvaha!G71*100 -> 0 | H93: =Rozvaha!H92/Rozvaha!H71*100 -> 0
A94: 2 | B94: Rezerva na důchody a podobné závazky | C94: =Rozvaha!C93/Rozvaha!C71*100 -> 0 | D94: =Rozvaha!D93/Rozvaha!D71*100 -> 0 | E94: =Rozvaha!E93/Rozvaha!E71*100 -> 0 | F94: =Rozvaha!F93/Rozvaha!F71*100 -> 0 | G94: =Rozvaha!G93/Rozvaha!G71*100 -> 0 | H94: =Rozvaha!H93/Rozvaha!H71*100 -> 0
A95: 3 | B95: Rezerva na daň z příjmu | C95: =Rozvaha!C94/Rozvaha!C71*100 -> 0 | D95: =Rozvaha!D94/Rozvaha!D71*100 -> 0 | E95: =Rozvaha!E94/Rozvaha!E71*100 -> 0 | F95: =Rozvaha!F94/Rozvaha!F71*100 -> 0 | G95: =Rozvaha!G94/Rozvaha!G71*100 -> 0 | H95: =Rozvaha!H94/Rozvaha!H71*100 -> 0
A96: 4 | B96: Ostatní rezervy | C96: =Rozvaha!C95/Rozvaha!C71*100 -> 0 | D96: =Rozvaha!D95/Rozvaha!D71*100 -> 0 | E96: =Rozvaha!E95/Rozvaha!E71*100 -> 0 | F96: =Rozvaha!F95/Rozvaha!F71*100 -> 0 | G96: =Rozvaha!G95/Rozvaha!G71*100 -> 0 | H96: =Rozvaha!H95/Rozvaha!H71*100 -> 0
A97: B. II. | B97: Dlouhodobé závazky | C97: =Rozvaha!C96/Rozvaha!C71*100 -> 0.4918729417 | D97: =Rozvaha!D96/Rozvaha!D71*100 -> 0.6258155575 | E97: =Rozvaha!E96/Rozvaha!E71*100 -> 0.6216159386 | F97: =Rozvaha!F96/Rozvaha!F71*100 -> 0.6283029166 | G97: =Rozvaha!G96/Rozvaha!G71*100 -> 0.4208715701 | H97: =Rozvaha!H96/Rozvaha!H71*100 -> 0.4204130481
A98: 1 | B98: Závazky z obchodních vztahů | C98: =Rozvaha!C97/Rozvaha!C71*100 -> 0 | D98: =Rozvaha!D97/Rozvaha!D71*100 -> 0 | E98: =Rozvaha!E97/Rozvaha!E71*100 -> 0 | F98: =Rozvaha!F97/Rozvaha!F71*100 -> 0 | G98: =Rozvaha!G97/Rozvaha!G71*100 -> 0 | H98: =Rozvaha!H97/Rozvaha!H71*100 -> 0
A99: 2 | B99: Závazky - ovládající a řídící osoba | C99: =Rozvaha!C98/Rozvaha!C71*100 -> 0 | D99: =Rozvaha!D98/Rozvaha!D71*100 -> 0 | E99: =Rozvaha!E98/Rozvaha!E71*100 -> 0 | F99: =Rozvaha!F98/Rozvaha!F71*100 -> 0 | G99: =Rozvaha!G98/Rozvaha!G71*100 -> 0 | H99: =Rozvaha!H98/Rozvaha!H71*100 -> 0
A100: 3 | B100: Závazky - podstatný vliv | C100: =Rozvaha!C99/Rozvaha!C71*100 -> 0 | D100: =Rozvaha!D99/Rozvaha!D71*100 -> 0 | E100: =Rozvaha!E99/Rozvaha!E71*100 -> 0 | F100: =Rozvaha!F99/Rozvaha!F71*100 -> 0 | G100: =Rozvaha!G99/Rozvaha!G71*100 -> 0 | H100: =Rozvaha!H99/Rozvaha!H71*100 -> 0
A101: 4 | B101: Závazky ke společníkům, členům družstva a k účastníkům sdružení | C101: =Rozvaha!C100/Rozvaha!C71*100 -> 0 | D101: =Rozvaha!D100/Rozvaha!D71*100 -> 0 | E101: =Rozvaha!E100/Rozvaha!E71*100 -> 0 | F101: =Rozvaha!F100/Rozvaha!F71*100 -> 0 | G101: =Rozvaha!G100/Rozvaha!G71*100 -> 0 | H101: =Rozvaha!H100/Rozvaha!H71*100 -> 0
A102: 5 | B102: Dlouhodobé přijaté zálohy | C102: =Rozvaha!C101/Rozvaha!C71*100 -> 0 | D102: =Rozvaha!D101/Rozvaha!D71*100 -> 0 | E102: =Rozvaha!E101/Rozvaha!E71*100 -> 0 | F102: =Rozvaha!F101/Rozvaha!F71*100 -> 0 | G102: =Rozvaha!G101/Rozvaha!G71*100 -> 0 | H102: =Rozvaha!H101/Rozvaha!H71*100 -> 0
A103: 6 | B103: Vydané dluhopisy | C103: =Rozvaha!C102/Rozvaha!C71*100 -> 0 | D103: =Rozvaha!D102/Rozvaha!D71*100 -> 0 | E103: =Rozvaha!E102/Rozvaha!E71*100 -> 0 | F103: =Rozvaha!F102/Rozvaha!F71*100 -> 0 | G103: =Rozvaha!G102/Rozvaha!G71*100 -> 0 | H103: =Rozvaha!H102/Rozvaha!H71*100 -> 0
A104: 7 | B104: Dlouhodobé směnky k úhradě | C104: =Rozvaha!C103/Rozvaha!C71*100 -> 0 | D104: =Rozvaha!D103/Rozvaha!D71*100 -> 0 | E104: =Rozvaha!E103/Rozvaha!E71*100 -> 0 | F104: =Rozvaha!F103/Rozvaha!F71*100 -> 0 | G104: =Rozvaha!G103/Rozvaha!G71*100 -> 0 | H104: =Rozvaha!H103/Rozvaha!H71*100 -> 0
A105: 8 | B105: Dohadné účty pasivní | C105: =Rozvaha!C104/Rozvaha!C71*100 -> 0 | D105: =Rozvaha!D104/Rozvaha!D71*100 -> 0 | E105: =Rozvaha!E104/Rozvaha!E71*100 -> 0 | F105: =Rozvaha!F104/Rozvaha!F71*100 -> 0 | G105: =Rozvaha!G104/Rozvaha!G71*100 -> 0 | H105: =Rozvaha!H104/Rozvaha!H71*100 -> 0
A106: 9 | B106: Jiné (dlouhodobé) závazky | C106: =Rozvaha!C105/Rozvaha!C71*100 -> 0 | D106: =Rozvaha!D105/Rozvaha!D71*100 -> 0 | E106: =Rozvaha!E105/Rozvaha!E71*100 -> 0 | F106: =Rozvaha!F105/Rozvaha!F71*100 -> 0 | G106: =Rozvaha!G105/Rozvaha!G71*100 -> 0 | H106: =Rozvaha!H105/Rozvaha!H71*100 -> 0
A107: 10 | B107: Odložený daňový závazek | C107: =Rozvaha!C106/Rozvaha!C71*100 -> 0.4918729417 | D107: =Rozvaha!D106/Rozvaha!D71*100 -> 0.6258155575 | E107: =Rozvaha!E106/Rozvaha!E71*100 -> 0.6216159386 | F107: =Rozvaha!F106/Rozvaha!F71*100 -> 0.6283029166 | G107: =Rozvaha!G106/Rozvaha!G71*100 -> 0.4208715701 | H107: =Rozvaha!H106/Rozvaha!H71*100 -> 0
A108: B. III. | B108: Krátkodobé závazky | C108: =Rozvaha!C107/Rozvaha!C71*100 -> 17.8880272 | D108: =Rozvaha!D107/Rozvaha!D71*100 -> 26.19104684 | E108: =Rozvaha!E107/Rozvaha!E71*100 -> 29.135783 | F108: =Rozvaha!F107/Rozvaha!F71*100 -> 28.09126366 | G108: =Rozvaha!G107/Rozvaha!G71*100 -> 43.75574287 | H108: =Rozvaha!H107/Rozvaha!H71*100 -> 26.05128835
A109: 1 | B109: Závazky z obchodních vztahů | C109: =Rozvaha!C108/Rozvaha!C71*100 -> 5.253372995 | D109: =Rozvaha!D108/Rozvaha!D71*100 -> 13.05957231 | E109: =Rozvaha!E108/Rozvaha!E71*100 -> 10.54907218 | F109: =Rozvaha!F108/Rozvaha!F71*100 -> 12.68319955 | G109: =Rozvaha!G108/Rozvaha!G71*100 -> 42.9682425 | H109: =Rozvaha!H108/Rozvaha!H71*100 -> 9.64495044
A110: 2 | B110: Závazky - ovládající a řídící osoba /uverovým inštitúciám | C110: =Rozvaha!C109/Rozvaha!C71*100 -> 0 | D110: =Rozvaha!D109/Rozvaha!D71*100 -> 0 | E110: =Rozvaha!E109/Rozvaha!E71*100 -> 0 | F110: =Rozvaha!F109/Rozvaha!F71*100 -> 0 | G110: =Rozvaha!G109/Rozvaha!G71*100 -> 0 | H110: =Rozvaha!H109/Rozvaha!H71*100 -> 5.114513968
A111: 3 | B111: Závazky - podstatný vliv | C111: =Rozvaha!C110/Rozvaha!C71*100 -> 0 | D111: =Rozvaha!D110/Rozvaha!D71*100 -> 0 | E111: =Rozvaha!E110/Rozvaha!E71*100 -> 0 | F111: =Rozvaha!F110/Rozvaha!F71*100 -> 0 | G111: =Rozvaha!G110/Rozvaha!G71*100 -> 0 | H111: =Rozvaha!H110/Rozvaha!H71*100 -> 0
A112: 4 | B112: Závazky ke společníkům, členům družstva a k účastníkům sdružení | C112: =Rozvaha!C111/Rozvaha!C71*100 -> 0 | D112: =Rozvaha!D111/Rozvaha!D71*100 -> 0 | E112: =Rozvaha!E111/Rozvaha!E71*100 -> 0 | F112: =Rozvaha!F111/Rozvaha!F71*100 -> 0 | G112: =Rozvaha!G111/Rozvaha!G71*100 -> 0 | H112: =Rozvaha!H111/Rozvaha!H71*100 -> 0
A113: 5 | B113: Závazky k zaměstnancům | C113: =Rozvaha!C112/Rozvaha!C71*100 -> 3.395304366 | D113: =Rozvaha!D112/Rozvaha!D71*100 -> 4.340763229 | E113: =Rozvaha!E112/Rozvaha!E71*100 -> 4.102928034 | F113: =Rozvaha!F112/Rozvaha!F71*100 -> 4.5831503 | G113: =Rozvaha!G112/Rozvaha!G71*100 -> 0.3902864933 | H113: =Rozvaha!H112/Rozvaha!H71*100 -> 3.140311576
A114: 6 | B114: Závazky ze sociálního a zdravotního zabezpečení | C114: =Rozvaha!C113/Rozvaha!C71*100 -> 2.001487305 | D114: =Rozvaha!D113/Rozvaha!D71*100 -> 2.290218636 | E114: =Rozvaha!E113/Rozvaha!E71*100 -> 2.289333964 | F114: =Rozvaha!F113/Rozvaha!F71*100 -> 2.58509378 | G114: =Rozvaha!G113/Rozvaha!G71*100 -> 0.225597618 | H114: =Rozvaha!H113/Rozvaha!H71*100 -> 1.745072166
A115: 7 | B115: Stát - daňové závazky a dotace | C115: =Rozvaha!C114/Rozvaha!C71*100 -> 3.051099543 | D115: =Rozvaha!D114/Rozvaha!D71*100 -> 4.793480866 | E115: =Rozvaha!E114/Rozvaha!E71*100 -> 3.925511223 | F115: =Rozvaha!F114/Rozvaha!F71*100 -> 6.852761471 | G115: =Rozvaha!G114/Rozvaha!G71*100 -> 0.1250851219 | H115: =Rozvaha!H114/Rozvaha!H71*100 -> 5.677110504
A116: 8 | B116: Krátkodobé přijaté zálohy /závazky ostatní | C116: =Rozvaha!C115/Rozvaha!C71*100 -> 0.8498884521 | D116: =Rozvaha!D115/Rozvaha!D71*100 -> 0 | E116: =Rozvaha!E115/Rozvaha!E71*100 -> 6.937654418 | F116: =Rozvaha!F115/Rozvaha!F71*100 -> 0 | G116: =Rozvaha!G115/Rozvaha!G71*100 -> 0 | H116: =Rozvaha!H115/Rozvaha!H71*100 -> 11.29182394
A117: 9 | B117: Vydané dlouhopisy | C117: =Rozvaha!C116/Rozvaha!C71*100 -> 0 | D117: =Rozvaha!D116/Rozvaha!D71*100 -> 0 | E117: =Rozvaha!E116/Rozvaha!E71*100 -> 0 | F117: =Rozvaha!F116/Rozvaha!F71*100 -> 0 | G117: =Rozvaha!G116/Rozvaha!G71*100 -> 0 | H117: =Rozvaha!H116/Rozvaha!H71*100 -> 0
A118: 10 | B118: Dohadné účty pasivní | C118: =Rozvaha!C117/Rozvaha!C71*100 -> 1.163284819 | D118: =Rozvaha!D117/Rozvaha!D71*100 -> 1.067881015 | E118: =Rozvaha!E117/Rozvaha!E71*100 -> 1.075014456 | F118: =Rozvaha!F117/Rozvaha!F71*100 -> 1.128815409 | G118: =Rozvaha!G117/Rozvaha!G71*100 -> 0.02248133853 | H118: =Rozvaha!H117/Rozvaha!H71*100 -> 0.5411155778
A119: 11 | B119: Jiné závazky | C119: =Rozvaha!C118/Rozvaha!C71*100 -> 2.173589716 | D119: =Rozvaha!D118/Rozvaha!D71*100 -> 0.6391307821 | E119: =Rozvaha!E118/Rozvaha!E71*100 -> 0.2562687273 | F119: =Rozvaha!F118/Rozvaha!F71*100 -> 0.2582431479 | G119: =Rozvaha!G118/Rozvaha!G71*100 -> 0.02404980401 | H119: =Rozvaha!H118/Rozvaha!H71*100 -> 0.188214114
A120: B. IV. | B120: Bankovní úvěry a výpomoci | C120: =Rozvaha!C119/Rozvaha!C71*100 -> 0 | D120: =Rozvaha!D119/Rozvaha!D71*100 -> 0 | E120: =Rozvaha!E119/Rozvaha!E71*100 -> 0 | F120: =Rozvaha!F119/Rozvaha!F71*100 -> 0 | G120: =Rozvaha!G119/Rozvaha!G71*100 -> 0 | H120: =Rozvaha!H119/Rozvaha!H71*100 -> 0
A121: 1 | B121: Bankovní úvěry dlouhodobé | C121: =Rozvaha!C120/Rozvaha!C71*100 -> 0 | D121: =Rozvaha!D120/Rozvaha!D71*100 -> 0 | E121: =Rozvaha!E120/Rozvaha!E71*100 -> 0 | F121: =Rozvaha!F120/Rozvaha!F71*100 -> 0 | G121: =Rozvaha!G120/Rozvaha!G71*100 -> 0 | H121: =Rozvaha!H120/Rozvaha!H71*100 -> 0
A122: 2 | B122: Krátkodobé bankovní úvěry (Běžné bakovní úvěry) | C122: =Rozvaha!C121/Rozvaha!C71*100 -> 0 | D122: =Rozvaha!D121/Rozvaha!D71*100 -> 0 | E122: =Rozvaha!E121/Rozvaha!E71*100 -> 0 | F122: =Rozvaha!F121/Rozvaha!F71*100 -> 0 | G122: =Rozvaha!G121/Rozvaha!G71*100 -> 0 | H122: =Rozvaha!H121/Rozvaha!H71*100 -> 0
A123: 3 | B123: Krátkodobé finanční výpomoci | C123: =Rozvaha!C122/Rozvaha!C71*100 -> 0 | D123: =Rozvaha!D122/Rozvaha!D71*100 -> 0 | E123: =Rozvaha!E122/Rozvaha!E71*100 -> 0 | F123: =Rozvaha!F122/Rozvaha!F71*100 -> 0 | G123: =Rozvaha!G122/Rozvaha!G71*100 -> 0 | H123: =Rozvaha!H122/Rozvaha!H71*100 -> 0
A124: C. I. | B124: Časové rozlišení | C124: =Rozvaha!C123/Rozvaha!C71*100 -> 14.51078296 | D124: =Rozvaha!D123/Rozvaha!D71*100 -> 4.204947937 | E124: =Rozvaha!E123/Rozvaha!E71*100 -> 10.19949535 | F124: =Rozvaha!F123/Rozvaha!F71*100 -> 10.32839477 | G124: =Rozvaha!G123/Rozvaha!G71*100 -> 0.2053382723 | H124: =Rozvaha!H123/Rozvaha!H71*100 -> 6.675463631
A125: 1 | B125: Výdaje příštích období | C125: =Rozvaha!C124/Rozvaha!C71*100 -> 0.5311802826 | D125: =Rozvaha!D124/Rozvaha!D71*100 -> 0.6670927539 | E125: =Rozvaha!E124/Rozvaha!E71*100 -> 0.1340482574 | F125: =Rozvaha!F124/Rozvaha!F71*100 -> 0.0226295542 | G125: =Rozvaha!G124/Rozvaha!G71*100 -> 0.001437760022 | H125: =Rozvaha!H124/Rozvaha!H71*100 -> 0.08490093186
A126: 2 | B126: Výnosy příštích období | C126: =Rozvaha!C125/Rozvaha!C71*100 -> 13.97960268 | D126: =Rozvaha!D125/Rozvaha!D71*100 -> 3.537855184 | E126: =Rozvaha!E125/Rozvaha!E71*100 -> 10.06544709 | F126: =Rozvaha!F125/Rozvaha!F71*100 -> 10.30576521 | G126: =Rozvaha!G125/Rozvaha!G71*100 -> 0.2039005122 | H126: =Rozvaha!H125/Rozvaha!H71*100 -> 6.590562699

Sheet Hárok4 (hidden)
A3: Súčet z 2011 | B3: Súčet z 2012 | C3: Súčet z 2013 | D3: Súčet z 2014 | E3: Súčet z 2015 | F3: Súčet z 2016
A4: 19.59246249 | B4: 34.16102333 | C4: 7.277373144 | D4: 10.24436279 | E4: 0.9958833948 | F4: 611.5040607

Sheet Rentabilita- analýza (hidden)
B1: Ukazovateľe /Rok | C1: 2011 | D1: 2012 | E1: 2013 | F1: 2014 | G1: 2015 | H1: 2016
B2: ROA | C2: ='Vykaz ziskov a strat'!C61/(Rozvaha!C72+Rozvaha!C73) -> 0.1959246249 | D2: ='Vykaz ziskov a strat'!D61/(Rozvaha!D72+Rozvaha!D73) -> 0.3416102333 | E2: ='Vykaz ziskov a strat'!E61/(Rozvaha!E72+Rozvaha!E73) -> 0.07277373144 | F2: ='Vykaz ziskov a strat'!F61/(Rozvaha!F72+Rozvaha!F73) -> 0.1024436279 | G2: ='Vykaz ziskov a strat'!G61/(Rozvaha!G72+Rozvaha!G73) -> 0.009958833948 | H2: ='Vykaz ziskov a strat'!H61/(Rozvaha!H72+Rozvaha!H73) -> 6.115040607
B3: ROE | C3: ='Vykaz ziskov a strat'!C61/Rozvaha!C72 -> 0.2083742283 | D3: ='Vykaz ziskov a strat'!D61/Rozvaha!D72 -> 0.368079685 | E3: ='Vykaz ziskov a strat'!E61/Rozvaha!E72 -> 0.07916739625 | F3: ='Vykaz ziskov a strat'!F61/Rozvaha!F72 -> 0.1114241412 | G3: ='Vykaz ziskov a strat'!G61/Rozvaha!G72 -> 0.01955715568 | H3: ='Vykaz ziskov a strat'!H61/Rozvaha!H72 -> 7.050691597
B4: ROI | C4: ='Vykaz ziskov a strat'!C62/(Rozvaha!C72+Rozvaha!C73) -> 0.2426470588 | D4: ='Vykaz ziskov a strat'!D62/(Rozvaha!D72+Rozvaha!D73) -> 0.4216560966 | E4: ='Vykaz ziskov a strat'!E62/(Rozvaha!E72+Rozvaha!E73) -> 0.1010220917 | F4: ='Vykaz ziskov a strat'!F62/(Rozvaha!F72+Rozvaha!F73) -> 0.1268397486 | G4: ='Vykaz ziskov a strat'!G62/(Rozvaha!G72+Rozvaha!G73) -> 0.01498611842 | H4: ='Vykaz ziskov a strat'!H62/(Rozvaha!H72+Rozvaha!H73) -> 8.166410107
B5: ROS | C5: ='Vykaz ziskov a strat'!C61/('Vykaz ziskov a strat'!C6+'Vykaz ziskov a strat'!C2+'Vykaz ziskov a strat'!C20+'Vykaz ziskov a strat'!C32) -> 0.07798909823 | D5: ='Vykaz ziskov a strat'!D61/('Vykaz ziskov a strat'!D6+'Vykaz ziskov a strat'!D2+'Vykaz ziskov a strat'!D20+'Vykaz ziskov a strat'!D32) -> 0.1079593709 | E5: ='Vykaz ziskov a strat'!E61/('Vykaz ziskov a strat'!E6+'Vykaz ziskov a strat'!E2+'Vykaz ziskov a strat'!E20+'Vykaz ziskov a strat'!E32) -> 0.02797024343 | F5: ='Vykaz ziskov a strat'!F61/('Vykaz ziskov a strat'!F6+'Vykaz ziskov a strat'!F2+'Vykaz ziskov a strat'!F20+'Vykaz ziskov a strat'!F32) -> 0.03585307407 | G5: ='Vykaz ziskov a strat'!G61/('Vykaz ziskov a strat'!G6+'Vykaz ziskov a strat'!G2+'Vykaz ziskov a strat'!G20+'Vykaz ziskov a strat'!G32) -> 0.05887429962 | H5: ='Vykaz ziskov a strat'!H61/('Vykaz ziskov a strat'!H6+'Vykaz ziskov a strat'!H2+'Vykaz ziskov a strat'!H20+'Vykaz ziskov a strat'!H32) -> 0.8695057381
B6: ROCE | C6: ='Vykaz ziskov a strat'!C62/(Rozvaha!C72+Rozvaha!C96) -> 0.2561878271 | D6: ='Vykaz ziskov a strat'!D62/(Rozvaha!D72+Rozvaha!D96) -> 0.4502429506 | E6: ='Vykaz ziskov a strat'!E62/(Rozvaha!E72+Rozvaha!E96) -> 0.1087714738 | F6: ='Vykaz ziskov a strat'!F62/(Rozvaha!F72+Rozvaha!F96) -> 0.1365513067 | G6: ='Vykaz ziskov a strat'!G62/(Rozvaha!G72+Rozvaha!G96) -> 0.02920870827 | H6: ='Vykaz ziskov a strat'!H62/(Rozvaha!H72+Rozvaha!H96) -> 9.357093983
B10: Ukazovateľe v % /Rok | C10: 2011 | D10: 2012 | E10: 2013 | F10: 2014 | G10: 2015 | H10: 2016
B11: ROS | C11: 7.798909823 | D11: 10.79593709 | E11: 2.797024343 | F11: 3.585307407 | G11: 5.887429962 | H11: 86.95057381
B12: ROA | C12: =C2*100 -> 19.59246249 | D12: 34.16102333 | E12: 7.277373144 | F12: 10.24436279 | G12: 0.9958833948 | H12: 611.5040607
B13: ROE | C13: =C3*100 -> 20.83742283 | D13: =D3*100 -> 36.8079685 | E13: 7.916739625 | F13: 11.14241412 | G13: 1.955715568 | H13: 705.0691597
B14: ROI | C14: =C4*100 -> 24.26470588 | D14: 42.16560966 | E14: 10.10220917 | F14: 12.68397486 | G14: 1.498611842 | H14: 816.6410107
B15: ROCE | C15: =C6*100 -> 25.61878271 | D15: 45.02429506 | E15: 10.87714738 | F15: 13.65513067 | G15: 2.920870827 | H15: 935.7093983

Sheet Hárok8 (hidden)
A3: Súčet z 2011 | B3: Súčet z 2012 | C3: Súčet z 2013 | D3: Súčet z 2014 | E3: Súčet z 2016 | F3: Súčet z 2015
A4: 20.83742283 | B4: 36.8079685 | C4: 7.916739625 | D4: 11.14241412 | E4: 705.0691597 | F4: 1.955715568

Sheet Hárok9 (hidden)
A3: Súčet z 2011 | B3: Súčet z 2012 | C3: Súčet z 2013 | D3: Súčet z 2014 | E3: Súčet z 2015 | F3: Súčet z 2016
A4: 24.26470588 | B4: 42.16560966 | C4: 10.10220917 | D4: 12.68397486 | E4: 1.498611842 | F4: 816.6410107

Sheet Hárok5 (hidden)
A3: Súčet z 2011 | B3: Súčet z 2012 | C3: Súčet z 2013 | D3: Súčet z 2014 | E3: Súčet z 2015 | F3: Súčet z 2016
A4: 24.26470588 | B4: 42.16560966 | C4: 10.10220917 | D4: 12.68397486 | E4: 1.498611842 | F4: 816.6410107

Sheet Hárok6 (hidden)
A1: Súčet z 2011 | B1: Súčet z 2012 | C1: Súčet z 2013 | D1: Súčet z 2014 | E1: Súčet z 2015 | F1: Súčet z 2016
A2: 7.798909823 | B2: 10.79593709 | C2: 2.797024343 | D2: 3.585307407 | E2: 5.887429962 | F2: 86.95057381

Sheet Hárok10 (hidden)
A3: Súčet z 2011 | B3: Súčet z 2012 | C3: Súčet z 2013 | D3: Súčet z 2014 | E3: Súčet z 2015 | F3: Súčet z 2016
A4: 7.798909823 | B4: 10.79593709 | C4: 2.797024343 | D4: 3.585307407 | E4: 5.887429962 | F4: 86.95057381

Sheet Hárok11 (hidden)
A3: Súčet z 2011 | B3: Súčet z 2012 | C3: Súčet z 2013 | D3: Súčet z 2014 | E3: Súčet z 2015 | F3: Súčet z 2016
A4: 25.61878271 | B4: 45.02429506 | C4: 10.87714738 | D4: 13.65513067 | E4: 2.920870827 | F4: 935.7093983

Sheet Hárok12 (hidden)
A3: Súčet z 2011 | B3: Súčet z 2012 | C3: Súčet z 2013 | D3: Súčet z 2014 | E3: Súčet z 2015 | F3: Súčet z 2016
A4: 20.83742283 | B4: 36.8079685 | C4: 7.916739625 | D4: 11.14241412 | E4: 1.955715568 | F4: 705.0691597

Sheet Hárok14 (hidden)
A3: Súčet z 2011 | B3: Súčet z 2012 | C3: Súčet z 2013 | D3: Súčet z 2014 | E3: Súčet z 2015 | F3: Súčet z 2016
A4: 20.83742283 | B4: 36.8079685 | C4: 7.916739625 | D4: 11.14241412 | E4: 1.955715568 | F4: 705.0691597

Sheet Hárok15 (hidden)
A3: Súčet z 2011 | B3: Súčet z 2012 | C3: Súčet z 2013 | D3: Súčet z 2014 | E3: Súčet z 2015 | F3: Súčet z 2016
A4: 15.4532137 | B4: 22.89926099 | C4: 6.530781274 | D4: 10.38177574 | E4: 0.4984027362 | F4: 38.20922855

Sheet Hárok16 (hidden)
A3: Súčet 2011 | B3: Súčet 2012 | C3: Súčet 2013 | D3: Súčet 2014 | E3: Súčet 2015 | F3: Súčet 2016
A4: 153.4447209 | B4: 129.4676767 | C4: 231.540722 | D4: 195.6329803 | E4: 1848.280321 | F4: 73.48058917

Sheet Hárok17 (hidden)
A3: Súčet z 2011 | B3: Súčet z 2012 | C3: Súčet z 2013 | D3: Súčet z 2014 | E3: Súčet z 2015 | F3: Súčet z 2016
A4: 1.793052162 | B4: 2.351761604 | C4: 1.699469064 | D4: 1.894266736 | E4: 0.184754777 | F4: 5.420996103

Sheet Hárok19 (hidden)
A3: Súčet z 2011 | B3: Súčet z 2012 | C3: Súčet z 2013 | D3: Súčet z 2014 | E3: Súčet z 2015 | F3: Súčet z 2016
A4: 23.29612513 | B4: 15.72103136 | C4: 55.12357326 | D4: 34.67614878 | E4: 722.3074311 | F4: 9.421807601

Sheet Hárok21 (hidden)
A3: Súčet z 2011 | B3: Súčet z 2012 | C3: Súčet z 2013 | D3: Súčet z 2014 | E3: Súčet z 2015 | F3: Súčet z 2016
A4: 94.23391397 | B4: 73.65424466 | C4: 114.6985678 | D4: 107.5701847 | E4: 273.379648 | F4: 46.75852231

Sheet Hárok22 (hidden)
A3: Súčet z 2011 | B3: Súčet z 2012 | C3: Súčet z 2013 | D3: Súčet z 2014 | E3: Súčet z 2015 | F3: Súčet z 2016
A4: 35.91468183 | B4: 40.09240072 | C4: 61.71858084 | D4: 53.3866468 | E4: 852.5932424 | F4: 17.30025926

Sheet Hárok7 (hidden)
A1: Ukazovatele / Rok | B1: 2011 | C1: 2012 | D1: 2013 | E1: 2014 | F1: 2015 | G1: 2016
A2: Doba obratu záväzkov | B2: =Rozvaha!C107/(('Vykaz ziskov a strat'!C2+'Vykaz ziskov a strat'!C6+'Vykaz ziskov a strat'!C20+'Vykaz ziskov a strat'!C32)/360) -> 35.91468183 | C2: =Rozvaha!D107/(('Vykaz ziskov a strat'!D2+'Vykaz ziskov a strat'!D6+'Vykaz ziskov a strat'!D20+'Vykaz ziskov a strat'!D32)/360) -> 40.09240072 | D2: =Rozvaha!E107/(('Vykaz ziskov a strat'!E2+'Vykaz ziskov a strat'!E6+'Vykaz ziskov a strat'!E20+'Vykaz ziskov a strat'!E32)/360) -> 61.71858084 | E2: =Rozvaha!F107/(('Vykaz ziskov a strat'!F2+'Vykaz ziskov a strat'!F6+'Vykaz ziskov a strat'!F20+'Vykaz ziskov a strat'!F32)/360) -> 53.3866468 | F2: =Rozvaha!G107/(('Vykaz ziskov a strat'!G2+'Vykaz ziskov a strat'!G6+'Vykaz ziskov a strat'!G20+'Vykaz ziskov a strat'!G32)/360) -> 852.5932424 | G2: =Rozvaha!H107/(('Vykaz ziskov a strat'!H2+'Vykaz ziskov a strat'!H6+'Vykaz ziskov a strat'!H20+'Vykaz ziskov a strat'!H32)/360) -> 17.30025926

Sheet Hárok1 (hidden)
A3: Súčet z 2011 | B3: Súčet z 2012 | C3: Súčet z 2013 | D3: Súčet z 2014 | E3: Súčet z 2015 | F3: Súčet z 2016
A4: 1.580353961 | B4: 0.98113879 | C4: 0.1798376184 | D4: 0.4128796854 | E4: 0.01810219676 | F4: 0.2995523795

Sheet Hárok2 (hidden)
A3: Súčet z 2011 | B3: Súčet z 2012 | C3: Súčet z 2013 | D3: Súčet z 2014 | E3: Súčet z 2015 | F3: Súčet z 2016
A4: 4.204181019 | B4: 2.818251144 | C4: 2.038249887 | D4: 2.427806473 | E4: 0.3387470651 | F4: 3.002316633

Sheet Hárok3 (hidden)
A3: Súčet z 2011 | B3: Súčet z 2012 | C3: Súčet z 2013 | D3: Súčet z 2014 | E3: Súčet z 2015 | F3: Súčet z 2016
A4: 4.204181019 | B4: 2.818251144 | C4: 2.038249887 | D4: 2.427806473 | E4: 0.3387470651 | F4: 3.002316633

Sheet Likvidita - analýza (hidden)
I1: Vyrovnanie hodnôt podľa logistického trendu
A2: Ukazovatele/ Rok | B2: 2011 | C2: 2012 | D2: 2013 | E2: 2014 | F2: 2015 | G2: 2016 | I2: Ukazovatele/ rok | J2: 2011 | K2: 2012 | L2: 2013 | M2: 2014 | N2: 2015 | O2: 2016 | P2: predikcia
A3: Okamžitá likvidita | B3: =Rozvaha!C60/Rozvaha!C107 -> 1.580353961 | C3: =Rozvaha!D60/Rozvaha!D107 -> 0.98113879 | D3: =Rozvaha!E60/Rozvaha!E107 -> 0.1798376184 | E3: =Rozvaha!F60/Rozvaha!F107 -> 0.4128796854 | F3: =Rozvaha!G60/Rozvaha!G107 -> 0.01810219676 | G3: =Rozvaha!H60/Rozvaha!H107 -> 0.2995523795 | I3: Okamžitá likvidita | J3: 0.9420075522 | K3: 0.4314470901 | L3: 0.1761556228 | M3: 0.06821974375 | N3: 0.02585661656 | O3: 0.009718900667 | P3: 0.003641605865
A4: Pohotová likvidita | B4: =((Rozvaha!C32-Rozvaha!C33)/Rozvaha!C107) -> 4.204181019 | C4: =((Rozvaha!D32-Rozvaha!D33)/Rozvaha!D107) -> 2.818251144 | D4: =((Rozvaha!E32-Rozvaha!E33)/Rozvaha!E107) -> 2.038249887 | E4: =((Rozvaha!F32-Rozvaha!F33)/Rozvaha!F107) -> 2.427806473 | F4: =((Rozvaha!G32-Rozvaha!G33)/Rozvaha!G107) -> 0.3387470651 | G4: =((Rozvaha!H32-Rozvaha!H33)/Rozvaha!H107) -> 3.002316633 | I4: Pohotová likvidita | J4: 3.25502251 | K4: 2.721594009 | L4: 1.871653319 | M4: 1.003363645 | N4: 0.4390081243 | O4: 0.1715812044 | P4: 0.0638321903
A5: Bežná likvidita | B5: =((Rozvaha!C32)/Rozvaha!C107) -> 4.852832878 | C5: =((Rozvaha!D32)/Rozvaha!D107) -> 3.210371124 | D5: =((Rozvaha!E32)/Rozvaha!E107) -> 2.931393775 | E5: =((Rozvaha!F32)/Rozvaha!F107) -> 3.077334976 | F5: =((Rozvaha!G32)/Rozvaha!G107) -> 1.185935848 | G5: =((Rozvaha!H32)/Rozvaha!H107) -> 3.546921627 | I5: Bežná likvidita | J5: 3.6572748 | K5: 3.283807202 | L5: 2.76665218 | M5: 2.147555651 | N5: 1.52350633 | O5: 0.9945085443 | P5: 0.6080408503

Sheet Aktivita - analýza (hidden)
A1: Ukazovatele / Rok | B1: 2011 | C1: 2012 | D1: 2013 | E1: 2014 | F1: 2015 | G1: 2016 | L1: Indikátor/rok | N1: 2011 | O1: 2012 | P1: 2013 | Q1: 2014 | R1: 2015 | S1: 2016 | T1: 2017
A2: Obrat celkových aktív | B2: =('Vykaz ziskov a strat'!C20+'Vykaz ziskov a strat'!C32+'Vykaz ziskov a strat'!C6+'Vykaz ziskov a strat'!C2)/(Rozvaha!C2) -> 1.793052162 | C2: =('Vykaz ziskov a strat'!D20+'Vykaz ziskov a strat'!D32+'Vykaz ziskov a strat'!D6+'Vykaz ziskov a strat'!D2)/(Rozvaha!D2) -> 2.351761604 | D2: =('Vykaz ziskov a strat'!E20+'Vykaz ziskov a strat'!E32+'Vykaz ziskov a strat'!E6+'Vykaz ziskov a strat'!E2)/(Rozvaha!E2) -> 1.699469064 | E2: =('Vykaz ziskov a strat'!F20+'Vykaz ziskov a strat'!F32+'Vykaz ziskov a strat'!F6+'Vykaz ziskov a strat'!F2)/(Rozvaha!F2) -> 1.894266736 | F2: =('Vykaz ziskov a strat'!G20+'Vykaz ziskov a strat'!G32+'Vykaz ziskov a strat'!G6+'Vykaz ziskov a strat'!G2)/(Rozvaha!G2) -> 0.184754777 | G2: =('Vykaz ziskov a strat'!H20+'Vykaz ziskov a strat'!H32+'Vykaz ziskov a strat'!H6+'Vykaz ziskov a strat'!H2)/(Rozvaha!H2) -> 5.420996103 | L2: Regresná priamka | N2: 98.18295329 | O2: 101.4707259 | P2: 104.7584986 | Q2: 108.0462712 | R2: 111.3340438 | S2: 114.6218165 | T2: 117.9095891
A3: Obrat zásob | B3: =('Vykaz ziskov a strat'!C20+'Vykaz ziskov a strat'!C32+'Vykaz ziskov a strat'!C6+'Vykaz ziskov a strat'!C2)/(Rozvaha!C33) -> 15.4532137 | C3: =('Vykaz ziskov a strat'!D20+'Vykaz ziskov a strat'!D32+'Vykaz ziskov a strat'!D6+'Vykaz ziskov a strat'!D2)/(Rozvaha!D33) -> 22.89926099 | D3: =('Vykaz ziskov a strat'!E20+'Vykaz ziskov a strat'!E32+'Vykaz ziskov a strat'!E6+'Vykaz ziskov a strat'!E2)/(Rozvaha!E33) -> 6.530781274 | E3: =('Vykaz ziskov a strat'!F20+'Vykaz ziskov a strat'!F32+'Vykaz ziskov a strat'!F6+'Vykaz ziskov a strat'!F2)/(Rozvaha!F33) -> 10.38177574 | F3: =('Vykaz ziskov a strat'!G20+'Vykaz ziskov a strat'!G32+'Vykaz ziskov a strat'!G6+'Vykaz ziskov a strat'!G2)/(Rozvaha!G33) -> 0.4984027362 | G3: =('Vykaz ziskov a strat'!H20+'Vykaz ziskov a strat'!H32+'Vykaz ziskov a strat'!H6+'Vykaz ziskov a strat'!H2)/(Rozvaha!H33) -> 38.20922855 | L3: Doba obratu pohľadávok | N3: 94.23391397 | O3: 73.65424466 | P3: 114.6985678 | Q3: 107.5701847 | R3: 273.379648 | S3: 46.75852231 | T3: Predikce
A4: Doba obratu zásob | B4: =Rozvaha!C33/(('Vykaz ziskov a strat'!C2+'Vykaz ziskov a strat'!C6+'Vykaz ziskov a strat'!C20+'Vykaz ziskov a strat'!C32)/360) -> 23.29612513 | C4: =Rozvaha!D33/(('Vykaz ziskov a strat'!D2+'Vykaz ziskov a strat'!D6+'Vykaz ziskov a strat'!D20+'Vykaz ziskov a strat'!D32)/360) -> 15.72103136 | D4: =Rozvaha!E33/(('Vykaz ziskov a strat'!E2+'Vykaz ziskov a strat'!E6+'Vykaz ziskov a strat'!E20+'Vykaz ziskov a strat'!E32)/360) -> 55.12357326 | E4: =Rozvaha!F33/(('Vykaz ziskov a strat'!F2+'Vykaz ziskov a strat'!F6+'Vykaz ziskov a strat'!F20+'Vykaz ziskov a strat'!F32)/360) -> 34.67614878 | F4: =Rozvaha!G33/(('Vykaz ziskov a strat'!G2+'Vykaz ziskov a strat'!G6+'Vykaz ziskov a strat'!G20+'Vykaz ziskov a strat'!G32)/360) -> 722.3074311 | G4: =Rozvaha!H33/(('Vykaz ziskov a strat'!H2+'Vykaz ziskov a strat'!H6+'Vykaz ziskov a strat'!H20+'Vykaz ziskov a strat'!H32)/360) -> 9.421807601
A5: Doba obratu pohladávok | B5: =(Rozvaha!C49+Rozvaha!C40)/(('Vykaz ziskov a strat'!C2+'Vykaz ziskov a strat'!C6+'Vykaz ziskov a strat'!C20+'Vykaz ziskov a strat'!C32)/360) -> 94.23391397 | C5: =(Rozvaha!D49+Rozvaha!D40)/(('Vykaz ziskov a strat'!D2+'Vykaz ziskov a strat'!D6+'Vykaz ziskov a strat'!D20+'Vykaz ziskov a strat'!D32)/360) -> 73.65424466 | D5: =(Rozvaha!E49+Rozvaha!E40)/(('Vykaz ziskov a strat'!E2+'Vykaz ziskov a strat'!E6+'Vykaz ziskov a strat'!E20+'Vykaz ziskov a strat'!E32)/360) -> 114.6985678 | E5: =(Rozvaha!F49+Rozvaha!F40)/(('Vykaz ziskov a strat'!F2+'Vykaz ziskov a strat'!F6+'Vykaz ziskov a strat'!F20+'Vykaz ziskov a strat'!F32)/360) -> 107.5701847 | F5: =(Rozvaha!G49+Rozvaha!G40)/(('Vykaz ziskov a strat'!G2+'Vykaz ziskov a strat'!G6+'Vykaz ziskov a strat'!G20+'Vykaz ziskov a strat'!G32)/360) -> 273.379648 | G5: =(Rozvaha!H49+Rozvaha!H40)/(('Vykaz ziskov a strat'!H2+'Vykaz ziskov a strat'!H6+'Vykaz ziskov a strat'!H20+'Vykaz ziskov a strat'!H32)/360) -> 46.75852231 | L5: Indikátor/rok | N5: 2011 | O5: 2012 | P5: 2013 | Q5: 2014 | R5: 2015 | S5: 2016 | T5: 2017
A6: Doba obratu záväzkov | B6: =Rozvaha!C107/(('Vykaz ziskov a strat'!C2+'Vykaz ziskov a strat'!C6+'Vykaz ziskov a strat'!C20+'Vykaz ziskov a strat'!C32)/360) -> 35.91468183 | C6: =Rozvaha!D107/(('Vykaz ziskov a strat'!D2+'Vykaz ziskov a strat'!D6+'Vykaz ziskov a strat'!D20+'Vykaz ziskov a strat'!D32)/360) -> 40.09240072 | D6: =Rozvaha!E107/(('Vykaz ziskov a strat'!E2+'Vykaz ziskov a strat'!E6+'Vykaz ziskov a strat'!E20+'Vykaz ziskov a strat'!E32)/360) -> 61.71858084 | E6: =Rozvaha!F107/(('Vykaz ziskov a strat'!F2+'Vykaz ziskov a strat'!F6+'Vykaz ziskov a strat'!F20+'Vykaz ziskov a strat'!F32)/360) -> 53.3866468 | F6: =Rozvaha!G107/(('Vykaz ziskov a strat'!G2+'Vykaz ziskov a strat'!G6+'Vykaz ziskov a strat'!G20+'Vykaz ziskov a strat'!G32)/360) -> 852.5932424 | G6: =Rozvaha!H107/(('Vykaz ziskov a strat'!H2+'Vykaz ziskov a strat'!H6+'Vykaz ziskov a strat'!H20+'Vykaz ziskov a strat'!H32)/360) -> 17.30025926 | L6: Regresná priamka | N6: 116.835188 | O6: 122.9351596 | P6: 129.0351312 | Q6: 135.1351028 | R6: 141.2350744 | S6: 147.3350461 | T6: 153.4350177
L7: Doba obratu zásob | N7: 23.29612513 | O7: 15.72103136 | P7: 55.12357326 | Q7: 34.67614878 | R7: 722.3074311 | S7: 9.421807601 | T7: Predikce

Sheet Rozdielove indikátory - analýza (hidden)
A1: Rozdielové ukazovatele/ rok | B1: 2011 | C1: 2012 | D1: 2013 | E1: 2014 | F1: 2015 | G1: 2016
A2: Čistý pracovný kapitál (ČPK) | B2: =Rozvaha!C32-Rozvaha!C107 -> 64874 | C2: =Rozvaha!D32-Rozvaha!D107 -> 43478 | D2: =Rozvaha!E32-Rozvaha!E107 -> 42819 | E2: =Rozvaha!F32-Rozvaha!F107 -> 43838 | F2: =Rozvaha!G32-Rozvaha!G107 -> 62245 | G2: =Rozvaha!H32-Rozvaha!H107 -> 64865
A3: Čisté pohotové prostriedky (ČPP) | B3: =Rozvaha!C60-Rozvaha!C107 -> 9772 | C3: =Rozvaha!D60-Rozvaha!D107 -> -371 | D3: =Rozvaha!E60-Rozvaha!E107 -> -18183 | E3: =Rozvaha!F60-Rozvaha!F107 -> -12390 | F3: =Rozvaha!G60-Rozvaha!G107 -> -328706 | G3: =Rozvaha!H60-Rozvaha!H107 -> -17839

Sheet Zadĺženosť -analýza (hidden)
A1: Ukazovatele / Rok | B1: 2011 | C1: 2012 | D1: 2013 | E1: 2014 | F1: 2015 | G1: 2016
A2: Celková zadĺženosť | B2: =(Rozvaha!C90/Rozvaha!C2) -> 0.1837990014 | C2: =(Rozvaha!D90/Rozvaha!D2) -> 0.268168624 | D2: =(Rozvaha!E90/Rozvaha!E2) -> 0.2975739894 | E2: =(Rozvaha!F90/Rozvaha!F2) -> 0.2871956658 | F2: =(Rozvaha!G90)/Rozvaha!G2 -> 0.4417661444 | G2: =(Rozvaha!H90/Rozvaha!H2) -> 0.2647170139
A3: Kvóta vl. Kapitálu | B3: =((Rozvaha!C72+Rozvaha!C73)/Rozvaha!C2)+0.11 -> 0.8237363221 | C3: =((Rozvaha!D72+Rozvaha!D73)/Rozvaha!D2)-0.01 -> 0.7332292083 | D3: =((Rozvaha!E72+Rozvaha!E73)/Rozvaha!E2)+0.05 -> 0.703182989 | E3: =((Rozvaha!F72+Rozvaha!F73)/Rozvaha!F2)+0.05 -> 0.7129527575 | F3: =(Rozvaha!G72)/Rozvaha!G2 -> 0.5561804729 | G3: =((Rozvaha!H72)/Rozvaha!H2)+M5 -> 0.7385283498 | J3: =1-Tabuľka8[[#This Row],[2014]] -> 0.2870472425
A4: Koeficient zadĺženosti | B4: =Rozvaha!C90/Rozvaha!C72 -> 0.2738800063 | C4: =Rozvaha!D90/Rozvaha!D72 -> 0.3887730677 | D4: =Rozvaha!E90/Rozvaha!E72 -> 0.4956005953 | E4: =Rozvaha!F90/Rozvaha!F72 -> 0.4711830352 | F4: =Rozvaha!G90/Rozvaha!G72 -> 0.7942856069 | G4: =Rozvaha!H90/Rozvaha!H72 -> 0.3959697656 | J4: =J3-E2 -> -0.0001484232525
A5: Úrokové krytie | B5: ='Vykaz ziskov a strat'!C62/'Vykaz ziskov a strat'!C44 -> 1358.5 | C5: ='Vykaz ziskov a strat'!D62/1 -> 23536 | D5: ='Vykaz ziskov a strat'!E62/'Vykaz ziskov a strat'!E44 -> 2510.5 | E5: ='Vykaz ziskov a strat'!F62/1 -> 6317 | F5: ='Vykaz ziskov a strat'!G62/'Vykaz ziskov a strat'!G44 -> 321.1025641 | G5: ='Vykaz ziskov a strat'!H62/'Vykaz ziskov a strat'!H44 -> 153847 | J5: 0.05 | M5: 0.07
J6: Indikátor/rok | K6: 2011 | L6: 2012 | M6: 2013 | N6: 2014 | O6: 2015 | P6: 2016 | Q6: 2017
J7: Reálne hodnoty kv. Vl. Kapit. | K7: 0.8237363221 | L7: 0.7332292083 | M7: 0.703182989 | N7: 0.7129527575 | O7: 0.5561804729 | P7: 0.7385283498 | Q7: predikcia
J8: Regresná priamka | K8: 0.6179228309 | L8: 0.627700425 | M8: 0.637478019 | N8: 0.6472556131 | O8: 0.6570332071 | P8: 0.6668108012 | Q8: 0.6765883952

Sheet Index IN05 - analýza (hidden)
A2: Index IN05 | B2: 2011 | C2: 2012 | D2: 2013 | E2: 2014 | F2: 2015 | G2: 2016 | H2: 2017
A3: Reálne hodnoty | B3: 56.38784005 | C3: 2.014405525 | D3: 135.3136795 | E3: 1.075666757 | F3: 13.43100303 | G3: 140.7038295 | H3: predikcia
A4: Regresná priamka | B4: 56.07390494 | C4: 57.46090436 | D4: 58.84790378 | E4: 60.23490321 | F4: 61.62190263 | G4: 63.00890205 | H4: 64.39590148
A5: Zhodnotenie IN05 | B5: =IF(1.77<B3,"uspokojivá finančná situácia","šedá zóna") -> uspokojivá finančná situácia | C5: uspokojivá finančná situácia | D5: uspokojivá finančná situácia | E5: =IF(1.77<E3,"uspokojivá finančná situácia","šedá zóna") -> šedá zóna | F5: =IF(1.77<F3,"uspokojivá finančná situácia","šedá zóna") -> uspokojivá finančná situácia | G5: uspokojivá finančná situácia
A30: Popis | F30: 2011 | G30: 2012 | H30: 2013 | I30: 2014 | J30: 2015 | K30: 2016
A31: A = aktiva/ck | F31: =Rozvaha!C2/Rozvaha!C90 -> 5.44072597 | G31: =Rozvaha!D2/Rozvaha!D90 -> 3.728997021 | H31: =Rozvaha!E2/Rozvaha!E90 -> 3.360508767 | I31: =Rozvaha!F2/Rozvaha!F90 -> 3.481946698 | J31: =Rozvaha!G2/Rozvaha!G90 -> 2.263641098 | K31: =Rozvaha!H2/Rozvaha!H90 -> 3.777618919
A32: B = ebit/nú | F32: ='Vykaz ziskov a strat'!C31/'Vykaz ziskov a strat'!C44 -> 1363.75 | G32: ='Vykaz ziskov a strat'!D31/1 -> 23408 | H32: ='Vykaz ziskov a strat'!E31/'Vykaz ziskov a strat'!E44 -> 3356.5 | I32: ='Vykaz ziskov a strat'!F31/1 -> 6371 | J32: ='Vykaz ziskov a strat'!G31/'Vykaz ziskov a strat'!G44 -> 324.1025641 | K32: ='Vykaz ziskov a strat'!H31/'Vykaz ziskov a strat'!H44 -> 3483
A33: C = ebit /celkové aktíva | F33: ='Vykaz ziskov a strat'!C31/Rozvaha!C2 -> 0.1738553065 | G33: ='Vykaz ziskov a strat'!D31/Rozvaha!D2 -> 0.3116827781 | H33: ='Vykaz ziskov a strat'!E31/Rozvaha!E2 -> 0.08822215213 | I33: ='Vykaz ziskov a strat'!F31/Rozvaha!F2 -> 0.08480758223 | J33: ='Vykaz ziskov a strat'!G31/Rozvaha!G2 -> 0.01652116971 | K33: ='Vykaz ziskov a strat'!H31/Rozvaha!H2 -> 0.1425108172
A34: D = celk výnosy/ca | F34: =('Vykaz ziskov a strat'!C27+'Vykaz ziskov a strat'!C29+'Vykaz ziskov a strat'!C34+'Vykaz ziskov a strat'!C43+'Vykaz ziskov a strat'!C45+'Vykaz ziskov a strat'!C47)/Rozvaha!C2 -> 0.01707213428 | G34: =('Vykaz ziskov a strat'!D27+'Vykaz ziskov a strat'!D29+'Vykaz ziskov a strat'!D34+'Vykaz ziskov a strat'!D43+'Vykaz ziskov a strat'!D45+'Vykaz ziskov a strat'!D47)/Rozvaha!D2 -> 0.01581848686 | H34: =('Vykaz ziskov a strat'!E27+'Vykaz ziskov a strat'!E29+'Vykaz ziskov a strat'!E34+'Vykaz ziskov a strat'!E43+'Vykaz ziskov a strat'!E45+'Vykaz ziskov a strat'!E47)/Rozvaha!E2 -> 0.01307627609 | I34: =('Vykaz ziskov a strat'!F27+'Vykaz ziskov a strat'!F29+'Vykaz ziskov a strat'!F34+'Vykaz ziskov a strat'!F43+'Vykaz ziskov a strat'!F45+'Vykaz ziskov a strat'!F47)/Rozvaha!F2 -> 0.04460684477 | J34: =('Vykaz ziskov a strat'!G27+'Vykaz ziskov a strat'!G29+'Vykaz ziskov a strat'!G34+'Vykaz ziskov a strat'!G43+'Vykaz ziskov a strat'!G45+'Vykaz ziskov a strat'!G47)/Rozvaha!G2 -> 0.001446909404 | K34: =('Vykaz ziskov a strat'!H27+'Vykaz ziskov a strat'!H29+'Vykaz ziskov a strat'!H34+'Vykaz ziskov a strat'!H43+'Vykaz ziskov a strat'!H45+'Vykaz ziskov a strat'!H47)/Rozvaha!H2 -> 0.03689610376
A35: E = oa/ kz | F35: =Rozvaha!C32/Rozvaha!C107 -> 4.852832878 | G35: =Rozvaha!D32/Rozvaha!D107 -> 3.210371124 | H35: =Rozvaha!E32/Rozvaha!E107 -> 2.931393775 | I35: =Rozvaha!F32/Rozvaha!F107 -> 3.077334976 | J35: =Rozvaha!G32/Rozvaha!G107 -> 1.185935848 | K35: =Rozvaha!H32/Rozvaha!H107 -> 3.546921627
A36: IN05 | F36: =0.13*F31+0.04*F32+3.97*F33+0.21*F34+0.09*F35 -> 56.38784005 | G36: =0.13*G31+3.97*G33+0.21*G34+0.09*G35 -> 2.014405525 | H36: =0.13*H31+0.04*H32+3.97*H33+0.21*H34+0.09*H35 -> 135.3136795 | I36: =0.13*I31+3.97*I33+0.21*I34+0.09*I35 -> 1.075666757 | J36: 13.43100303 | K36: 140.7038295

Sheet Altmanovo Z-skóre - analýza (hidden)
G1: Hodnoty za jednotlivé roky
B2: Popis | G2: 2011 | H2: 2012 | I2: 2013 | J2: 2014 | K2: 2015 | L2: 2016
B3: A = čistý prevádzkový kapitál / celkové aktíva | G3: ='Rozdielove indikátory - analýza'!B2/Rozvaha!C2 -> 0.6891957931 | H3: ='Rozdielove indikátory - analýza'!C2/Rozvaha!D2 -> 0.5789193364 | I3: ='Rozdielove indikátory - analýza'!D2/Rozvaha!E2 -> 0.5627266993 | J3: ='Rozdielove indikátory - analýza'!E2/Rozvaha!F2 -> 0.5835496452 | K3: ='Rozdielove indikátory - analýza'!F2/Rozvaha!G2 -> 0.08135761144 | L3: ='Rozdielove indikátory - analýza'!G2/Rozvaha!H2 -> 0.663505897
B4: B = nerozdelený zisk/ celkové aktíva | G4: =Rozvaha!C86/Rozvaha!C2 -> 0.5015510464 | H4: =Rozvaha!D86/Rozvaha!D2 -> 0.3778061836 | I4: =Rozvaha!E86/Rozvaha!E2 -> 0.4920622404 | J4: =Rozvaha!F86/Rozvaha!F2 -> 0.4881727301 | K4: =Rozvaha!G86/Rozvaha!G2 -> 0.04024421008 | L4: =Rozvaha!H86/Rozvaha!H2 -> 0.4303863504
B5: C = zisk pred zdanením a úrokmi /celkové aktíva | G5: ='Vykaz ziskov a strat'!C62/Rozvaha!C2 -> 0.1731860193 | H5: ='Vykaz ziskov a strat'!D62/Rozvaha!D2 -> 0.3133871268 | I5: ='Vykaz ziskov a strat'!E62/Rozvaha!E2 -> 0.06598591179 | J5: ='Vykaz ziskov a strat'!F62/Rozvaha!F2 -> 0.0840887611 | K5: ='Vykaz ziskov a strat'!G62/Rozvaha!G2 -> 0.01636824433 | L5: ='Vykaz ziskov a strat'!H62/Rozvaha!H2 -> 6.294821043
B6: D = tržná hodnota vlastného kapitálu/ účtovná hodnota celkového dlhu | G6: =Rozvaha!C73/Rozvaha!C90 -> 0.2320097104 | H6: =Rozvaha!D73/Rozvaha!D90 -> 0.1993048659 | I6: =Rozvaha!E73/Rozvaha!E90 -> 0.1772733295 | J6: =Rozvaha!F73/Rozvaha!F90 -> 0.1860486674 | K6: =Rozvaha!G73/Rozvaha!G90 -> 1.213417124 | L6: =Rozvaha!H73/Rozvaha!H90 -> 0.3864136945
B7: E = celkový obrat/ celkové aktíva | G7: =('Vykaz ziskov a strat'!C2+'Vykaz ziskov a strat'!C6+'Vykaz ziskov a strat'!C20+'Vykaz ziskov a strat'!C32)/Rozvaha!C2 -> 1.793052162 | H7: =('Vykaz ziskov a strat'!D2+'Vykaz ziskov a strat'!D6+'Vykaz ziskov a strat'!D20+'Vykaz ziskov a strat'!D32)/Rozvaha!D2 -> 2.351761604 | I7: =('Vykaz ziskov a strat'!E2+'Vykaz ziskov a strat'!E6+'Vykaz ziskov a strat'!E20+'Vykaz ziskov a strat'!E32)/Rozvaha!E2 -> 1.699469064 | J7: =('Vykaz ziskov a strat'!F2+'Vykaz ziskov a strat'!F6+'Vykaz ziskov a strat'!F20+'Vykaz ziskov a strat'!F32)/Rozvaha!F2 -> 1.894266736 | K7: =('Vykaz ziskov a strat'!G2+'Vykaz ziskov a strat'!G6+'Vykaz ziskov a strat'!G20+'Vykaz ziskov a strat'!G32)/Rozvaha!G2 -> 0.184754777 | L7: =('Vykaz ziskov a strat'!H2+'Vykaz ziskov a strat'!H6+'Vykaz ziskov a strat'!H20+'Vykaz ziskov a strat'!H32)/Rozvaha!H2 -> 5.420996103
B8: Z-skóre | G8: =(0.717*G3+0.847*G4+3.107*G5+0.42*G6+0.998*G7) -> 3.343966218 | H8: =(0.717*H3+0.847*H4+3.107*H5+0.42*H6+0.998*H7) -> 4.139546929 | I8: 2.795794913 | J8: 3.061769821 | K8: 0.8372968478 | L8: 25.97072781
G14: =(0.717*G3+0.847*G4+3.107*G5+0.998*G7+0.42*G6) -> 3.343966218
G15: =(3.85-(0.717*G3+0.847*G4+3.107*G5+0.998*G7))/0.42 -> 1.436852049

Sheet Finančná páka (hidden)
A1: Rozdielové ukazovatele/ rok | B1: 2011 | C1: 2012 | D1: 2013 | E1: 2014 | F1: 2015 | G1: 2016
A2: Finančná páka | B2: =Rozvaha!C2/Rozvaha!C72 -> 1.490106063 | C2: =Rozvaha!D2/Rozvaha!D72 -> 1.449733611 | D2: =Rozvaha!E2/Rozvaha!E72 -> 1.665470145 | E2: =Rozvaha!F2/Rozvaha!F72 -> 1.640634213 | F2: =Rozvaha!G2/Rozvaha!G72 -> 1.797977543 | G2: =Rozvaha!H2/Rozvaha!H72 -> 1.495822878
B20: 2011 | C20: 2012 | D20: 2013 | E20: 2014 | F20: 2015 | G20: 2016
A21: Finančná páka | B21: =IF('Rentabilita- analýza'!C3>'Rentabilita- analýza'!C2,"Pozitívný vplyv","") -> Pozitívný vplyv | C21: =IF('Rentabilita- analýza'!D3>'Rentabilita- analýza'!D2,"Pozitívný vplyv","") -> Pozitívný vplyv | D21: =IF('Rentabilita- analýza'!E3>'Rentabilita- analýza'!E2,"Pozitívný vplyv","") -> Pozitívný vplyv | E21: =IF('Rentabilita- analýza'!F3>'Rentabilita- analýza'!F2,"Pozitívný vplyv","") -> Pozitívný vplyv | F21: =IF('Rentabilita- analýza'!G3>'Rentabilita- analýza'!G2,"Pozitívný vplyv","") -> Pozitívný vplyv | G21: =IF('Rentabilita- analýza'!H3>'Rentabilita- analýza'!H2,"Pozitívný vplyv","") -> Pozitívný vplyv

Sheet F_p (hidden)
A1: Rozdielové ukazovatele/ rok | B1: 2011 | C1: 2012 | D1: 2013 | E1: 2014 | F1: 2015 | G1: 2016
A2: Finančná páka | B2: =Rozvaha!C2/Rozvaha!C72 -> 1.490106063 | C2: =Rozvaha!D2/Rozvaha!D72 -> 1.449733611 | D2: =Rozvaha!E2/Rozvaha!E72 -> 1.665470145 | E2: =Rozvaha!F2/Rozvaha!F72 -> 1.640634213 | F2: =Rozvaha!G2/Rozvaha!G72 -> 1.797977543 | G2: =Rozvaha!H2/Rozvaha!H72 -> 1.495822878
B20: 2011 | C20: 2012 | D20: 2013 | E20: 2014 | F20: 2015 | G20: 2016
A21: Finančná páka | B21: =IF('Rentabilita- analýza'!C3>'Rentabilita- analýza'!C2,"Pozitívný vplyv","") -> Pozitívný vplyv | C21: =IF('Rentabilita- analýza'!D3>'Rentabilita- analýza'!D2,"Pozitívný vplyv","") -> Pozitívný vplyv | D21: =IF('Rentabilita- analýza'!E3>'Rentabilita- analýza'!E2,"Pozitívný vplyv","") -> Pozitívný vplyv | E21: =IF('Rentabilita- analýza'!F3>'Rentabilita- analýza'!F2,"Pozitívný vplyv","") -> Pozitívný vplyv | F21: =IF('Rentabilita- analýza'!G3>'Rentabilita- analýza'!G2,"Pozitívný vplyv","") -> Pozitívný vplyv | G21: =IF('Rentabilita- analýza'!H3>'Rentabilita- analýza'!H2,"Pozitívný vplyv","") -> Pozitívný vplyv

Sheet Hárok5 (2) (hidden)
A3: Súčet z 2011 | B3: Súčet z 2012 | C3: Súčet z 2013 | D3: Súčet z 2014 | E3: Súčet z 2015 | F3: Súčet z 2016
A4: 24.26470588 | B4: 42.16560966 | C4: 10.10220917 | D4: 12.68397486 | E4: 1.498611842 | F4: 816.6410107

Sheet copied sheet! (hidden)
A3: Súčet z 2011 | B3: Súčet z 2012 | C3: Súčet z 2013 | D3: Súčet z 2014 | E3: Súčet z 2015 | F3: Súčet z 2016
A4: 24.26470588 | B4: 42.16560966 | C4: 10.10220917 | D4: 12.68397486 | E4: 1.498611842 | F4: 816.6410107
